Workbook

Sheet 0.1 Innhold
B4: SAGA V2.9
B27: Innhold i SAGA:
B28: 0.1 Innhold | C28: Generelt om SAGA og hovedformålet med verktøyet.
B29: 0.2 Brukerveiledning | C29: Visuell fremstilling og brukerveiledning av hvordan SAGA fungerer og hvilke moduler og beregninger som tilhører i hvert nivå.
B30: 0.3 Endringslogg | C30: Alle endringer som gjøres i SAGA skrives inn med navn og dato.
B31: 0.4 Kilder | C31: Alle kilder som inngår i SAGA legges inn i denne arkfanen.
B32: Standardsatser - Forutsetninger | C32: Skjult arkfane. Hvis en sats eller forutsetning avhenger av flere komponenter, beregnes dette i denne arkfanen.
B33: 1.1 Standardsatser | C33: Alle standardsatser i SAGA ligger i denne arkfanen. De skal ikke endres uten begrunnelse, og ligger fast i alle analyser.
B34: 1.2 Forutsetninger | C34: Her finnes prosjektavhengige forutsetninger og standardforutsetninger som skal vurderes og fylles inn for hvert enkelt tiltak.
B35: 1.3 Persontransportmodell | C35: Resultatet fra persontransportmodeller legges inn her. Typiske modeller er Trenklin og regional eller nasjonal transportmodell (RTM/NTM).
B36: 1.4 Godsmodell | C36: Resultater fra nasjonal godsmodell legges inn her.
B37: 1.5 Prognoser og indekser | C37: Alle nyttestrømmene blir beregnet med prognoser og indekser fra denne arkfanen.
B38: 2.1 Trafikanter | C38: Den årlige endringen for trafikantene blir beregnet.
B39: 2.2 Operatører | C39: Den årlige endringen for operatørene blir beregnet.
B40: 2.3 Det Offentlige | C40: Den årlige endringen for det offentlige blir beregnet.
B41: 2.4 Samfunnet for øvrig | C41: Den årlige endringen for samfunnet for øvrig blir beregnet.
B42: 2.5 Investeringer + Vedlikehold | C42: Investeringer og drift/vedlikehold av tiltaket beregnes her.
B43: 3.1 Nyttestrøm | C43: Alle nyttestrømmene blir beregnet i denne arkfanen, samt nåverdi (NNV/NNB) og restverdi blir presentert.
B44: 3.2 Ikke-prissatte virkninger | C44: Støtteark for å gjennomføre analyse av ikke-prissatte virkninger.
B45: 4.1 Resultatark | C45: Alle resultatene er vist i tabellformat i denne arkfanen. Det er en hovedtabell og analysetabell med relevante størrelser.
B46: 4.1.2 Superside NTP 25-36 | C46: Arkfane for delvis automatisk utfylling av superside.
B47: 4.1.3 Geofordelingsmodell | C47: Arkfane for input til geofordelingsmodellen.
B48: Parametere | C48: Skjult arkfane. Denne arkfanen inneholder lister over parametere som kan velges i følsomhetsanalysen.
B49: 4.2.1 Følsomhetsanalyse | C49: Her kan man gjennomføre følsomhetsanalyser på ulike parametere for å undersøke påvirkningen på NNV og NNB.
B50: 4.2.2 Monte Carlo-simulering | C50: Her kan man gjennomføre Monte Carlo-simulering basert på ulike stokastiske forutsetninger
B51: 4.2.3 Monte Carlo resultater | C51: Skjult arkfane. Resultater fra Monte Carlo-simulering lagres her.
B52: 4.3.1 Tversnittfigurer | C52: Tidsseriedata fra analysen vises i tidsseriediagrammer.
B53: 4.3.1 Data_Tverrsnittfigurer | C53: Skjult arkfane. Mellomberegninger for figurer i 4.3.1 Tverrsnittfigurer.
B54: 4.3.2 Tidsseriefigurer | C54: Resultater vises i tverrsnittdiagrammer.
B55: 4.3.2 Data_Tidsseriefigurer | C55: Skjult arkfane. Mellomberegninger for figurer i 4.5 Tidsseriefigurer.

Sheet 0.2 Brukerveiledning

Sheet 0.3 Endringslogg
B9: Endringslogg
B10: Navn | C10: Dato | D10: Versjon | E10: Navn på fil | F10: Hva er endret
B11: Malene Nerland | C11: 43126 | D11: 1 | E11: SAGA V1 | F11: Første versjon av SAGA
B12: Malene Nerland | C12: 43133 | D12: 1.1 | E12: SAGA V1.1 | F12: "1.2 Forutsetninger": Det er gjort endring i CRF formelen, som påvirker avskrivningen av materiellkostnader for togsett, rekkefølgen på prosjektavhengige forutsetninger har også blitt endret. Det er gjort endring i formel for rente og avskrivning i "2.2 Operatører", det lå inne referanse i tiltaksberegningen. Gjort noen justeringer på tekst i "0.1 Innhold" og "0.3 Endringslogg". Lagt inn serievolumvekstperson for vedlikehold av jernbane i "3.1 Nyttestrøm".
B13: Malene Nerland | C13: 43167 | D13: 1.2 | E13: SAGA V1.2 | F13: "1.2 Forutsetninger": Inflasjonsmålet (fremtidig KPI) er endret fra 2,5 % til 2 %. Moms på billettinntekter er endret fra 10 % til 12 %. Det er gjort endringer i valg av modellresultater og farger for betinget formatering (påvirker ikke resultatet). Skrevet om tekst i informasjonsboksen "1.1 Standardsatser": Celler er fryst for bedre brukeropplevelse. "4.1 Resultatark": Lagt inn Hvis formel på % endring for ulike resultater slik at det ikke skal bli feilmelding når det ikke er lagt inn noen resultater, men det blir 0. Endret navn på skjult ark til "mellomberegning satser-forutsetninger".
B14: Malene Nerland | C14: 43258 | D14: 1.3 | E14: SAGA V1.3 | F14: "Standardsatser-forutsetninger": Energikostnad for togene er oppdatert med en ny pris per kWh. «1.1 Standardsatser»: Beregning av energikostnad for Type 72 og Oaris var byttet om med hverandre, endret slik at det ble riktig. "1.2 Forutsetninger": Endret og tatt vekk tabellen med forutsetninger til Trenklin. Flyttet virkninger per døgn (het før døgntrafikk) forutsetningen under prosjektavhengige forutsetninger og moms på billettinntekter under generelle forutsetninger. Lagt til forutsetning om siste år med realprisjustering. Endret navn på "sammenligningsår/diskonteringsår" til "Diskonteringsår". Flyttet oppstartsår til å stå over åpningsår. Skilt forutsetningen åpningsår og første beregningsår, og gjort endringer i formler som følge av forskjell på åpningsår og første beregningsår. Dette gjelder i samme arkfane, og alle andre arkfaner som blir påvirket. "1.5 Prognoser og indekser": Forenklet formel karbonprisbane. Realprisjustering gjøres med informasjon fra siste perspektivmelding frem til 2060. Deretter går veksten gradvis mot 0 i år 2100. Trafikkvekst for gods- og persontransport følger prognoser fram til 2050, etter dette går veksten gradvis mot 0 i år 2100. "2.2 Operatører": Formelen for punktlighet endret til å bare inkludere lønnskostnader og ikke energikostnader. "4.1 Resultat": Endret inndelingen til aktørene (påvirker ikke resultatet). Flyttet investeringskostnader under aktøren "Det offentlige". Flyttet helsevirkninger fra "samfunnet for øvrig" til "trafikanter". Endret navn i resultattabell fra "(Brutto NNV - Investeringer)" til "(NNV)". Generelt: Endret beskrivelsen av "Tredjepart" til "Samfunnet for øvrig".
B15: Malene Nerland | C15: 43320 | D15: 1.4 | E15: SAGA V1.4 | F15: "Standardsatser-forutsetninger": Endret sporavgiften og alle de andre avgiftene til 2018 kroner. "1.1 Standardsatser": Oppdatert prisjustering med formler fra arkfane "1.5 prognoser og indekser", alle priser justert til 2017 kroner. "1.2 Forutsetninger": Endret navn på kroneår i innlagte satser til siste statistikkår, siste statistikkår er endret fra 2016 til 2017 kroner på grunn av oppdatert statistikk. Endret betinget formatering til å være avhengig av førsteberegningsår i stedet for åpningsår. Vil bare påvirke hvordan fargene endrer seg i ulike arkfaner som er betinget på denne forutsetningen. Endret navn på komponent innenfor investering fra Elektroanlegg til Lavspenning. "1.5 Prognoser og indekser": Gjort forenklinger i formler og slettet rader som ikke ble brukt. Tatt vekk 2009 teksten i karbonprisbanen (vet ikke hvorfor det stod at det var 2009, det er 2013 kroner). Oppdatert statistikk for KPI, Reallønn, BNP og BKI til 2017 som fører til at siste statistikkår er 2017. "2.3 Det offentlig": Endret overskrift fra infrastrukturavgifter til avgifter. "3.1 Nyttestrøm": Funnet feil i nyttestrøm formler for det offentlige og tredjepart som henviser til årstall, er rettet opp.
B16: Malene Nerland | C16: 43426 | D16: 2 | E16: SAGA V2 | F16: Lagt inn arkfane for diagram, "4.2 Diagram". Lagt inn arkfane for følsomhetsanalyse. Er makrokoding med resultater i "4.3 Følsomhetsanalyse". "1.2 Forutsetninger": Endret formel for antall år investeringer, skal foredeles med minimum 1 år. "1.3 Persontransportmodell": Endret rekkefølge for passasjerkm, fra By, Land, Tettbygd strøk til By, Tettbygd strøk, Land. Endret alle referanser som har vært basert på denne inndelingen. "1.5 Prognoser og indekser": Funnet feil i C21, det var ikke mulig å legge inn kroneår for investeringskostnader som var et årstall etter siste statistikk år. Rettet opp til at året for investering_kroneår kan være etter SistestatistikkÅr, men automatisk 100 %. Sistestatistikkår må oppdateres januar hvert år. "2.4 Samfunnet for øvrig": Funnet feil i C59. Stod multiplisert, men skal deles på 1000. Dette er endret til riktig, delt på 1000. "2.5 Invetsering + Vedlikehold": Endret formel for vedlikeholdskostnad. Det var inne en feil som gjorde at det ble feilmelding når tiltaket hadde en levetid på under 75 år. Endret fra "" til 0 slik at formelen under endring summerte seg.
B17: Malene Nerland | C17: 43447 | D17: 2.1 | E17: SAGA V2.1 | F17: Endret overskrifter i VBA-koden for følsomhetsanalysen. Påvirker ikke beregningene. "1.3 Persontransportmodell": Endret rekkefølge til By, tettbygd strøk og land for buss beregningsår 1. Var en skrivefeil fra forrige gang, påvirker ikke resultatet. "Standardsatser-Forutsetninger": For vedlikeholdskostnader er benevningen for slitasje endret til kr/togkm og ikke per år. "4.1 Resultatark": Endret inndeling for skadde for bil og lastebil til hardt skadet og lettere skadet under sikkerhetseffekter. Påvirker ikke det totale resultatet, men gjør det enklere å se forskjell på skadegrad (hardt og lettere skadet).
B18: Malene Nerland | C18: 43538 | D18: 2.2 | E18: SAGA V2.2 | F18: "0.2 Struktur og brukerveiledning": Tatt vekk undertekst (prosjektuavhengig og prosjektavhengig) i illustrasjon. "Standardsatser-Forutsetninger": Endret helseeffekt verdiene for gående og syklende. "1.1 Standardsatser": Endret begrepsbruken fra helsegevinster til helseeffekter og endret kilden til hvor disse tallene er hentet fra etter oppdateringen i "Standardsatser-Forutsetninger"."1.5 Prognoser og indekser": Oppdatert statistikk fra SSB for 2018 for KPI, BKI, Reallønn og BNP. "1.2 Forutsetninger": SisteStatistikkÅr er endret til 2018 basert på den oppdaterte statistikken fra SSB som er fylt ut i arkfane "1.5 Prognoser og indekser". "1.2 Forutsetninger": Implementert mulighet for å legge inn kroneår for verdier for tidskostnader, takst og transportkostnader som er beregnet i transportmodellen/transportanalysen/godsmodellen. "1.5 Prognoser og indekser": For å kunne legge inn annet kroneår for tidskostnader og takster fra transportmodell/transportanalyse og transportkostnader for gods er det lagt til en del nytt under denne arkfanen. Under «faktorer for statistikk og prognose» er det lagt inn SerieRealprisjustering_Tid for bruk til å realprisjustere tidskostnadene (trafikantnytte for togreisende og andre transportmidler). Det er lagt inn KPI justering for tidskostnader, takster og transportkostnader for gods (23:25). Formelen for KPI justering investeringskostnader er endret så det er en mer fleksibel formel slik at det er mulig å legge inn kroneår for investeringskostnader som er et årstall etter SisteStatistikkÅr. En slik fleksibel formel gjelder for alle formlene for KPI justering og reallønn justering. Under «Statistikk og prognoser» er det lagt inn KPI indeks og Reallønn Indeks for bruk i beregning av KPI justering og Reallønn justering. «3.1 Nyttestrøm»: Det er lagt inn KPIJustering_Tid og SerieRealprisjustering_Tid for rad (12:20). Det er lagt inn KPIJustering_Gods for rad (22) og KPIJustering_Takst for rad (27). "4.1 Resultatark": Endret tekstlige forklaringer i arkfanen og endret benevning for klima og miljø til kroner siden det bare er for ett år.
B19: Malene Nerland | C19: 43629 | D19: 2.3_Beta1 | E19: SAGA V2.3_Beta1 | F19: NB: Ikke publisert. Det er gjort en del tilpasninger i verktøyet etter utkast levert fra TØI om marginale eksterne kostnader som er gjennomført i den tverretatlig gruppen for Samfunnsøkonomi/transportanalyse og Godsgruppen. Rapporten fra TØI er ikke ferdigstilt, og det er antatt at det vil være noe justering av støysatsen i endelig rapport. Denne versjonen (Beta 1) har heller ikke tatt med enring for drift og vedlikehold på jernbanen. Satsene for drift og vedlikehold fra TØI rapporten er per km og det må gjøres en større tilpasningsjobb i SAGA. Det lages derfor en Beta 1 versjon som ikke er en offentlig SAGA versjon, men som benyttes i analyser som skal gjennomføres før vi får endelig rapport. Denne versjonen er heller ikke tilstrekkelig kvalitetssikret, så det kan forekomme feil. Det har vært spesielt vanskelig å tilpasse ny karbonpris og teknologiutvikling i arkfanen "3.1 Nyttestrøm" under Globale utslipp - CO2. Det er noe rart med lineær vekst hvis dette alternativet velges, men vil ikke påvirke analysen hvis vekstprognosen brukes. De som benytter Beta 1 versjon bør være oppmerksom på dette. Er lagt inn makrokode "Module 1" som skal lese ut tall fra access resultatfil fra RTM. Det er gjort noen forenklinger forløpig, blant annet er det bare mulig å ta ut for ett beregningsår. Det er behov for å kopi-paste tallene for de andre beregningsårene siden resultatene for de ulike beregningsårene leses inn i samme celler.
B20: Malene Nerland | C20: 43629 | D20: 2.3_Beta2 | E20: SAGA V2.3_Beta2 | F20: NB: Ikke publisert. "3.1 Nyttestrøm": Funnet en feil formelen for den relative vekstraten for første beregningsår for CO2 for passasjerfly og lastebil, endret. Påvirker ikke resultatet. Endret fortegn med minus for resultatene for Det offentlige - avgifter, det var ikke lagt inn før, men vi så det ble feil likevel, så endret til slik det var opprinnelig i V2.2.
B21: Malene Nerland | C21: 43641 | D21: 2.3_Beta3 | E21: SAGA V2.3_Beta3 | F21: NB: Ikke publisert. "Standardsatser-Forutsetninger": Oppdatert med endring i CO2utslipp for skip for 2018, 2030 og 2050, som påvirker SerieCO2krkm_Skip. Det er lagt inn NOx kr/fatøykm, SO2 kr/fatøykm og PM10 kr/fatøykm for skip."1.1 Standardsatser": Etter en ny versjon av rapport om MEK mottatt 19.06 er det lagt inn oppdaterte satser for støy og ulykker, det er også oppdatert med nye satser for lokale utslipp og ulykker for skip. "1.2 Forutsetninger": Tabell om "Forutsetninger (Fylles ut ved bruk av RTM/NTM)" er tatt vekk, er ikke i bruk når den nye makrokoden for uttak av RTM/NTM resultater er lagt inn i SAGA. "2.4 Samfunnet for øvrig": Endret formel for beregning av tonn CO2 utslipp for alle transportformene så det ligger inne med utslipp som er avhengig av hvilket år det skjer. Påvirker ikke resultatet i kroneverdier. Lagt inn at endring i ulykkeskostnad for skip er ganget med fartøykm i stedet for tonnkm siden de nye satsene som er lagt inn er for fartøykm. Mangler i denne oppdatering: Endring i drift/vedlikehold og reinvestering for tog. Det kreves en større tilrettelegging i SAGA som ikke er mulig å gjennomføre nå.
B22: Malene Nerland | C22: 43706 | D22: 2.3 | E22: SAGA V2.3 | F22: Generelt: Lagt inn makrokode HentData for innlesing av RTM/NTM uttak for flere beregningsår. "Standardsatser-Forutsetninger": Oppdatert med endring i CO2utslipp for skip for 2018, 2030 og 2050, som påvirker SerieCO2krkm_Skip. Det er lagt inn NOx kr/fartøykm, SO2 kr/fartøykm og PM10 kr/fartøykm for skip."1.1 Standardsatser": Lagt inn nye tidsverdier fra verdsettingsstudien. Det er nå tre inndelinger, under 70 km, mellom 70 og 200 km og over 200 km. Det er lagt inn nye verdier for kø, slitasje for andre transportmidler, ulykker, støy, utslipp til luft og karbonpris. Drift/vedlikehold og reinvestering for tog er ikke oppdatert foreløpig. "1.2 Forutsetninger": Tabell om "Forutsetninger (Fylles ut ved bruk av RTM/NTM)" er tatt vekk, er ikke i bruk når den nye makrokoden for uttak av RTM/NTM resultater er lagt inn i SAGA. Linker til trafikkvolumer for persontog under "Standardsatser-Forutsetninger" slik at prosenten hentes fra mellombergeningene i stedet for å stå inne i en formel. Endret formlene slik at de leser av "" - tom celle og endret rekkefølge i hvor det står i HVIS formel. Lagt inn nye vekter for tidskostnader for de reisende, disse vektene benyttes ikke direkte i SAGA. Fra TØI-rapport "Skadekostnader ved transport" er en del forutsetninger for ulykkesfrekvens, utslipp, utslippsfaktor og drivstofforbruk endret slik at det er lik det TØI la til grunn for utregning av ulike enhetssatser. Disse forutsetningene påvirker blant annet avgifter under «1.1 Standardsatser» siden drivstofforbruket er noe endret. "1.4 Godsmodell": Navnebehandling - Det er endret navn på cellene som bruker input som er oppgitt i millioner. Detter gjelder alle endringer i km, tonn, tonnkm og kroner fra godsmodellen. "1.5 Prognoser og indekser": Lagt inn Karbonprisbane for hovedalternativ (som er det samme som de satsene som ligger i "1.1 Standardsatser", men gjort om til riktig kroneår) og følsomhet. Det er lagt inn Co2-utslipp og Co2-pris for alle transportmidler. "2.4 Samfunnet for øvrig": Gjort tilpasning av Co2 prisen slik at karbonprisbanen benyttes. Gjort flere tilpasninger i formel for Co2 slik at det skal bli riktig. Endret formel for beregning av tonn CO2 utslipp for alle transportformene så det ligger inne med utslipp som er avhengig av hvilket år det skjer. Påvirker ikke resultatet i kroneverdier. Lagt inn at endring i ulykkeskostnad for skip er ganget med fartøykm i stedet for tonnkm siden de nye satsene som er lagt inn er for fartøykm. "3.1 Nyttestrøm": Gjort tilpasning av formel for CO2 beregningen - den var feil og tok med karbonprisbanen dobbelt. Dette påvirket ikke analysen så mye når CO2-prisen var lav, men feilen ble oppdaget når det ble jobbet med implementering av ny karbonprisbane. Har også rettet formelen for lineær vekst for CO2-utslipp, ved at den nå gjengir volumvekst i utslipp (uavhengig av CO2-prisbanen). Videre er en feil i nyttestrømmene for CO2-utslipp rettet (i årene etter siste beregningsår ble tidligere lineær vekst ikke beregnet riktig). Har også gjort enkelte mindre forkortinger/forenklinger i CO2-formlene. Relativ årsvekst kunne tidligere ikke beregnes når verdiene i beregningsårene hadde ulike fortegn. Dette er nå rettet ved å legge til et mellomregningsledd (1,1*(abs(x1)+abs(x2))) i formlene. Nyttestrømmene er justert for å hensynta dette. "4.1 Resultatark": Lagt inn informasjon om lettere skadet for jernbane.
B23: Malene Nerland | C23: 43794 | D23: 2.4 | E23: SAGA V2.4 | F23: Generelt: Endret kontaktperson for SAGA til Øystein Rembar. "0.2 Struktur og brukerveiledning": Lagt inn ny informasjon om RTM/NTM siden vi benytter makroen og ikke scriptet. "1.2 Forutsetninger": Rettet en skrivefeil - innspill. Lagt inn mulighet for å fylle inn Skalering til årlige virkninger - Togmateriell (AntallDøgn_Materiell) når resultatene fra transportmodellen er skalert på utsiden av SAGA. Oppdatert drivstofforbruk for type 93 og Di4 etter ny informasjon fra Vy. "1.5 Prognoser og indekser": Endret formel for CO2-utslipp fra tog til å være 0 fra 2050 og utover for person og gods. "2.2 Operatører": Endret formel for klargjøring og renhold så det henter AntallDøgn_Materiell. "2.4 Samfunnet for øvrig": Endret formel for tog til å hente beregning av CO2 utslipp fra SerieCO2krkm og SeirieCO2utslipp, slik som det er for de andre transportformene. Endret formel 67C/D/E slik at det ikke er delt på 1000 siden det allerede er oppgitt i millioner tonn. «3.1 Nyttestrøm»: Det er rettet opp en feil i nyttestrømsformelen som brukes når fortegnet endrer seg mellom beregningsårene. Feilen ville gitt feil resultater i tilfeller hvor fortegnet endret seg. Det er lagt inn justering av formlene for CO2-variablene, slik at det nå er mulig å beregne nyttestrømmen i tilfeller hvor fortegnet endrer seg. Nye kolonner ("Resultater volum") som benyttes når både enhetskostnad og volum endres over tid. Dette er foreløpig kun av betydning for CO2-variablene (hvor både kostnaden per kjørte km og antall kjørte km kan endre seg over tid). "4.1 Resultatark": Forenklet formlene med delsum, påvirker ikke beregningene. Endret formel for endring i antall biler på vegen så det henter AntallDøgn_Materiell. "Parameter": Endret rangen for Co2KvotePriser_Opprinnelig til å gjelde de nye kvoteprisene slik at følsomhetsmodulen fungerer riktig.
B24: Øystein Rembar | C24: 43909 | D24: 2.5 | E24: SAGA V2.5 | F24: "3.1 Nyttestrøm": Har satt parentes rundt de ulike lastebilene i G62:I62, slik at fortegnet blir riktig. Har konsekvens for godsberegninger.
F25: "1.1 Standardsatser": Har oppdatert gjennomsnittlig ulykkeskostnad i E207:E209 (disse var tidligere ved en feil oppgitt i 2012-kr). Ingen konsekvens for beregninger.
F26: Flere faner: Togtype 74BMU har endret navn til type 76, og flytogene til type 78. Type 75D er fjernet, og type 77 er lagt til.
B27: Øystein Rembar | C27: 43910 | D27: 2.5 | E27: SAGA V2.5 | F27: "3.1 Nyttestrøm": Har forenklet formlene for relativ årsvekst og nyttestrømmene noe. Ingen konsekvens for beregninger.
B28: Øystein Rembar | C28: 43915 | D28: 2.5 | E28: SAGA V2.5 | F28: "1.5 Prognoser og indekser": Har forenklet formlene for prisjustering til felles kroneår (C35:C40). Ingen konsekvens for beregninger.
F29: "1.5 Prognoser og indekser": Har lagt til KPI-justering ("Fremtidig_KPI") i BNP-indeksen i rad 52 og BKI i rad 53. Dette fordi disse skal vise nominell utvikling. Begge brukes kun i "1.1 Standardsater" for å prisjustere fra opprinnelig kroneår til siste statistikkår. Mindre konsekvens for beregninger.
B30: Øystein Rembar | C30: 43923 | D30: 2.5 | E30: SAGA V2.5 | F30: "1.2 Forutsetninger": Har endret navn på C22 fra Skattefinansieringseffekt til Skattefinansieringsfaktor_utbytte.
F31: "Standardsatser-Forutsetninger": Har lagt inn avgifter for 2020 (til staten og sporavgift)
B32: Øystein Rembar | C32: 43938 | D32: 2.5 | E32: SAGA V2.5 | F32: "Standardsatser-Forutsetninger": Har lagt inn skattesatser for 2020 (marginalskatt godsoperatører)
F33: "1.2 Forutsetninger": Passasjerbelegg for buss er oppdatert
B34: Øystein Rembar | C34: 43948 | D34: 2.5 | E34: SAGA V2.5 | F34: Nivå 0-faner: Fjernet fanen "0.4 Definisjoner" ("Kilder" blir da ny fane 0.4). Endret navn på fane 0.2 fra "Struktur & brukerveiledning" til "0.2 Brukerveiledning".
B35: Tormod Wergeland Haug | C35: 44005 | D35: 2.5 | E35: SAGA V2.5 | F35: "1.2 Forutsetninger": Endret navngivning i nedtrekksmeny for hvilken modell som er benyttet
B36: Øystein Rembar | C36: 44007 | D36: 2.5 | E36: SAGA V2.5 | F36: "1.2 Forutsetninger": Endret beskrivelsen av punktlighet.
F37: "1.1 Standardsatser" og "Standardsatser-Forutsetninger": Har oppdatert beregning av ulykkeskostnader med veid snitt. Gir betydelig redusert kostnad for lette lastebiler, litt red. for tunge lastebiler og noe økt for skip.
F38: "1.2 Forutsetninger", "Standardsatser-Forutsetninger" og "4.1 Resultatark": Ulykkesfrekvens er oppdatert. Har lagt inn buss og skip, og endret inndelingen mellom tung og lett lastebil (så frekvensen samsvarer med kostnadene). Bilulykker beregnes nå med kjøretøykm (isf. personkm).
B39: Øystein Rembar | C39: 44011 | D39: 2.5 | E39: SAGA V2.5 | F39: "1.3 Persontransportmodell": Fjernet raden for trengsel, ettersom denne ikke brukes i verktøyet.
F40: "1.5 Prognoser og indekser": Oppdatert befolkningsprognose.
B41: Øystein Rembar | C41: 44012 | D41: 2.5 | E41: SAGA V2.5 | F41: "1.1 Standardsater": Lagt inn nye tidsverdier og gruppert radene i arkfanen.
B42: Øystein Rembar | C42: 44013 | D42: 2.5 | E42: SAGA V2.5 | F42: Flere faner: Endret benevning "tung lastebil" til "tung lastebil og modulvogntog"
F43: "1.5 Prognoser og indekser": Oppdatert grunnprognosene for person- og godstransport.
B44: Øystein Rembar | C44: 44015 | D44: 2.5 | E44: SAGA V2.5 | F44: "1.1 Standardsatser": Lagt inn ny karbonprisbane (1 500 kr i 2020, realprisjustering med diskonteringsraten). Har fjernet 25- og 75 %-persentiler fra 1.5 Prognoser og indekser.
B45: Øystein Rembar | C45: 44018 | D45: 2.5 | E45: SAGA V2.5 | F45: Flere faner: Har lagt inn bane for utvikling i CO2-avgiften, og mulighet for å realprisjustere denne (dette velges i 1.2 Forutsetninger). Avgiften er skilt ut fra øvrige avgifter, og hensyntar elektrifisering av kjøretøyparken. I nyttestrømsarket interpoleres volumveksten isolert fra prisveksten (tilsvarende som for CO2-utslipp under "Samfunnet for øvrig"). Gitt at man velger å realprisjustere, gir endringen to effekter som trekker i hver sin retning; 1) realprisjusteringen gir økte avgifter over tid, mens 2) elektrifisering gir reduserte avgifter over tid. Samlet sett er det derfor ikke gitt hvordan endringen slår ut i den enkelte analyse.
B46: Øystein Rembar | C46: 44019 | D46: 2.5 | E46: SAGA V2.5 | F46: "3.1 Nyttestrøm": Fjernet skattefinansieringseffekten på CO2-avgiften.
B47: Haakon Gjersum | C47: 44020 | D47: 2.5 | E47: SAGA V2.5 | F47: "3.1 Nyttestrøm": Endret fra person- til godsprognose for logistikkostnader.
B48: Haakon Gjersum | C48: 44053 | D48: 2.5 | E48: SAGA V2.5 | F48: "1.2 Forutsetninger": Lagt inn varslingsmakro i for når oppstartsår settes senere enn åpningsår.
B49: Adrian Balachandran | C49: 44078 | D49: 2.5.1 | E49: SAGA V2.5.1 | F49: Makrokode for overføring av transportmodelldata fra RTM/NTM er fikset (var feil i V2.5 pga. fjerning av rad for trengsel i fane 1.3).
B50: Øystein Rembar | C50: 44078 | D50: 2.5.1 | E50: SAGA V2.5.1 | F50: "3.1 Nyttestrøm": Fremskrivning etter siste beregningsår av CO2-effekter og avgifter for gods er endret fra å være basert på grunnprognosen for persontransport til grunnprognosen for godstransport.
B51: Øystein Rembar | C51: 44110 | D51: 2.5.1 | E51: SAGA V2.5.1 | F51: "2.1 Trafikanter": Fjernet NTM fra formler for køkostnader.
B52: Øystein Rembar | C52: 44110 | D52: 2.5.1 | E52: SAGA V2.5.1 | F52: Generelt: Endret kontaktperson for SAGA til Haakon Gjersum.
B53: Øystein Rembar | C53: 44110 | D53: 2.5.1 | E53: SAGA V2.5.1 | F53: "3.1 Nyttestrøm": CO2-utslipp fra skip er endret fra å beregnes med utgangspunkt i trafikk mellom norske havner ("InnlandSkip") til total skipstrafikk ("Skip"). CO2-avgiftene fra skip er endret til å kun beregnes med utgangspunkt i skipstrafikk mellom norske havner (altså ikke interansjonal trafikk).
B54: Haakon Gjersum/Oslo Economics | C54: 44162 | D54: 2.5.1 | E54: SAGA V2.5.1 | F54: Laget visualiseringer for tversnittfigurer og tidsseriedata i arkene "4.3 Tversnittfigurer" og "4.4 Tidsseriefigurer". Figurene henter data fra de to skjulte arkene "4.3.1 Data_Tversnittfigurer" og "4.4.1 Data_Tidsseriedata". Endringene er dokumentert i egen rapport lagret i prosjektrommet. Se her for sårbarheter ift endringer i SAGA. Spesielt endringer i cellenavn kan føre til feil i figurmodulene.
B55: Haakon Gjersum | C55: 44180 | D55: 2.6 | E55: SAGA 2.6 | F55: Rettet beregningen av nytte for andre transportmidler. Før var kø personbil og lastebil slått sammen og man fikk ikke med gevinsten av færre lastebiler hvis celle c42 i 1.2 forutsetninger ikke ble inkludert, samtidig som begge nytte-elementene ble justert med "volumvekst person". Nå er køgevisnt fra lastebiler tatt ut og justeres med godsprognose. Dette fører til mindre endring i beregning av køgevinst.
B56: Haakon Gjersum | C56: 43844 | D56: 2.6 | E56: SAGA 2.6 | F56: Har endret utviklingsbanen for utslipp per km for lastebil så den er flat før den avtar i 2034. Tidligere økte den litt pga innfasing av MVT, uten å ta høyde for økt tonn per kjøretøy i MVT. Nå er den 1,14 til den begynner å avta.
B57: Henning Wahlquist | C57: 44350 | E57: SAGA V2.7 | F57: Videreutviklet følsomhetsmodul i SAGA: Feilrettet og gjort mindre endringer i verktøyet for følsomhetsanalyse knyttet til "4.2.1 Følsomhetsanalyse". Utviklet funksjonalitet for Monte Carlo-simulering. Simulering styres fra arket, "4.2.2 Monte Carlo-simulering".
B58: Haakon Gjersum | C58: 44358 | D58: 2.7 | E58: Saga V2.7 | F58: Endret slitasjekostnader basert på SINTEF(2021) Gjennomgang av slitasjekostnader for godstransport på jernbane og veg
B59: Haakon Gjersum | C59: 44362 | D59: 2.7 | E59: Saga V2.7 | F59: Skilt lette og tunge lastebiler i co2 avgift og utslipp.
B60: Tormod Wergeland Haug | C60: 44368 | D60: 2.7 | E60: Saga V2.7 | F60: Lagt inn funksjonalitet for utslipp i byggefase. I resultatark. Splittet "investering og reinvestering" og skilt ut "Endringer i materiell persontog" fra "Endring i drift, avgifter og persontog".
B61: Haakon Gjersum | C61: 44376 | D61: 2.7 | E61: Saga V2.7 | F61: Rettet Nox utslipp for gods jernbane i 2.4 samfunnet for øvrig. Trafikkarbeidet er i mill. og sats for utslipp i g/kjtkm. Multiplisert med 1000 for å få kg nox.
B62: Tormod Wergeland Haug | C62: 44377 | D62: 2.7 | E62: Saga V2.7 | F62: Endret fremtidig vekst i BNP ihht Perspektivmeldingen 2021
B63: Tormod Wergeland Haug | C63: 44377 | D63: 2.7 | E63: Saga V2.7 | F63: Endret kontaktperson for SAGA til Tormod Wergeland Haug
B64: Tormod Wergeland Haug | C64: 44377 | D64: 2.7 | E64: Saga V2.7 | F64: "1.2 Forutsetninger" Oppdatert standard reisehensiktsfordeling og bilbelegg basert på RVU 2019
B65: Tormod Wergeland Haug | C65: 44377 | D65: 2.7 | E65: Saga V2.7 | F65: "1.2 Forutsetninger" Oppdatert bilpark etter drivstofftype til 2020 registerdata fra SSB
B66: Anders Halvorsen | C66: 44449 | D66: 2.7 | E66: Saga V2.7 | F66: "4.3 Tverrsnittfigurer" og "4.4 Tidsseriefigurer" er oppdatert med endringer i V2.7 og enkelte andre justeringer. Oslo Economics har utvidet dokumentasjonen av figurmodulen for å lette figuroppdateringer i fremtidige SAGA-versjoner. Inndataarkene 4.3.1 og 4.4.1 er skjult.
B67: Tormod Wergeland Haug | C67: 44462 | D67: 2.7 | E67: Saga V2.7 | F67: Endret en del formler i "2.2 Operattører" for å unngå #REF-feil når man gjør godsanalyser.
B68: Tormod Wergeland Haug | C68: 44462 | D68: 2.7 | E68: Saga V2.7 | F68: Endret lagt inn en enkel interpolasjon i utslipsbanen for lastebilutslipp (rad 70 i "prognoser og indekser") for å glatte ut banen mellom år 2050 og 2051
B69: Tormod Wergeland Haug | C69: 44462 | D69: 2.7 | E69: Saga V2.7 | F69: Lagt til et felt med beskrivelse av parametere i "4.2.1 Følsomhetsanalyse"
B70: Mai Brit Svendsen | C70: 44510 | D70: 2.7 | E70: Saga V2.7 | F70: Lagt til ny link for kilden NSB(2015) ettersom den nå tilhører vy.no
B71: Mai Brit Svendsen | C71: 44510 | D71: 2.7 | E71: Saga V2.7 | F71: Endret fra 75% rabatt til 0% rabatt på sporavgiften til godstog.
B72: Mai Brit Svendsen | C72: 44511 | D72: 2.7 | E72: Saga V2.7 | F72: Oppdaterte flybelegget fra 50 personer i gjennomsnitt til 56. Basert på Avinors trafikkstatistikk for 2019.
B73: Mai Brit Svendsen | C73: 44516 | D73: 2.7 | E73: Saga V2.7 | F73: Oppdaterte "1.1 Standardsatser" og "1.5 Prognoser og indekser" med ny CO2-avgiftsbane, og realprisjusterte den med kalkulasjonsrenten.
B74: Mai Brit Svendsen | C74: 44517 | D74: 2.7 | E74: Saga V2.7 | F74: Oppdaterte "1.1 Standardsatser" og "1.5 Prognoser og indekser" med ny karbonprisbane, samt la inn alternativ for lav og høy karbonprisbane.
B75: Mai Brit Svendsen | C75: 44522 | D75: 2.7 | E75: Saga V2.7 | F75: Oppdaterte "1.1 Standardsatser" og "1.5 Prognoser og indekser" med prisbane for opptak og utslipp i skog og arealbruk.
B76: Mai Brit Svendsen | C76: 44540 | D76: 2.7 | E76: Saga V2.7 | F76: La inn CO2-utslipp fra arealbeslag i "1.2 Forutsetninger", "1.5 Prognoser og indekser", "2.5 Investeringer + vedlikehold", "3.1 Nyttestrøm" og "4.4.1 Data_Tidsseriefigurer".
B77: Mari Baklund Størseth | C77: 44540 | D77: 2.7 | E77: Saga V2.7 | F77: La inn CO2-utslipp fra arealbeslag og i byggefasen i beregningen av "Skattefinansieringeffekt av det offentlige" i arket "3.1 Nyttestrøm".
B78: Mari Baklund Størseth | C78: 44546 | D78: 2.7 | E78: Saga V2.7 | F78: Lagt inn valg av karbonprisbane i "1.2 Forutsetninger" og endring av bane for linje 15 i "1.5 Prognoser og indekser"
B79: Mari Baklund Størseth | C79: 44546 | D79: 2.7 | E79: Saga V2.7 | F79: Lagt inn valg av karbonprisbane i "1.2 Forutsetninger" og endring av bane for linje 18 i "1.5 Prognoser og indekser"
B80: Mai Brit Svendsen | C80: 44722 | D80: 2.7 | E80: Saga V2.7 | F80: Endret betinget formatering for skalering til årlige virkninger- togmateriell i "1.2 Forutsetninger". Cellen blir grønn (og skal fylles inn) dersom det er en endring i enten togtype (celle E75) eller togsett (celle E79), eller begge.
B81: Mai Brit Svendsen | C81: 44722 | D81: 2.7 | E81: Saga V2.7 | F81: Lagt inn valg for rabatt for sporavgiften til godstog i "1.2 Forutsetninger" og endret i "Standardsatser-Forutsetninger".
B82: Mai Brit Svendsen | C82: 44729 | D82: 2.7 | E82: Saga V2.7 | F82: Lagt inn en komprimert tabell for resultater i "4.1 Resultatark".
B83: Mai Brit Svendsen | C83: 44732 | D83: 2.7 | E83: Saga V2.7 | F83: Lagt inn kategorien "annen" under levetid for komponenter og under andel av investeringskostnaden i "1.2 Forutsetninger", og oppdatert formelen i "2.5 Investeringer + vedlikehold".
B84: Mai Brit Svendsen | C84: 44732 | D84: 2.7 | E84: Saga V2.7 | F84: Oppdatert tidsverdier for reisende i "1.2 Forutsetninger".
B85: Mai Brit Svendsen | C85: 44733 | D85: 2.7 | E85: Saga V2.7 | F85: Oppdatert sporavgiften for persontog i henhold til Network Statement 2022, i "Standardsatser-Forutsetninger" og "1.1 Standardsatser".
B86: Mai Brit Svendsen | C86: 44734 | D86: 2.7 | E86: Saga V2.7 | F86: Lagt inn mulighet for å endre andelen tomtogkjøring mellom referanse og tiltak i "1.2 Forutsetninger" og endret formelen i "1.3 Persontransportmodell".
B87: Mai Brit Svendsen | C87: 44735 | D87: 2.7 | E87: Saga V2.7 | F87: Separert køkostnader og nytte for andre transportmidler i "3.1 Nyttestrøm" slik at nytte som følge av redusert trafikk (køkostnader) bruker KPIJustering og SerieRealprisjustering, mens annen nytte bruker KPIJustering_Tid og SerieRealprisjustering_Tid. Summeringen i "4.1 Resultatark" er også oppdatert.
B88: Mai Brit Svendsen | C88: 44740 | D88: 2.7 | E88: Saga V2.7 | F88: Fikset formelen for CRF i "1.2 Forutsetninger".
B89: Mai Brit Svendsen | C89: 44770 | D89: 2.7 | E89: Saga V2.7 | F89: "1.5 Prognoser og indekser": Oppdatert befolkningsprognose.
B90: Mari Baklund Størseth | C90: 44788 | D90: 2.7 | E90: Saga V2.7 | F90: Lagt inn ny arkfane 3.2 Ikke-prissatte virkninger for mulighet til å inkludere resultatark fra IPV-vurderinger.
B91: Mari Baklund Størseth | C91: 44788 | D91: 2.7 | E91: Saga V2.7 | F91: Lagt inn støykostnader for gods som går om natten i "1.1 Standardsatser", Nattogandel for godstog i "1.2 Forutsetninger" og endret formel for støykostnader for gods i "2.4 Samfunnet for øvrig"
B92: Mai Brit Svendsen | C92: 44818 | D92: 2.7 | E92: Saga V2.7 | F92: Oppdatert energikostnaden for dieseltog i "Standardsatser-Forutsetninger".
B93: Mari Baklund Størseth | C93: 44818 | D93: 2.7 | E93: Saga V2.7 | F93: Oppdatert energikostnaden (kraftpris og avgifter) for eltog i "Standardsatser-Forutsetninger"
B94: Mari Baklund Størseth | C94: 44869 | D94: 2.7 | E94: Saga V2.7 | F94: Oppdatert indekser til siste tilgjengelige statistikkår. Lagt inn prognose for KPI 2022-2025 og for BKI 2022 og 2023.
B95: Mari Baklund Størseth | C95: 44875 | D95: 2.7 | E95: Saga V2.7 | F95: Lagt inn Bimodalt som valg av energikilde i 1.2. Forutsetninger. Lagt inn rad for andel av strekningen som kjøres med diesel i 1.2 Forutsetninger. Lagt inn formel som regner ut togproduksjon for andelen som kjøres med el og diesel for bimodale tog i 1.3 Persontransportmodell. Endret formel for togproduksjon i 2.2 operatører, formel for avgifter til staten i 2.3 Det offentlige, formel for utslipp i 2.4 samfunnet for øvrig til å inkludere bimodal drift og formel for vedlikehold i 2.5.
B96: Mari Baklund Størseth | C96: 44876 | D96: 2.7 | E96: Saga V2.7 | F96: Splittet utslipp i byggfasen i henhold til metode for internaliserte avgifter, flyttet utslipp i byggefasen og fra arealbeslag til 1.5
B97: Mari Baklund Størseth | C97: 44880 | D97: 2.7 | E97: Saga V2.7 | F97: Flyttet restverdi og skattefinansieringskostnad til samfunnet for øvrig.
B98: Mari Baklund Størseth | C98: 44880 | D98: 2.7 | E98: Saga V2.7 | F98: Endret NNK fra netto nytte per investerte krone til netto nytte per kostnadskrone
B99: Mari Baklund Størseth | C99: 44881 | D99: 2.7 | E99: Saga V2.7 | F99: Oppdatert avgiftssatser i Standardsatser-Forutsetninger.
B100: Mari Baklund Størseth | C100: 44883 | D100: 2.7 | E100: Saga V2.7 | F100: Opprettet ny arkfane "4.1.2 Superside NTP 25-36"
B101: Mai Brit Svendsen | C101: 44894 | D101: 2.7 | E101: Saga V2.7 | F101: Lagt inn el-forbruk for togtype 76 i Standardsatser-Forutsetninger og kostnaden i 1.1 Standardsatser. Endret formelen for energikostnader i 2.2 Operatører slik at den tar høyde for bimodal kjøring.
B102: Mai Brit Svendsen | C102: 44918 | D102: 2.7 | E102: Saga V2.7 | F102: Lagt inn nye karbonprisbaner for 2023 i 1.1 Standardsatser.
B103: Mai Brit Svendsen | C103: 44918 | D103: 2.7 | E103: Saga V2.7 | F103: Oppdatert CO2-avgiften for 2023 i 1.1 Standardsatser.
B104: Mai Brit Svendsen | C104: 44929 | D104: 2.7 | E104: Saga V2.7 | F104: Oppdatert bilparken i 1.2 Forutsetninger.
B105: Mai Brit Svendsen | C105: 44932 | D105: 2.7 | E105: Saga V2.7 | F105: Oppdatert vedlikeholdskostnadene per settkm i 1.1 Standardsatser for de togtypene vi har fått oppdaterte tall for.
B106: Mai Brit Svendsen | C106: 44967 | D106: 2.8 | E106: Saga V2.8 | F106: Oppdatert indekser til siste tilgjengelige statistikkår. Lagt inn prognoser for KPI, BKI og BNP.
B107: Tormod Wergeland Haug | C107: 44979 | D107: 2.8.1 | E107: Saga V2.8.1 | F107: Oppdatert vegbruksavgift for bensin og diesel til 2023
B108: Tormod Wergeland Haug | C108: 44985 | D108: 2.8.1 | E108: Saga V2.8.1 | F108: Oppdatert beregninger av utslipp fra arealbeslag og byggefase, inklusive andre eksterne kostnader fra massetransport til/fra byggeplass
B109: Mai Brit Svendsen | C109: 44985 | D109: 2.8.1 | E109: Saga V2.8.1 | F109: Opprettet ny arkfane "4.1.3 Geofordelingsmodell"
B110: Tormod Wergeland Haug | C110: 44985 | D110: 2.8.1 | E110: Saga V2.8.1 | F110: Laget resultatuttakt for Co2-utslipp for hele levetiden
B111: Tormod Wergeland Haug | C111: 44994 | D111: 2.8.1 | E111: Saga V2.8.2 | F111: Justering av kroneår for investeringskostnader er endret fra KPI til byggekostnadsindeks. Rettet resultatvisning av Co2-utslipp for bimodale tog
B112: Mai Brit Svendsen | C112: 45008 | D112: 2.8.2 | E112: Saga V2.8.2 | F112: Rettet formelen for NNK i 4.1 Resultatark.
B113: Mari Baklund Størseth | C113: 45111 | D113: 2.8.3 | E113: Saga v2.8.3 | F113: Ikke publisert: Rettet opp karbonprisbane
B114: Mari Baklund Størseth | C114: 45111 | D114: 2.8.3 | E114: Saga v2.8.3 | F114: Ikke publisert: Oppdatert indekser i 1.5. Lagt inn ny indeks for lønnskostnad som bruker nominell årslønn for alle sektorer (SSB-tabell 11536). Denne brukes til å justere verdsettingen av tid til siste statistikkår. Verdien av liv og helse verdsettes fortsatt med BNP per innbygger.
B115: Mari Baklund Størseth | C115: 45111 | D115: 2.8.3 | E115: Saga v2.8.3 | F115: Ikke publisert: Rettet opp formel for reinvestering for komponenten annen. Levetiden kan settes til 5 år eller mer og vil da reinvesteres riktig antall ganger.
B116: Mari Baklund Størseth | C116: 45156 | D116: 2.8.4 | E116: Saga v2.8.4 | F116: Ikke publisert: Rettet opp indekser i prognoser og indekser
B117: Mari Baklund Størseth | C117: 45162 | D117: 2.8.4 | E117: Saga v2.8.4 | F117: Ikke publisert: Rettet opp feil for lastebilkilometer i data_tidsseriefigurer
B118: Mari Baklund Størseth | C118: 45216 | D118: 2.8.4 | E118: Saga v2.8.4 | F118: Ikke publisert: Økt alle tidsserier med 24 år
B119: Mari Baklund Størseth | C119: 45216 | D119: 2.8.4 | E119: Saga v2.8.4 | F119: Ikke publisert: Flere mindre feilrettinger i 1.5 Prognoser og indekser
B120: Mari Baklund Størseth | C120: 45216 | D120: 2.8.4 | E120: Saga v2.8.4 | F120: Ikke publisert: Flere mindre feilrettinger for prisjustering i 1.1 Standardsatser
B121: Mai Brit Svendsen | C121: 45209 | D121: 2.8.4 | E121: Saga v2.8.4 | F121: Ikke publisert: Lagt inn siste år med prognoser i 1.2 Forutsetninger
B122: Mai Brit Svendsen | C122: 45210 | D122: 2.8.4 | E122: Saga v2.8.4 | F122: Ikke publisert: Lagt inn BKI-justering for drift og vedlikeholde i 1.5 Prognoser og indekser
B123: Mai Brit Svendsen | C123: 45216 | D123: 2.8.4 | E123: Saga v2.8.4 | F123: Ikke publisert: Flyttet karbonprisbaner fra 1.1 Standardsatser til 1.5 Prognoser og indekser
B124: Mari Baklund Størseth | C124: 45216 | D124: 2.8.4 | E124: Saga v2.8.4 | F124: Ikke publisert: Endret formler i 3.1 Nyttestrøm fra å være avhengig av plasseringen av SerieÅr i riktig kolonne
B125: Mai Brit Svendsen | C125: 45216 | D125: 2.8.4 | E125: Saga v2.8.4 | F125: Ikke publisert: Endret prisjustering fra KPI til BKI DV for vedlikehold av infrastruktur i 1.1 Standardsatser og 3.1 Nyttestrøm
B126: Mari Baklund Størseth | C126: 45216 | D126: 2.8.4 | E126: Saga v2.8.4 | F126: Ikke publisert: Flyttet CO2-avgiftsbane fra 1.1 Standardsatser til 1.5 Prognoser og indekser
B127: Mari Baklund Størseth | C127: 45251 | D127: 2.9 | E127: Saga v2.9 | F127: Oppdatert prognoser for utslipp og kjøretøykilometer for veitrafikk basert på TØI og NB23-banen. Se inndataark.
B128: Mari Baklund Størseth | C128: 45252 | D128: 2.9 | E128: Saga v2.9 | F128: Lagt inn KPI-justering i 3.1 Nyttestrøm for byggeutslipp og utslipp fra arealbeslag.
B129: Mari Baklund Størseth | C129: 45252 | D129: 2.9 | E129: Saga v2.9 | F129: Rettet opp feil i prognose for CO2-utslipp for veitransport og kjøretøykm for buss.
B130: Tormod Wergeland Haug | C130: 45254 | D130: 2.9 | E130: Saga v2.9 | F130: Funksjonalitet for å vurdere to forskjellige togtyper samtidig
B131: Mari Baklund Størseth | C131: 45265 | D131: 2.9 | E131: Saga v2.9 | F131: Oppdatert avgiftssatser og energikostnader i Standardsatser-Forutsetninger. Rettet kroneår for avgifter til staten.
B132: Mari Baklund Størseth | C132: 45282 | D132: 2.9 | E132: Saga v2.9 | F132: Oppdatert karbonprisbaner for 2024
B133: Mari Baklund Størseth | C133: 45288 | D133: 2.9 | E133: Saga v2.9 | F133: Rettet opp summeringer i 2.1 Trafikanter, overført trafikk i 1.3 Persontransportmodell, vedlikeholdskostnader i 2.5 Investeringer + vedlikehold og togkm i 2.4 Samfunnet for øvrig slik at alle verdiene av togtype 2 kommer med.
B134: Mari Baklund Størseth | C134: 45357 | D134: 2.9 | E134: Saga v2.9 | F134: Oppdatert 1.5 Prognoser og indekser
B135: Mari Baklund Størseth | C135: 45365 | D135: 2.9 | E135: Saga v2.9 | F135: Justert serie for utslipp fra lastebil, bruker ikke lenger en flat utvikling frem til 2034.
B136: Mari Baklund Størseth | C136: 45392 | D136: 2.9.1 | E136: Saga v2.9.1 | F136: Netto nytte per kostnadskrone fjernet fra hovedresultater.
B137: Mari Baklund Størseth | C137: 45530 | D137: 2.9.2 | E137: Saga v2.9.2 | F137: Endret beregning for marginale slitasjekostnader. EzFreight beregner kun endring i trafikkarbeid, dersom dette kun legges inn i differansefeltet blir ikke endring i marginale slitasjekostnader beregnet. Det er derfor lagt inn en =HVIS() i differansekolonnen i beregningsarket for vedlikeholdskostnader på jernbane (arkfane 2.5), slik at beregningen av den marginale slitasjekostnaden skjer der istedenfor i både referanse og tiltakskolonnen.
B138: Mari Baklund Størseth | C138: 45530 | D138: 2.9.2 | E138: Saga v2.9.2 | F138: Justert diselforbruk for godstog basert på nye datakilder fra 7,7 (TØI) til 4,9 l/km.
B139: Mari Baklund Størseth | C139: 45530 | D139: 2.9.2 | E139: Saga v2.9.2 | F139: Rettet opp feil i formel i celle I81 arkfane 3.1
B140: Mari Baklund Størseth | C140: 45548 | D140: 2.9.2 | E140: Saga v2.9.2 | F140: Oppdatert framtidig vekst i BNP per innbygger iht. Perpektivmeldingen 2024.
B141: Mari Baklund Størseth | C141: 45548 | D141: 2.9.2 | E141: Saga v2.9.2 | F141: Oppdatert befolkningsframskrivinger fra SSB.

Sheet 0.4 Kilder
B5: Kilder
B6: Navn på kilde i verktøyet | C6: Full kilde | D6: Nettside | E6: Kommentar
B7: Bane NOR (2017) | C7: Teknisk regelverk: Kontaktledning/Prosjektering/Generelle tekniske krav | D7: https://trv.jbv.no/wiki/Kontaktledning/Prosjektering/Generelle_tekniske_krav
B8: Bane NOR (2017) | C8: Teknisk regelverk: Bruer og konstruksjoner/Prosjektering og bygging/Generelle tekniske krav | D8: https://trv.jbv.no/wiki/Bruer_og_konstruksjoner/Prosjektering_og_bygging/Generelle_tekniske_krav | E8: ="" -> 
B9: Bane NOR (2017) | C9: Teknisk regelverk: 4 Tekniske løsninger | D9: https://trv.jbv.no/wiki/Kontaktledning/Prosjektering/Generelle_tekniske_krav#Tekniske_l.C3.B8sninger | E9: ="" -> 
B10: Bane NOR (2017) | C10: Bane NOR: Infrastrukturavgifter, Implementeringsplan | D10: http://www.banenor.no/globalassets/kundeportal/dokumenter/infrastrukturpriser/implementeringsplan_infrastrukturavgifter_20170714.pdf
B11: Bane NOR (2020) | C11: Network Statement: 6.3.1 Den minste pakken med tjenester | D11: http://networkstatement.jbv.no/doku.php?id=ns2020no:priser#den_minste_pakken_med_tjenester2
B12: Bane NOR (2022) | C12: Network Statement: 5.3 Den minste pakken med tjenester og priser | D12: 5. Tjenester og priser [Network statement] (banenor.no)
B13: Bane NOR (2023) | C13: Netword Statement: 5.3.3 Priser for den minste pakken med tjenester | D13: 5. Tjenester og priser [Network statement] (banenor.no)
B14: Chalmers University of Technology (2012) | C14: Chalmers University of Technology: Particle Emissions from Ships: Dependence on Fuel Type. | D14: https://www.tandfonline.com/doi/abs/10.3155/1047-3289.59.12.1391
B15: ECON-rapport 2003-054 | C15: ECON-rapport 2003-054. Eksterne marginale kostnader ved transport. | D15: https://www.jernbanedirektoratet.no/contentassets/03a365b2dcf04eb6a1779a34752a0fb6/econ-054-2003_eksterne-marginale-kostnader-ved-transport.pdf
B16: European Commission (2014) | C16: European Commission: Update of the Handbook on External Costs of Transport | D16: https://ec.europa.eu/transport/sites/transport/files/themes/sustainable/studies/doc/2014-handbook-external-costs-transport.pdf
B17: Finansdepartementet (2016-2017) | C17: Finansdepartementet (2016): Prop.1 LS: Skatter, avgifter og toll 2017. | D17: https://www.regjeringen.no/no/dokumenter/prop.-1-ls-ls0-20162017/id2514108/ | E17: ="" -> 
B18: Helsedirektoratet (2010) | C18: Helsedirektoratet (2010): Forslag til oppdatering av reduserte helsekostnader for gående og syklende i Håndbok 140. | D18: https://helsedirektoratet.no/Documents/Statistikk%20og%20analyse/Samfunns%C3%B8konomiske%20analyser/Notat%20til%20Vegdirektoratet%20om%20oppdaterte%20helsekostnader.pdf
B19: Helsedirektoratet (IS-1794) | C19: Helsedirektoratet (2010): Vunne kvalitetsjusterte leveår (QALYs) ved fysisk aktivitet. Rapport IS-1794. | D19: https://helsedirektoratet.no/Lists/Publikasjoner/Attachments/92/Vunne-kvalitetsjusterte-levear-qalys-ved-fysisk-aktivitet-IS-1794.pdf
B20: Helsedirektoratet (2014) | C20: Helsedirektoratet (2014): Innspill til ny oppdatering av reduserte helsekostnader for gående og syklende, samt konsistensvurderinger av verdsetting av liv og helse anvendt i ulike sammenhenger i Statens vegvesens Håndbok 140. | D20: https://helsedirektoratet.no/Documents/Statistikk%20og%20analyse/Samfunns%C3%B8konomiske%20analyser/Notat%20til%20Vegdirektoratet%20om%20oppdaterte%20helsekostnader%20versjon%2029%20januar%202014.pdf
B21: Helsedirektoratet (2017) | C21: Helsedirektoratet (2017): Verdi på et kvalitetsjustert leveår (QALY) for sektorovergripende anvendelse i nytte-kostnadsanalyser. Eksempler på anvendelse for ulike skadegrader ved ulykker, luftforurensning, støy og fysisk aktivitet. Bakgrunnsdokument utarbeidet i forbindelse med revisjon av Helsedirektoratets veileder «Helseeffekter i samfunnsøkonomiske analyser». | D21: https://helsedirektoratet.no/Documents/Statistikk%20og%20analyse/Samfunns%C3%B8konomiske%20analyser/Verdi%20QALY%20og%20eksempler%20-%20Bakgrunnsdokument%20-%20Notat%20til%20DF%C3%98%20og%20VD%20versjon%204%20mai.pdf
B22: Jernbanedirektoratet (2017) | C22: Jernbanedirektoratet (2017): Trenklin versjon 3 - Dokumentasjon og brukerveiledning. | D22: https://www.jernbanedirektoratet.no/contentassets/c645017befc9469b8bc9ff1af7f27976/trenklin---versjon-3.pdf
B23: Jernbanedirektoratet (2017) | C23: Jernbanedirektoratet (2017): Jernbanedirektoratets begrepskatalog. 2. utgave. | D23: https://www.jernbanedirektoratet.no/globalassets/documenter/handboker/kapasitet-og-begrepskatalog/jernbanedirektoratets-begrepskatalog-2017-versjon-2.pdf
B24: Jernbanedirektoratet (2019) | C24: Jernbanedirektoratet (2019): Dokumentasjon av SAGA | D24: https://www.jernbanedirektoratet.no/saga
B25: Jernbanedirektoratet (2019) | C25: Jernbanedirektoratet (2019): Helseeffekter i transportetatenes nyttekostnadsanalyser | D25: https://www.jernbanedirektoratet.no/contentassets/03a365b2dcf04eb6a1779a34752a0fb6/helseeffekter-i-transportetatenes-nyttekostnadsanalyser.pdf
B26: Jernbanedirektoratet (2020) | C26: Jernbanedirektoratet: Passasjerbelegg buss 2018 | E26: Regnearket er ikke publisert. Kan fås ved henvendelse til Jernbanedirektoratet.
B27: Jernbaneverket (2015) | C27: Jernbaneverket (2015): Samlede vedlegg til metodehåndbok. | D27: http://www.jernbaneverket.no/contentassets/a3e2c5d145d04eaa95c04e6ebe036e44/metodehandbok-2015.pdf
B28: Jernbaneverket (2016) | C28: Jernbaneverket (2016): Estimering av kostnadsdrivere for vedlikehold ved jernbanen. | D28: https://www.jernbanedirektoratet.no/contentassets/03a365b2dcf04eb6a1779a34752a0fb6/estimering-av-vedlikeholdskostnader-jernbanen.pdf
B29: NLF (2017) | C29: NLF (2017): Infobank, Faktabank, Ordliste. Norges Lastebileier Forbund | D29: https://lastebil.no/Infobank/Faktabank/Ordliste
B30: Norges Bank (2018) | C30: Norges Bank (2017): Inflasjon | D30: https://www.norges-bank.no/Statistikk/Inflasjon/ | E30: Se også Lovdata, forskrift om pengepolitikken. § 1, tredje ledd.
B31: NOU (2012) | C31: NOU (2012): 16. Samfunnsøkonomiske analyser. Norges offentlig utredning | D31: https://www.regjeringen.no/no/dokumenter/nou-2012-16/id700821/?ch=1&q=
B32: NSB (2015) | C32: NSB (2015): Miljø- og samfunnsrapport, NSB persontog | D32: https://www.vy.no/globalassets/vy.no/filer-no/barekraft-og-samfunnsansvar/2015-miljo--og-samfunnsrapport.pdf | E32: ="" -> 
B33: NTP (2014-2023) | C33: NTP (2014-2013): Meld. St. 26. Samferdselsdepartementet | D33: http://www.ntp.dep.no/Forside/_attachment/502793/binary/813774?_ts=1400c273da8
B34: Oslo Economics (2017) | C34: Oslo Economics (2017): Beregning av elastisiteter for togreiser. Utført på vegne av Jernbanedirektoratet | D34: https://www.jernbanedirektoratet.no/contentassets/03a365b2dcf04eb6a1779a34752a0fb6/beregning-av-elastisiteter-for-togreiser.pdf
B35: Regjeringen (2010) | C35: Regjeringen (2010): Klimakur 2020 | D35: https://www.regjeringen.no/contentassets/3fd187d0cd8e49d48841d7f552d6e2f9/klimakur_170210.pdf
B36: Regjeringen (2014) | C36: Regjeringen (2014): Rundskriv R. Nr. R-109/14. Det Kongelige Finansdepartement. | D36: https://www.regjeringen.no/globalassets/upload/fin/vedlegg/okstyring/rundskriv/faste/r_109_2014.pdf | E36: ="" -> 
B37: Regjeringen (2014) | C37: Regjeringen.no (2014): Avgiftssatser 2015. | D37: https://www.regjeringen.no/no/dokumentarkiv/regjeringen-solberg/fin/Avgiftssatser-2015/id2005679/
B38: Regjeringen (2015) | C38: Regjeringen.no (2015): Avgiftssatser 2016. | D38: https://www.regjeringen.no/no/dokumentarkiv/regjeringen-solberg/fin/avgiftssatser-i-2015-og-foreslatte-satser-for-2016/id2457142/
B39: Regjeringen (2016) | C39: Regjeringen.no (2016): Avgiftssatser 2017. | D39: https://www.regjeringen.no/no/tema/okonomi-og-budsjett/skatter-og-avgifter/avgiftssatser-2017/id2514838/
B40: Regjeringen (2016) | C40: Regjeringen (2016): Skattesatser 2017 | D40: https://www.regjeringen.no/no/tema/okonomi-og-budsjett/skatter-og-avgifter/skattesatser-2017/id2514837/ | E40: ="" -> 
B41: Regjeringen (2017) | C41: Regjeringen.no (2017): Avgiftssatser 2018. | D41: https://www.regjeringen.no/no/tema/okonomi-og-budsjett/skatter-og-avgifter/avgiftssatser-2018/id2575160/
B42: Regjeringen (2017) | C42: Regjeringen (2017): Meld.St. 29 (2016-2017), Perspektivmeldingen 2017. | D42: https://www.regjeringen.no/contentassets/aefd9d12738d43078cbc647448bbeca1/no/pdfs/stm201620170029000dddpdfs.pdf | E42: ="" -> 
B43: Regjeringen (2018) | C43: Regjeringen.no (2018): Avgiftssatser 2019. | D43: https://www.regjeringen.no/no/tema/okonomi-og-budsjett/skatter-og-avgifter/avgiftssatser-2019/id2614443/
B44: Regjeringen (2019) | C44: Regjeringen.no (2019): Avgiftssatser 2020. | D44: https://www.regjeringen.no/no/tema/okonomi-og-budsjett/skatter-og-avgifter/avgiftssatser-2020/id2671008/ | E44: ="" -> 
B45: Regjeringen (2023) | C45: Regjeringen.no (2023): Avgiftssatser 2024. | D45: https://www.regjeringen.no/no/tema/okonomi-og-budsjett/skatter-og-avgifter/avgiftssatser-2024/id2997383/
B46: RVU (2005) | C46: TØI: Den nasjonale reisevaneundersøkelsen 2005. TØI-rapport 844/2006. | D46: https://www.toi.no/getfile.php?mmfileid=4186
B47: RVU (2009) | C47: TØI: Den nasjonale reisevaneundersøkelsen 2009. TØI-rapport 1130/2011. | D47: https://www.toi.no/getfile.php?mmfileid=16282
B48: RVU (2013/2014) | C48: TØI: Den nasjonale reisevaneundersøkelsen 2013/14. TØI-rapport 1383/2014. | D48: https://www.toi.no/getfile.php?mmfileid=39511
B49: Samferdselsdepartementet (2020) | C49: Samferdselsdepartementet (2020): Anbefaling om bruk av CO2-prisbane i NTP 2022-2033 | D49: https://www.jernbanedirektoratet.no/saga | E49: Se under Kilder
B50: SINTEF(2003) | C50: SINTEF (2003): Vurdering av fremtidig stallingsbehov for lokaltog i Oslo. | D50: http://jernbaneforskning.no/files/pages/555/2003-vurdering-av-framtidig-stallingsbehov-for-lokaltog-i-oslo-apen.pdf
B51: SINTEF(2021) | C51: SINTEF (2021) Gjennomgang av slitasjekostnader for godstransport på veg og jernbane | D51: Gjennomgang av slitasjekostnader for godstransport på veg og jernbane - SINTEF
B52: Skattedirektoratet (2017) | C52: Skattedirektoratet (2017): Avgifter på mineralske produkter mv. | D52: http://www.skatteetaten.no/globalassets/saravgifter/avgiftsrundskriv/2017-mineralske-produkter.pdf | E52: ="" -> 
B53: Skatteetaten (2020) | C53: Skatteetaten (2020). Merverdiavgift. | D53: https://www.skatteetaten.no/satser/merverdiavgift/
B54: SSB (2001) | C54: SSB (2001): Godstransport med norske lastebiler, 3. kvartal 2001. | D54: https://www.ssb.no/transport-og-reiseliv/statistikker/lbunasj/kvartal/2001-12-14
B55: SSB (2017) | C55: SSB (2017): Statistikkområde: Arbeid og lønn. | D55: http://www.ssb.no/arbeid-og-lonn?de=L%C3%B8nn+og+arbeidskraftkostnader | E55: For utregning av lønnsvekst
B56: SSB (2017) | C56: SSB (2017): Lønn, alle ansatte, 2016 | D56: https://www.ssb.no/arbeid-og-lonn/statistikker/lonnansatt/aar
B57: SSB (2020) | C57: SSB (2020): Konsumprisindeksen | D57: https://www.ssb.no/kpi
B58: SSB (2020) | C58: SSB (2020): Statistikkbanken, Nasjonalregnskap. Tabell: 09786. Reallønn | D58: https://www.ssb.no/statbank/table/09786 | E58: Reallønn. Årslønn, påløpt i 2010-priser. Indeks (2010=100)
B59: SSB (2020) | C59: SSB (2020): Statistikkbanken, Nasjonalregnskap. Tabell: 09842. BNP | D59: https://www.ssb.no/statbank/table/09842 | E59: BNP og andre hovedstørrelser (kr per innbygger) 1970 - 2016
B60: SSB (2020) | C60: SSB (2020): Statistikkbanken, Nasjonalregnskap. Tabell 09842. BKI | D60: https://www.ssb.no/statbank/table/08658/ | E60: Byggekostnadsindeks for veganlegg (1. kv. 2004=100), etter veganlegg.
B61: SSB (2020) | C61: SSB (2020): Nasjonale befolkningsframskrivinger. Tabell 12881. Hovedalternativ MMM | D61: https://www.ssb.no/statbank/table/12881/ | E61: Folkemengden per 1. januar frem til år 2100
B62: SSB (2022) | C62: SSB (2022): Nasjonale befolkningsframskrivninger. Tabell 13599. Hovedalternativ MMM | D62: https://www.ssb.no/statbank/table/13599 | E62: Folkemengden per 1. januar frem til år 2100
B63: Statsbudsjettet (2009) | C63: Statsbudsjettet (2009): Finansdepartementet 2008-2009. | D63: http://www.statsbudsjettet.no/Upload/Statsbudsjett_2009/dokumenter/pdf/gulbok.pdf
B64: Statsbudsjettet (2013) | C64: Statsbudsjettet (2013): Finansdepartementet 2012-2013. | D64: http://www.statsbudsjettet.no/upload/Statsbudsjett_2013/dokumenter/pdf/gulbok.pdf
B65: Statens vegvesen (1995) | C65: Statens vegvesen (1995): Håndbok 140 (2014). Konsekvensanalyser. | D65: http://www.vegvesen.no/_attachment/603144/binary/951955?fast_title=Revidert+HB+140+%E2%80%93+h%C3%B8ringsutgave.pdf
B66: Statens vegvesen (2007) | C66: Statens vegvesen (2007): Håndbok 115 (2007). Analyse av ulykkessteder. Vedleggsdel for manuelle beregninger. | D66: http://www.vegvesen.no/_attachment/61432/binary/14139
B67: TØI-rapport 1081/1997 | C67: TØI (1997): Ulykkeskostnader for jernbanen. TØI-rapport 1081/1997. | D67: https://www.toi.no/getfile.php?mmfileid=12239
B68: TØI-rapport 464/1999 | C68: TØI (1999): Marginale kostnader ved transportvirksomhet.Transportøkonomisk Institutt (1999). TØI-rapport 464/1999: | D68: https://www.toi.no/getfile.php?mmfileid=1929
B69: TØI-rapport 472/2000 | C69: TØI (2000): Jernbanens kjørevegsavgift. TØI-rapport 472/2000. | D69: https://www.toi.no/getfile.php?mmfileid=5998
B70: TØI-rapport 567/2002 | C70: TØI (2002): Gang- og sykkelvegnett i norske byer. Nytte-kostnadsanalyser inkludert helseeffekter og eksterne kostnader av motorisert vegtrafikk. TØI-rapport 567/2002. | D70: https://www.toi.no/getfile.php?mmfileid=2385
B71: TØI-rapport 1050/2009 | C71: TØI (2009): Flere i hver bil? Status og potensial for endring av bilbelegget i Norge. TØI-rapport 1050/2009. | D71: https://www.toi.no/getfile.php?mmfileid=13925
B72: TØI-rapport 1053/2010 | C72: TØI (2010): Den norske verdsettingsstudien. TØI-rapport 1053/2010. | D72: https://www.toi.no/getfile.php?mmfileid=16111
B73: TØI-rapport 1053B/2010 | C73: TØI (2010): Den norske verdsettingsstudien. Tid. TØI-rapport 1053B/2010. | D73: https://www.toi.no/getfile.php?mmfileid=16693
B74: TØI-rapport 1307/2014 | C74: TØI (2014): Marginale eksterne kostnader ved vegtrafikk. (revidert 2016). TØI-rapport 1307/2014. | D74: https://www.toi.no/getfile.php?mmfileid=38978 | E74: ="" -> 
B75: TØI-rapport 1313/2014 | C75: TØI (2014): Marginale eksterne kostnader for godstransport på sjø og jernbane – en forstudie. TØI-rapport 1313/2014. | D75: https://www.toi.no/getfile.php?mmfileid=36274
B76: TØI-rapport 1446/2015 | C76: TØI (2015): Dokumentasjon: GodsNytte-modellen. TØI-rapport 1446/2015. | D76: https://www.toi.no/getfile.php?mmfileid=43463
B77: TØI-rapport 1424/2015 | C77: TØI (2015): Potensiale og virkemidler for overføring av gods fra veg- til sjøtransport. TØI-rapport 1424/2015. | D77: https://www.toi.no/getfile.php/Publikasjoner/T%C3%98I%20rapporter/2015/1424-2015/1424-2015-sam.pdf
B78: TØI-rapport 1429/2015 | C78: TØI (2015): Nasjonal godstransportmodell. En innføring i bruk av modellen. TØI-rapport 1429/2015.
B79: TØI-rapport 1718/2019 | C79: TØI (2019): Framtidens transporter. Framskrivinger for person- og godstransport 2018-2050 | D79: https://www.toi.no/getfile.php?mmfileid=51596
B80: TØI-rapport 1558/2017 | C80: TØI (2017): Modellering av reisehensikts- og døgnfordelinger for togreiser. TØI-rapport 1558/2017. | D80: https://www.toi.no/getfile.php?mmfileid=44646
B81: TØI-rapport 1762/2020 | C81: TØI (2020): Verdsetting av reisetid og tidsavhengige faktorer (Verdsettingsstudien 2018-2020) | D81: https://www.toi.no/getfile.php?mmfileid=53108
B82: TØI-rapport 1689/2019 | C82: TØI (2019): Framskriving av kjøretøyparken i samsvar med nasjonalbudsjettet 2019. TØI rapport 1689/2019. | D82: https://www.toi.no/getfile.php?mmfileid=50202
B83: TØI-rapport 1704/2019 | C83: TØI (2019): Eksterne kostnader ved transport i Norge | D83: https://www.toi.no/getfile.php?mmfileid=52408
B84: Vista analyse (2015) | C84: Vista analyse (2015): Marginale eksterne kostnader ved transport av gods på sjø og bane. (54/2015) | D84: http://www.ntp.dep.no/Forside/_attachment/1595499/binary/1143639?_ts=15823d19e90
B86: Vista analyse (2020) | C86: Vista (2020): Kalkulasjonspris for CO2 og utslipp av CO2 i transportmodellene (2020/03) | D86: https://vista-analyse.no/site/assets/files/6776/va-rapport_2020-03_klimapris_og_utslipp_transport.pdf
B87: Wikipedia (2017) | C87: Wikipedia (2017): Diesel (oppdatert 5.5.2017) | D87: https://no.wikipedia.org/wiki/Diesel | E87: ="" -> 
B88: Regjeringen (2021) | C88: Regjeringen (2021): Meld.St. 14 (2020-2021), Perspektivmeldingen 2021. | D88: Meld. St. 14 (2020–2021) (regjeringen.no)
B89: SSB (2022) Bilpark | C89: Bilparken for 2021 | D89: https://www.ssb.no/transport-og-reiseliv/faktaside/bil-og-transport
B90: Avinor (2019) | C90: Flybevegelser og passasjerer 2019 | D90: Trafikkstatistikk - Avinor
B91: Regjeringen (2020) | C91: Regjeringen.no (2020): Avgiftssatser 2021. | D91: Avgiftssatser 2021 - regjeringen.no
B92: Regjeringen (2021) Avgiftssatser | C92: Regjeringen.no (2021): Avgiftssatser 2022. | D92: Avgiftssatser 2022 - regjeringen.no
B93: Regjeringen (2022)Avgiftssatser | C93: Regjeringen (2022): Avgiftssatser 2023. | D93: Avgiftssatser 2023 - regjeringen.no
B94: Regjeringen (2022) Karbonprisbaner | C94: Regjeringen.no (2022): Karbonprisbaner for bruk i samfunnsøkonomiske analyser. | D94: Karbonprisbaner for bruk i samfunnsøkonomiske analyser - regjeringen.no
B95: TØI-rapport 1918/2022, rev. 1 | C95: TØI (2022): Framskrivinger for godstransport til NTP 2025-2036 | D95: Framskrivinger for godstransport til NTP 2025-2036 (toi.no)
B96: TØI-rapport 1926/2022 | C96: TØI (2022): Framskrivinger for persontransport til NTP 2025-2036 | D96: Framskrivinger for persontransport til NTP 2025-2036 (toi.no)

Sheet Standardsatser-Forutsetninger (hidden)
B8: Beregning til "1.1 Standardsatser"
B9: ='1.1 Standardsatser'!$B$133 -> Helseeffekter | C9: Sats | D9: Benevning | E9: Opprinnelig Kroneår | AE9: ="" -> 
B10: =CONCATENATE('1.1 Standardsatser'!$B$134," - ",'1.1 Standardsatser'!$B$135) -> Tilbringerreiser med gang/sykkel - Verdsetting av helseeffekter | C10: =(F10+J10+H10+L10)/2 -> 20.145 | D10: Kr/km | E10: 2012 | F10: 3.31 | G10: Kr/km | H10: 1.71 | I10: Kr/km | J10: 21.6 | K10: Kr/km | L10: 13.67 | M10: Kr/km | AD10: Representerer helseeffekten for at gående/syklende ikke tar ut sykefravær på kort sikt og redusert risiko for kronisk sykdom. Antar lik fordeling av kortvarig sykefravær og kronisk sykdom, og at det summeres for gående og syklende. Det forutsettes at verdien på et statistisk liv er 30 mill. 2012-kr. Se Jernbanedirektoratet.no/Saga for eksakte tall. | AE10: ="" -> 
B11: ='1.1 Standardsatser'!$B$136 -> Avgifter til staten (ekskl. CO2-avgift) | AE11: ="" -> 
B12: =CONCATENATE('1.1 Standardsatser'!$B$137," - ",'1.1 Standardsatser'!$B$139) -> Persontog - Diesel | C12: =(F12*P12) -> 1.454822208 | D12: Kr/togkm | E12: =$E$23 -> 2024 | F12: =Drivstofforbruk_PersontogD -> 1.44 | G12: ='1.2 Forutsetninger'!D360 -> l/km | H12: =NOx_KgPerTonn_Diesel -> 47 | I12: ='1.2 Forutsetninger'!$D$351 -> Kg/tonn | J12: =Massetetthet_Diesel -> 0.84 | K12: ='1.2 Forutsetninger'!$D$354 -> Kg/l | L12: =H12*J12/1000 -> 0.03948 | M12: Kg/l | N12: =$C$23 -> 25.59 | O12: =D23 -> Kr/kg | P12: =L12*N12 -> 1.0102932 | Q12: Kr/l | AD12: Beregnet ut i fra drivstofforbruket og de ulike avgiftene som påløper per liter drivstoff. | AE12: ="" -> 
B13: =CONCATENATE('1.1 Standardsatser'!$B$140," - ",'1.1 Standardsatser'!$B$141) -> Godstog - Elektrisk | C13: =J13 -> 9.35 | D13: =K13 -> kr/togkm | E13: =$E$23 -> 2024 | F13: =Togvekt_Godstog -> 650 | G13: ='1.2 Forutsetninger'!$D$250 -> Tonn | H13: =IF(RabattSporavgift="Ja",RabattfaktorSporavgift,0) -> 0 | I13: Prosent | J13: =C26*(1-H13) -> 9.35 | K13: kr/togkm
B14: =CONCATENATE('1.1 Standardsatser'!$B$140," - ",'1.1 Standardsatser'!$B$142) -> Godstog - Diesel | C14: =F14*P14+V14 -> 14.30043668 | D14: Kr/togkm | E14: =$E$23 -> 2024 | F14: =Drivstofforbruk_GodstogD -> 4.9 | G14: l/km | H14: =NOx_KgPerTonn_Diesel -> 47 | I14: ='1.2 Forutsetninger'!$D$351 -> Kg/tonn | J14: =Massetetthet_Diesel -> 0.84 | K14: ='1.2 Forutsetninger'!$D$354 -> Kg/l | L14: =H14*J14/1000 -> 0.03948 | M14: Kg/l | N14: =$C$23 -> 25.59 | O14: Kr/kg | P14: =L14*N14 -> 1.0102932 | Q14: Kr/l | T14: =IF(RabattSporavgift="Ja",RabattfaktorSporavgift,0) -> 0 | U14: Prosent | V14: =C26*(1-T14) -> 9.35 | W14: Kr/togkm | AD14: Beregnet ut i fra drivstofforbruket og de ulike avgiftene som påløper per liter drivstoff. | AE14: ="" -> 
B15: =CONCATENATE('1.1 Standardsatser'!$B$143," - ",'1.1 Standardsatser'!$B$144) -> Andre transportmidler - Personbil | C15: =J15*F15*N15+L15*H15*P15 -> 0.1569605121 | D15: Kr/kjøretøykm | E15: =$E$21 -> 2024 | F15: =Drivstofforbruk_Bil_Diesel -> 0.06093553416 | G15: ='1.2 Forutsetninger'!$D$365 -> l/km | H15: =Drivstofforbruk_Bil_Bensin -> 0.061487968 | I15: ='1.2 Forutsetninger'!$D$364 -> l/km | J15: =C21 -> 2.71 | K15: =D21 -> Kr/l | L15: =C22 -> 4.62 | M15: =D22 -> Kr/l | N15: =Bilparken_Bil_Diesel -> 0.4179294652 | O15: Prosent | P15: =Bilparken_Bil_Bensin -> 0.3095865088 | Q15: Prosent | AD15: Beregnet ut i fra drivstofforbruket og de ulike avgiftene som påløper per liter drivstoff. Det er forskjell mellom bensin og diesel, derfor er disse satsene vektet med andel av bilparken.
B16: =CONCATENATE('1.1 Standardsatser'!$B$143," - ",'1.1 Standardsatser'!$B$145) -> Andre transportmidler - Buss | C16: =H16*F16 -> 1.0717318 | D16: Kr/kjøretøykm | E16: =$E$21 -> 2024 | F16: =Drivstofforbruk_Buss -> 0.3954729888 | G16: ='1.2 Forutsetninger'!D366 -> l/km | H16: =C21 -> 2.71 | I16: =D21 -> Kr/l | AD16: Beregnet ut i fra drivstofforbruket og de ulike avgiftene som påløper per liter drivstoff. | AE16: ="" -> 
B17: =CONCATENATE('1.1 Standardsatser'!$B$143," - ",'1.1 Standardsatser'!$B$146) -> Andre transportmidler - Lett lastebil | C17: =H17*F17 -> 0.7038786206 | D17: Kr/kjøretøykm | E17: =$E$21 -> 2024 | F17: =Drivstofforbruk_LettLastebil -> 0.2597338083 | G17: ='1.2 Forutsetninger'!D367 -> l/km | H17: =C21 -> 2.71 | I17: =D21 -> Kr/l | AD17: Beregnet ut i fra drivstofforbruket og de ulike avgiftene som påløper per liter drivstoff. | AE17: ="" -> 
B18: =CONCATENATE('1.1 Standardsatser'!$B$143," - ",'1.1 Standardsatser'!$B$147) -> Andre transportmidler - Tung lastebil og modulvogntog | C18: =H18*F18 -> 1.199175 | D18: Kr/kjøretøykm | E18: =$E$21 -> 2024 | F18: =Drivstofforbruk_TungLastebil -> 0.4425 | G18: ='1.2 Forutsetninger'!D368 -> l/km | H18: =C21 -> 2.71 | I18: =D21 -> Kr/l | AD18: Beregnet ut i fra drivstofforbruket og de ulike avgiftene som påløper per liter drivstoff. | AE18: ="" -> 
B19: =CONCATENATE('1.1 Standardsatser'!$B$143," - ",'1.1 Standardsatser'!$B$148) -> Andre transportmidler - Skip | C19: =L19+F19*N19 -> 28.26437723 | D19: Kr/fartøykm | E19: =$E$23 -> 2024 | F19: =Drivstofforbruk_Skip -> 32.24660295 | G19: ='1.2 Forutsetninger'!D369 -> l/km | H19: =NOxUtslipp_Skip -> 912.9696592 | I19: ='1.2 Forutsetninger'!D315 -> G/fartøykm | J19: =C23 -> 25.59 | K19: =D23 -> Kr/kg | L19: =(H19)*J19/1000 -> 23.36289358 | M19: Kr/km | N19: =C24 -> 0.152 | O19: =D24 -> Kr/l | AD19: Beregnet ut i fra drivstofforbruket og de ulike avgiftene som påløper per liter drivstoff.
B20: Avgiftssatser
B21: Veibruksavgift diesel | C21: 2.71 | D21: Kr/l | E21: 2024 | F21: =Massetetthet_Diesel -> 0.84 | G21: Kg/l | H21: =(Veibruksavgift_krprliter_diesel/F21)*1000 -> 3226.190476 | I21: Kr/tonn | AD21: Avgift satt av staten. Kilde: Regjeringen (2023), Avgiftssatser 2024 | AE21: ="" -> 
B22: Veibruksavgift bensin | C22: 4.62 | D22: Kr/l | E22: 2024 | AD22: Avgift satt av staten. Kilde: Regjeringen (2023), Avgiftssatser 2024
B23: NOx-avgift | C23: 25.59 | D23: Kr/kg | E23: 2024 | AD23: Avgift satt av staten. Kilde: Regjeringen (2023), Avgiftssatser 2024
B24: Svovelavgift | C24: =15.2/100 -> 0.152 | D24: Kr/l | E24: 2024 | AD24: Avgift satt av staten. Kilde: Regjeringen (2023), Avgiftssatser 2024
B25: Sporavgift - person | C25: 9.35 | D25: Kr/togkm | E25: 2024 | AD25: Sporavgift: grunnpris persontog øvrige strekninger. Bane NOR, Network statement (2023)
B26: Sporavgift - gods | C26: 9.35 | D26: Kr/togkm | E26: 2024 | F26: ='1.2 Forutsetninger'!D94 -> 0.75 | G26: Prosent | AD26: Sporavgift: grunnpris godstog øvrige strekninger. Bane NOR, Network statement (2023)
B27: ='1.1 Standardsatser'!$B$149 -> Vedlikeholdskostnader infrastruktur | AE27: ="" ->  | AF27: =IF(COUNTBLANK(C27)=0,"Finn forutsetninger","") -> 
B28: =CONCATENATE('1.1 Standardsatser'!$B$150," - ",'1.1 Standardsatser'!$B$155) -> Tog - Persontog - slitasje | C28: =F28*J28 -> 9.35 | D28: Kr/settkm | E28: =E25 -> 2024 | F28: =C25 -> 9.35 | G28: =D25 -> Kr/togkm | J28: =IFERROR('1.3 Persontransportmodell'!E32/('1.3 Persontransportmodell'!E33+'1.3 Persontransportmodell'!E34),1) -> 1 | K28: Sett | AD28: Slitasjekostnad per bruttotonn km*gjennomsnittsvekt av et persontog.
B29: =CONCATENATE('1.1 Standardsatser'!$B$150," - ",'1.1 Standardsatser'!$B$156) -> Tog - Godstog - slitasje | C29: 18.08 | D29: Kr/togkm | E29: 2020 | AD29: Omfatter kun marginalkostnaden for vedlikehold, reinvestering dekkes i 2.5 investeringer og reinvesteringer. SINTEF rapport 2020 som oppfølging av TØI 1704/2019 konkluderer med at satsene for reinvestering er i 1704 er for usikre pga for kort tidsserie.
B30: ='1.1 Standardsatser'!B157 -> Andre transportmidler
B31: ='1.1 Standardsatser'!B161 -> Tung lastebil og modulvogntog - slitasje | C31: =AVERAGE(F31,H31) -> 0.775 | D31: Kr/kjøretøykm | E31: 2020 | F31: 0.4 | G31: kr/storlastebilkm | H31: 1.15 | I31: kr/trailerogvogntogkm | AD31: SINTEF rapport 2021 oppfølging av TØI 1704/2019 om slitasjekostnader. 0,08 og 0,23 for dekkeslitasje for hhv stor lastebil og tung lastebil/trailer som utgjør 20% av totale slitasjekostnader 0,08/0,2 og 0,23/0,2 gir 0,4 og 1,15. Rapport ligger i underlagsmappa.
B32: ='1.1 Standardsatser'!$B$162 -> Lønnkostnader for personell på tog | AE32: ="" -> 
B33: =CONCATENATE('1.1 Standardsatser'!$B$163," - ",'1.1 Standardsatser'!$B$164) -> Lønn per time inkl. sosiale kostnader - Lokomotivfører | C33: =(F33*(1+H33))*(1+J33)*(1+L33)/N33 -> 776.4324324 | D33: Kr per time | E33: 2016 | F33: 700000 | G33: Kr | H33: 0.14 | I33: prosent | J33: 0.2 | K33: prosent | L33: 0.5 | M33: prosent | N33: 1850 | O33: Timer | AD33: Det er inkludert t-baneførere som har lavere lønn enn lokomotivførerne. Derfor endrer vi gjennomsnittet fra 640 800 kr til 700 000. | AE33: ="" -> 
B34: =CONCATENATE('1.1 Standardsatser'!$B$163," - ",'1.1 Standardsatser'!$B$165) -> Lønn per time inkl. sosiale kostnader - Konduktør | C34: =(F34*(1+H34))*(1+J34)*(1+L34)/N34 -> 618.9275676 | D34: Kr per time | E34: 2016 | F34: 558000 | G34: Kr | H34: 0.14 | I34: prosent | J34: 0.2 | K34: prosent | L34: 0.5 | M34: prosent | N34: 1850 | O34: Timer | AD34: Det er antatt en gjennomsnittlig årslønn uavhengig av ansiennitet og alder. | AE34: ="" -> 
B35: ='1.1 Standardsatser'!B166 -> Driftskostnader tog
B36: =CONCATENATE('1.1 Standardsatser'!$B$180," - ",'1.1 Standardsatser'!B181) -> Energikostnad - S tog | C36: =F36*H36 -> 6.202625 | D36: Kr per settkm | E36: =$E$60 -> 2023 | F36: =kWhSettkm_Stog -> 7.15 | G36: kWh/settkm | H36: =$C$60 -> 0.8675 | I36: =$D$60 -> Kr per kWh | AD36: Energikostnaden for elektriske tog er beregnet ved å bruke forutsetningen om energiforbruket og energikostnaden per kWh.
B37: =CONCATENATE('1.1 Standardsatser'!$B$180," - ",'1.1 Standardsatser'!B182) -> Energikostnad - Type 75 | C37: 6.15925 | D37: Kr per settkm | E37: =$E$60 -> 2023 | F37: =kWhSettkm_75 -> 7.1 | G37: kWh/settkm | H37: 0.8675 | I37: =$D$60 -> Kr per kWh | AD37: Energikostnaden for elektriske tog er beregnet ved å bruke forutsetningen om energiforbruket og energikostnaden per kWh.
B38: =CONCATENATE('1.1 Standardsatser'!$B$180," - ",'1.1 Standardsatser'!B183) -> Energikostnad - Type 74 | C38: 5.29175 | D38: Kr per settkm | E38: =$E$60 -> 2023 | F38: =kWhSettkm_74 -> 6.1 | G38: kWh/settkm | H38: 0.8675 | I38: =$D$60 -> Kr per kWh | AD38: Energikostnaden for elektriske tog er beregnet ved å bruke forutsetningen om energiforbruket og energikostnaden per kWh.
B39: =CONCATENATE('1.1 Standardsatser'!$B$180," - ",'1.1 Standardsatser'!B184) -> Energikostnad - Type 72 | C39: =F39*H39 -> 6.15925 | D39: Kr per settkm | E39: =$E$60 -> 2023 | F39: =kWhSettkm_72 -> 7.1 | G39: kWh/settkm | H39: 0.8675 | I39: =$D$60 -> Kr per kWh | AD39: Energikostnaden for elektriske tog er beregnet ved å bruke forutsetningen om energiforbruket og energikostnaden per kWh.
B40: =CONCATENATE('1.1 Standardsatser'!$B$180," - ",'1.1 Standardsatser'!B185) -> Energikostnad - Type 78 | C40: 5.899 | D40: Kr per settkm | E40: =$E$60 -> 2023 | F40: =kWhSettkm_78 -> 6.8 | G40: kWh/settkm | H40: 0.8675 | I40: =$D$60 -> Kr per kWh | AD40: Energikostnaden for elektriske tog er beregnet ved å bruke forutsetningen om energiforbruket og energikostnaden per kWh.
B41: =CONCATENATE('1.1 Standardsatser'!$B$180," - ",'1.1 Standardsatser'!B186) -> Energikostnad - Type 77 | C41: =F41*H41 -> 4.9274 | D41: Kr per settkm | E41: 2021 | F41: =kWhSettkm_77 -> 5.68 | G41: kWh/settkm | H41: 0.8675 | I41: Kr per kWh | AD41: Energikostnaden for elektriske tog er beregnet ved å bruke forutsetningen om energiforbruket og energikostnaden per kWh.
B42: =CONCATENATE('1.1 Standardsatser'!$B$180," - ",'1.1 Standardsatser'!B187) -> Energikostnad - Type 93D | C42: 13.113 | D42: Kr per settkm | E42: =E61 -> 2023 | F42: =Drivstofforbruk_93 -> 0.93 | G42: ='1.2 Forutsetninger'!D357 -> l/km | H42: =C61 -> 14.1 | I42: =D61 -> Kr/l | AD42: Energikostnaden for dieseltog er basert på en dieselpris og et gjennomsnittlig forbruk til det aktuelle materiellet.
B43: =CONCATENATE('1.1 Standardsatser'!$B$180," - ",'1.1 Standardsatser'!B188) -> Energikostnad - Type 76 (diesel) | C43: 25.944 | D43: Kr per settkm | E43: =E61 -> 2023 | F43: =Drivstofforbruk_76 -> 1.84 | G43: ='1.2 Forutsetninger'!D359 -> l/km | H43: =C61 -> 14.1 | I43: =D61 -> Kr/l | AD43: Energikostnaden for dieseltog er basert på en dieselpris og et gjennomsnittlig forbruk til det aktuelle materiellet.
B44: =CONCATENATE('1.1 Standardsatser'!$B$180," - ",'1.1 Standardsatser'!B189) -> Energikostnad - Type 76 (elektrisk) | C44: =F44*H44 -> 6.328 | D44: Kr per settkm | E44: 2021 | F44: =11.3*0.8 -> 9.04 | G44: kWh/settkm | H44: 0.7 | I44: Kr per kWh | AD44: Energikostnaden for elektriske tog er beregnet ved å bruke forutsetningen om energiforbruket og energikostnaden per kWh.
B45: =CONCATENATE('1.1 Standardsatser'!$B$180," - ",'1.1 Standardsatser'!B190) -> Energikostnad - Elektrisk lokomotiv (EL18) | C45: 6.15925 | D45: Kr per settkm | E45: =$E$60 -> 2023 | F45: =kWhSettkm_LokEL -> 7.1 | G45: kWh/settkm | H45: =$C$60 -> 0.8675 | I45: =$D$60 -> Kr per kWh | AD45: Energikostnaden for elektriske tog er beregnet ved å bruke forutsetningen om energiforbruket og energikostnaden per kWh.
B46: =CONCATENATE('1.1 Standardsatser'!$B$180," - ",'1.1 Standardsatser'!B191) -> Energikostnad - Diesel lokomotiv (Di4) | C46: 43.71 | D46: Kr per settkm | E46: =E61 -> 2023 | F46: =Drivstofforbruk_LokD -> 3.1 | G46: ='1.2 Forutsetninger'!D358 -> l/km | H46: =C61 -> 14.1 | I46: =D61 -> Kr/l | AD46: Energikostnaden for dieseltog er basert på en dieselpris og et gjennomsnittlig forbruk til det aktuelle materiellet.
B47: =CONCATENATE('1.1 Standardsatser'!$B$218," - ",'1.1 Standardsatser'!B219) -> Rengjøringskostnad - S tog | C47: 3000 | D47: Kr per dag | E47: =$E$62 -> 2016 | F47: =Vogner_Stog -> 4 | G47: ='1.2 Forutsetninger'!D255 -> Vogner | H47: =$C$62 -> 750 | I47: =$D$62 -> Kr per vogn | AD47: Rengjøringskostnaden er antall vogner ganget med rengjøring per vogn.
B48: =CONCATENATE('1.1 Standardsatser'!$B$218," - ",'1.1 Standardsatser'!B220) -> Rengjøringskostnad - Type 75 | C48: =F48*H48 -> 3750 | D48: Kr per dag | E48: =$E$62 -> 2016 | F48: =Vogner_75 -> 5 | G48: ='1.2 Forutsetninger'!D256 -> Vogner | H48: =$C$62 -> 750 | I48: =$D$62 -> Kr per vogn | AD48: Rengjøringskostnaden er antall vogner ganget med rengjøring per vogn.
B49: =CONCATENATE('1.1 Standardsatser'!$B$218," - ",'1.1 Standardsatser'!B221) -> Rengjøringskostnad - Type 74 | C49: 3750 | D49: Kr per dag | E49: 2016 | F49: =Vogner_74 -> 5 | G49: ='1.2 Forutsetninger'!D257 -> Vogner | H49: 750 | I49: Kr per vogn | AD49: Rengjøringskostnaden er antall vogner ganget med rengjøring per vogn.
B50: =CONCATENATE('1.1 Standardsatser'!$B$218," - ",'1.1 Standardsatser'!B222) -> Rengjøringskostnad - Type 72 | C50: 3000 | D50: Kr per dag | E50: 2016 | F50: =Vogner_72 -> 4 | G50: ='1.2 Forutsetninger'!D258 -> Vogner | H50: 750 | I50: Kr per vogn | AD50: Rengjøringskostnaden er antall vogner ganget med rengjøring per vogn.
B51: =CONCATENATE('1.1 Standardsatser'!$B$218," - ",'1.1 Standardsatser'!B223) -> Rengjøringskostnad - Type 78 | C51: 3000 | D51: Kr per dag | E51: 2016 | F51: =Vogner_78 -> 4 | G51: ='1.2 Forutsetninger'!D259 -> Vogner | H51: 750 | I51: Kr per vogn | AD51: Rengjøringskostnaden er antall vogner ganget med rengjøring per vogn.
B52: =CONCATENATE('1.1 Standardsatser'!$B$218," - ",'1.1 Standardsatser'!B224) -> Rengjøringskostnad - Type 77 | C52: 3750 | D52: Kr per dag | E52: 2016 | F52: =Vogner_77 -> 5 | G52: ='1.2 Forutsetninger'!D260 -> Vogner | H52: =$C$62 -> 750 | I52: Kr per vogn | AD52: Rengjøringskostnaden er antall vogner ganget med rengjøring per vogn.
B53: =CONCATENATE('1.1 Standardsatser'!$B$218," - ",'1.1 Standardsatser'!B225) -> Rengjøringskostnad - Type 93D | C53: 1500 | D53: Kr per dag | E53: 2016 | F53: =Vogner_93D -> 2 | G53: ='1.2 Forutsetninger'!D261 -> Vogner | H53: 750 | I53: Kr per vogn | AD53: Rengjøringskostnaden er antall vogner ganget med rengjøring per vogn.
B54: =CONCATENATE('1.1 Standardsatser'!$B$218," - ",'1.1 Standardsatser'!B226) -> Rengjøringskostnad - Type 76 | C54: 3750 | D54: Kr per dag | E54: 2016 | F54: =Vogner_76 -> 5 | G54: ='1.2 Forutsetninger'!D262 -> Vogner | H54: 750 | I54: Kr per vogn | AD54: Rengjøringskostnaden er antall vogner ganget med rengjøring per vogn.
B55: =CONCATENATE('1.1 Standardsatser'!$B$218," - ",'1.1 Standardsatser'!B227) -> Rengjøringskostnad - Elektrisk lokomotiv (EL18) | C55: 750 | D55: Kr per dag | E55: 2016 | F55: =Vogner_LokEL -> 1 | G55: ='1.2 Forutsetninger'!D263 -> Vogn | H55: 750 | I55: Kr per vogn | AD55: Rengjøringskostnaden er antall vogner ganget med rengjøring per vogn.
B56: =CONCATENATE('1.1 Standardsatser'!$B$218," - ",'1.1 Standardsatser'!B228) -> Rengjøringskostnad - Diesel lokomotiv (Di4) | C56: 750 | D56: Kr per dag | E56: 2016 | F56: =Vogner_LokD -> 1 | G56: ='1.2 Forutsetninger'!D264 -> Vogn | H56: 750 | I56: Kr per vogn | AD56: Rengjøringskostnaden er antall vogner ganget med rengjøring per vogn.
B57: =CONCATENATE('1.1 Standardsatser'!$B$218," - ",'1.1 Standardsatser'!B229) -> Rengjøringskostnad - Sittevogn (type 5 og 7) | C57: 750 | D57: Kr per dag | E57: 2016 | F57: =Vogner_Sittevogn -> 1 | G57: ='1.2 Forutsetninger'!D265 -> Vogn | H57: 750 | I57: Kr per vogn | AD57: Rengjøringskostnaden er antall vogner ganget med rengjøring per vogn.
B58: =CONCATENATE('1.1 Standardsatser'!$B$218," - ",'1.1 Standardsatser'!B230) -> Rengjøringskostnad - Sovevogn | C58: 750 | D58: Kr per dag | E58: 2016 | F58: =Vogner_Sovevogn -> 1 | G58: ='1.2 Forutsetninger'!D266 -> Vogn | H58: 750 | I58: Kr per vogn | AD58: Rengjøringskostnaden er antall vogner ganget med rengjøring per vogn.
B59: Generelt
B60: Energikostnader Elektrisk | C60: =F60+H60 -> 0.8675 | D60: Kr per kWh | E60: 2023 | F60: =80/100 -> 0.8 | G60: Kr per kWh | H60: =(J60+L60+N60)/1000 -> 0.0675 | I60: Kr per kWh | J60: 51.5 | K60: Kr/MWh | L60: 13.3 | M60: Kr/MWh | N60: 2.7 | O60: Kr/MWh | AD60: Energikostnaden per kWh er basert på NVEs langsiktige kraftmarkedsundersøkelse med B2030 (https://publikasjoner.nve.no/rapport/2023/rapport2023_25.pdf) og avgifter Bane NOR krever inn (https://trv.banenor.no/portaler/!energiavregning/doku.php?id=tariffer:tariffer_for_kostnadselementer).
B61: Energikostnader Diesel | C61: 14.1 | D61: Kr/l | E61: 2023 | AD61: Energikostnaden for dieseltog er hentet fra https://www.circlek.no/bedrift/drivstoff/drivstoffpriser, og er prisen for anleggsdiesel nok/l eks. mva.
B62: Rengjøringskostnad per vogn | C62: 750 | D62: Kr per vogn | E62: 2016 | AD62: Rengjøringskostnaden er basert på erfaringstall og at det tar ca 1-1,5 time å rengjøre en vogn. Det er antatt at det koster i gjennomsnitt 750 kroner å vaske en vogn per dag.
B63: ='1.1 Standardsatser'!B231 -> Ulykkeskostnader | C63: Vektet snitt | F63: Kjøretøykm snitt 2006-2017 | G63: Død | H63: Hard skade | I63: Lett skade | J63: Sum | AE63: ="" -> 
B64: Persontog | C64: =J64 -> 1.0432 | D64: Kr/kjøretøykm | E64: 2019 | F64: 37 | G64: 0.8981 | H64: 0.1368 | I64: 0.0083 | J64: =SUM(G64:I64) -> 1.0432
B65: Godstog | C65: =J65 -> 1.3555 | D65: Kr/kjøretøykm | E65: 2019 | F65: 12 | G65: 0.9881 | H65: 0.3392 | I65: 0.0282 | J65: =SUM(G65:I65) -> 1.3555
B66: - Bil < 1200 kg | C66: 0.1675 | D66: Kr/kjøretøykm | E66: 2019 | F66: 6814 | G66: 0.0394 | H66: 0.0777 | I66: 0.0504 | J66: 0.1675 | AD66: Vektet fire ulike vektklasser for tung lastebil
B67: - Bil 12-1400 kg | C67: 0.1186 | D67: Kr/kjøretøykm | E67: 2019 | F67: 9482 | G67: 0.0301 | H67: 0.0539 | I67: 0.0346 | J67: 0.1186
B68: - Bil 14-1600 kg | C68: 0.0906 | D68: Kr/kjøretøykm | E68: 2019 | F68: 9535 | G68: 0.0242 | H68: 0.0401 | I68: 0.0263 | J68: 0.0906
B69: - Bil > 1600 kg | C69: 0.0966 | D69: Kr/kjøretøykm | E69: 2019 | F69: 6403 | G69: 0.0269 | H69: 0.0427 | I69: 0.027 | J69: 0.0966
B70: Personbil | C70: =(F66*J66+F67*J67+F68*J68+F69*J69)/SUM(F66:F69) -> 0.1162843892 | D70: Kr/kjøretøykm | E70: 2019
B71: Buss | C71: 0.3562 | D71: Kr/kjøretøykm | E71: 2019 | F71: 507 | G71: 0.1488 | H71: 0.1411 | I71: 0.0663 | J71: 0.3562
B72: Skip | C72: =J72 -> 0.2962 | D72: Kr/kjøretøykm | E72: 2019 | F72: 40 | G72: 0.0306 | H72: 0.26 | I72: 0.0056 | J72: 0.2962
B73: - Kombibil | C73: 0.0739 | D73: Kr/kjøretøykm | E73: 2019 | F73: 599 | G73: 0.0264 | H73: 0.0304 | I73: 0.0171 | J73: 0.0739
B74: - Varebil | C74: 0.0486 | D74: Kr/kjøretøykm | E74: 2019 | F74: 6419 | G74: 0.0139 | H74: 0.022 | I74: 0.0127 | J74: 0.0486
B75: - Lastebil | C75: 0.5487 | D75: Kr/kjøretøykm | E75: 2019 | F75: 803 | G75: 0.3212 | H75: 0.1494 | I75: 0.0781 | J75: 0.5487
B76: Lett lastebil | C76: =(F73*J73+F74*J74+F75*J75)/SUM(F73:F75) -> 0.1018841069 | D76: Kr/kjøretøykm | E76: 2019
B77: - Tankbil | C77: 0.8606 | D77: Kr/kjøretøykm | E77: 2019 | F77: 42 | G77: 0.5524 | H77: 0.252 | I77: 0.0562 | J77: 0.8606
B78: - Semitrailer | C78: 0.3651 | D78: Kr/kjøretøykm | E78: 2019 | F78: 553 | G78: 0.2271 | H78: 0.1001 | I78: 0.0379 | J78: 0.3651
B79: - Vogntog | C79: 0.3991 | D79: Kr/kjøretøykm | E79: 2019 | F79: 464 | G79: 0.2659 | H79: 0.0987 | I79: 0.0345 | J79: 0.3991
B80: Tung lastebil og modulvogntog | C80: =(F77*J77+F78*J78+F79*J79)/SUM(F77:F79) -> 0.3996486308 | D80: Kr/kjøretøykm | E80: 2019
B81: ='1.1 Standardsatser'!$B$292 -> Lokale utslipp (svevestøv (PM10), NOx, SO2) | AE81: ="" -> 
B82: =CONCATENATE('1.1 Standardsatser'!$B$293," - ",'1.1 Standardsatser'!$B$298) -> Persontog - Diesel - Store tettsteder | C82: =(L82*N82+P82*R82+T82*V82)*J82 -> 37.1541485 | D82: Kr/togkm | E82: 2019 | F82: =Massetetthet_Diesel -> 0.84 | G82: ='1.2 Forutsetninger'!$D$354 -> Kg/l | H82: =Drivstofforbruk_PersontogD -> 1.44 | I82: ='1.2 Forutsetninger'!$D$360 -> l/km | J82: =F82*H82/1000 -> 0.0012096 | K82: Tonn/km | L82: =$C$113 -> 3204.7879 | M82: =$D$110 -> Kr/kg | N82: =PM10_KgPerTonn_Dieseltog -> 3.8 | O82: ='1.2 Forutsetninger'!$D$352 -> Kg/tonn | P82: =$C$119 -> 394.4157 | Q82: =$D$119 -> Kr/kg | R82: =NOx_KgPerTonn_Diesel -> 47 | S82: ='1.2 Forutsetninger'!$D$351 -> Kg/tonn | T82: =$C$122 -> 22 | U82: =$D$122 -> Kr/kg | V82: =SO2_KgPerTonn_Dieseltog -> 0.015 | W82: ='1.2 Forutsetninger'!$D$353 -> Kg/tonn | AD82: Beregnet ut i fra drivstofforbruket og enhetsprisene ganget med de lokale utslippene til luft. | AE82: ="" -> 
B83: =CONCATENATE('1.1 Standardsatser'!$B$293," - ",'1.1 Standardsatser'!$B$299) -> Persontog - Diesel - Små tettsteder | C83: =(L83*N83+P83*R83+T83*V83)*J83 -> 6.624580371 | D83: Kr/togkm | E83: 2019 | F83: 0.84 | G83: ='1.2 Forutsetninger'!$D$354 -> Kg/l | H83: =Drivstofforbruk_PersontogD -> 1.44 | I83: ='1.2 Forutsetninger'!$D$360 -> l/km | J83: =F83*H83/1000 -> 0.0012096 | K83: Tonn/km | L83: =$C$114 -> 355.3211 | M83: =$D$111 -> Kr/kg | N83: 3.8 | O83: ='1.2 Forutsetninger'!$D$352 -> Kg/tonn | P83: =$C$120 -> 87.7933 | Q83: =$D$120 -> Kr/kg | R83: 47 | S83: ='1.2 Forutsetninger'!$D$351 -> Kg/tonn | T83: =$C$123 -> 11 | U83: =$D$123 -> Kr/kg | V83: =SO2_KgPerTonn_Dieseltog -> 0.015 | W83: ='1.2 Forutsetninger'!$D$353 -> Kg/tonn | AD83: Beregnet ut i fra drivstofforbruket og enhetsprisene ganget med de lokale utslippene til luft. | AE83: ="" -> 
B84: =CONCATENATE('1.1 Standardsatser'!$B$293," - ",'1.1 Standardsatser'!$B$300) -> Persontog - Diesel - Spredt bebyggelse | C84: =(L84*N84+P84*R84+T84*V84)*J84 -> 1.368439834 | D84: Kr/togkm | E84: 2019 | F84: 0.84 | G84: ='1.2 Forutsetninger'!$D$354 -> Kg/l | H84: =Drivstofforbruk_PersontogD -> 1.44 | I84: ='1.2 Forutsetninger'!$D$360 -> l/km | J84: =F84*H84/1000 -> 0.0012096 | K84: Tonn/km | L84: =$C$115 -> 22.27 | M84: =$D$112 -> Kr/kg | N84: 3.8 | O84: ='1.2 Forutsetninger'!$D$352 -> Kg/tonn | P84: =$C$121 -> 22.27 | Q84: =$D$121 -> Kr/kg | R84: 47 | S84: ='1.2 Forutsetninger'!$D$351 -> Kg/tonn | T84: =$C$124 -> 0 | U84: =$D$124 -> Kr/kg | V84: 0.015 | W84: ='1.2 Forutsetninger'!$D$353 -> Kg/tonn | AD84: Beregnet ut i fra drivstofforbruket og enhetsprisene ganget med de lokale utslippene til luft. | AE84: ="" -> 
B85: =CONCATENATE('1.1 Standardsatser'!$B$302," - ",'1.1 Standardsatser'!$B$307) -> Godstog - Diesel - Store tettsteder | C85: =(L85*N85+P85*R85+T85*V85)*J85 -> 126.4273109 | D85: Kr/togkm | E85: 2019 | F85: 0.84 | G85: ='1.2 Forutsetninger'!$D$354 -> Kg/l | H85: =Drivstofforbruk_GodstogD -> 4.9 | I85: ='1.2 Forutsetninger'!$D$362 -> l/km | J85: 0.004116 | K85: Tonn/km | L85: =$C$113 -> 3204.7879 | M85: =$D$110 -> Kr/kg | N85: 3.8 | O85: ='1.2 Forutsetninger'!$D$352 -> Kg/tonn | P85: =$C$119 -> 394.4157 | Q85: =$D$119 -> Kr/kg | R85: =NOx_KgPerTonn_Diesel -> 47 | S85: ='1.2 Forutsetninger'!$D$351 -> Kg/tonn | T85: =$C$122 -> 22 | U85: =$D$122 -> Kr/kg | V85: 0.015 | W85: ='1.2 Forutsetninger'!$D$353 -> Kg/tonn | AD85: Beregnet ut i fra drivstofforbruket og enhetsprisene ganget med de lokale utslippene til luft. | AE85: ="" -> 
B86: =CONCATENATE('1.1 Standardsatser'!$B$302," - ",'1.1 Standardsatser'!$B$308) -> Godstog - Diesel - Små tettsteder | C86: =(L86*N86+P86*R86+T86*V86)*J86 -> 22.54197487 | D86: Kr/togkm | E86: 2019 | F86: 0.84 | G86: ='1.2 Forutsetninger'!$D$354 -> Kg/l | H86: =Drivstofforbruk_GodstogD -> 4.9 | I86: ='1.2 Forutsetninger'!$D$362 -> l/km | J86: 0.004116 | K86: Tonn/km | L86: =$C$114 -> 355.3211 | M86: =$D$111 -> Kr/kg | N86: 3.8 | O86: ='1.2 Forutsetninger'!$D$352 -> Kg/tonn | P86: =$C$120 -> 87.7933 | Q86: =$D$120 -> Kr/kg | R86: 47 | S86: ='1.2 Forutsetninger'!$D$351 -> Kg/tonn | T86: =$C$123 -> 11 | U86: =$D$123 -> Kr/kg | V86: 0.015 | W86: ='1.2 Forutsetninger'!$D$353 -> Kg/tonn | AD86: Beregnet ut i fra drivstofforbruket og enhetsprisene ganget med de lokale utslippene til luft. | AE86: ="" -> 
B87: =CONCATENATE('1.1 Standardsatser'!$B$302," - ",'1.1 Standardsatser'!$B$309) -> Godstog - Diesel - Spredt bebyggelse | C87: =(L87*N87+P87*R87+T87*V87)*J87 -> 4.656496656 | D87: Kr/togkm | E87: 2019 | F87: 0.84 | G87: ='1.2 Forutsetninger'!$D$354 -> Kg/l | H87: =Drivstofforbruk_GodstogD -> 4.9 | I87: ='1.2 Forutsetninger'!$D$362 -> l/km | J87: =F87*H87/1000 -> 0.004116 | K87: Tonn/km | L87: =$C$115 -> 22.27 | M87: =$D$112 -> Kr/kg | N87: =PM10_KgPerTonn_Dieseltog -> 3.8 | O87: ='1.2 Forutsetninger'!$D$352 -> Kg/tonn | P87: =$C$121 -> 22.27 | Q87: =$D$121 -> Kr/kg | R87: =NOx_KgPerTonn_Diesel -> 47 | S87: ='1.2 Forutsetninger'!$D$351 -> Kg/tonn | T87: =$C$124 -> 0 | U87: =$D$124 -> Kr/kg | V87: 0.015 | W87: ='1.2 Forutsetninger'!$D$353 -> Kg/tonn | AD87: Beregnet ut i fra drivstofforbruket og enhetsprisene ganget med de lokale utslippene til luft. | AE87: ="" -> 
B88: =CONCATENATE('1.1 Standardsatser'!$B$311," - ",'1.1 Standardsatser'!$B$312) -> Personbil - Store tettsteder | C88: =AVERAGE(F88:H88) -> 0.415 | D88: Kr/kjøretøykm | E88: 2019 | F88: 0.3 | G88: Kr/km | H88: 0.53 | I88: Kr/km | AD88: Ha gjennomsnitt av alle drivstofftypene | AE88: ="" -> 
B89: =CONCATENATE('1.1 Standardsatser'!$B$311," - ",'1.1 Standardsatser'!$B$313) -> Personbil - Små tettsteder | C89: =AVERAGE(F89:H89) -> 0.065 | D89: Kr/kjøretøykm | E89: 2019 | F89: 0.04 | G89: Kr/km | H89: 0.09 | I89: Kr/km | AD89: Ha gjennomsnitt av alle drivstofftypene | AE89: ="" -> 
B90: =CONCATENATE('1.1 Standardsatser'!$B$311," - ",'1.1 Standardsatser'!$B$314) -> Personbil - Spredt bebyggelse | C90: =AVERAGE(F90:H90) -> 0.005 | D90: Kr/kjøretøykm | E90: 2019 | F90: 0 | G90: Kr/km | H90: 0.01 | I90: Kr/km | AD90: Ha gjennomsnitt av alle drivstofftypene | AE90: ="" -> 
B91: =CONCATENATE('1.1 Standardsatser'!$B$336," - ",'1.1 Standardsatser'!$B$337) -> Tung lastebil og modulvogntog - Store tettsteder | C91: =(F91+H91+J91+L91)/4 -> 3.5775 | D91: Kr/kjøretøykm | E91: 2019 | F91: 3.46 | G91: Kr/km | H91: 3.36 | I91: Kr/km | J91: 3.43 | K91: Kr/km | L91: 4.06 | M91: Kr/km | AD91: Tatt gjennomsnitt av alle vektklassene over 20 tonn
B92: =CONCATENATE('1.1 Standardsatser'!$B$336," - ",'1.1 Standardsatser'!$B$338) -> Tung lastebil og modulvogntog - Små tettsteder | C92: =(F92+H92+J92+L92)/4 -> 0.5875 | D92: Kr/kjøretøykm | E92: 2019 | F92: 0.56 | G92: Kr/km | H92: 0.54 | I92: Kr/km | J92: 0.56 | K92: Kr/km | L92: 0.69 | M92: Kr/km
B93: =CONCATENATE('1.1 Standardsatser'!$B$336," - ",'1.1 Standardsatser'!$B$339) -> Tung lastebil og modulvogntog - Spredt bebyggelse | C93: =(F93+H93+J93+L93)/4 -> 0.0775 | D93: Kr/kjøretøykm | E93: 2019 | F93: 0.07 | G93: Kr/km | H93: 0.07 | I93: Kr/km | J93: 0.07 | K93: Kr/km | L93: 0.1 | M93: Kr/km
B94: Skip- store tettsteder 2019 | C94: =C98+C102+C106 -> 644.0561441 | D94: Kr/fartøykm | E94: 2019
B95: Skip- små tettsteder 2019 | C95: =C99+C103+C107 -> 139.1403456 | D95: Kr/fartøykm | E95: 2019
B96: Skip- spredt bebyggelse 2019 | C96: =C100+C104+C108 -> 33.90582738 | D96: Kr/fartøykm | E96: 2019
B97: NOx-utslipp
B98: Skip-store tettsteder 2019 | C98: =(F98*$C$257)+(H98*$C$258)+(J98*$C$259)+(L98*$C$260)+(N98*$C$261)+(P98*$C$262)+(R98*$C$263)+(T98*$C$264) -> 594.8398507 | D98: kr/fartøykm | E98: 2019 | F98: 712.709 | G98: kr/kjkm | H98: 712.709 | I98: kr/kjkm | J98: 1067.683 | K98: kr/kjkm | L98: 270.964 | M98: kr/kjkm | N98: 917.805 | O98: kr/kjkm | P98: 332.098 | Q98: kr/kjkm | R98: 560.465 | S98: kr/kjkm | T98: 560.465 | U98: kr/kjkm | AD98: Beregnet i vedlagt excelark til rapport fra TØI (2019): Skadekostnader ved transport
B99: Skip-små tettsteder 2019 | C99: =(F99*$C$257)+(H99*$C$258)+(J99*$C$259)+(L99*$C$260)+(N99*$C$261)+(P99*$C$262)+(R99*$C$263)+(T99*$C$264) -> 132.4055271 | D99: kr/fartøykm | E99: 2019 | F99: 158.642 | G99: kr/kjkm | H99: 158.642 | I99: kr/kjkm | J99: 237.656 | K99: kr/kjkm | L99: 60.314 | M99: kr/kjkm | N99: 204.295 | O99: kr/kjkm | P99: 73.922 | Q99: kr/kjkm | R99: 124.754 | S99: kr/kjkm | T99: 124.754 | U99: kr/kjkm | AD99: Beregnet i vedlagt excelark til rapport fra TØI (2019): Skadekostnader ved transport
B100: Skip-spredt bebyggelse 2019 | C100: =(F100*$C$257)+(H100*$C$258)+(J100*$C$259)+(L100*$C$260)+(N100*$C$261)+(P100*$C$262)+(R100*$C$263)+(T100*$C$264) -> 33.58659478 | D100: kr/fartøykm | E100: 2019 | F100: 40.24189 | G100: kr/kjkm | H100: 40.24189 | I100: kr/kjkm | J100: 60.28489 | K100: kr/kjkm | L100: 15.29949 | M100: kr/kjkm | N100: 51.82229 | O100: kr/kjkm | P100: 18.75134 | Q100: kr/kjkm | R100: 31.64567 | S100: kr/kjkm | T100: 31.64567 | U100: kr/kjkm | AD100: Beregnet i vedlagt excelark til rapport fra TØI (2019): Skadekostnader ved transport
B101: PM10-utslipp
B102: Skip-store tettsteder 2019 | C102: =(F102*$C$257)+(H102*$C$258)+(J102*$C$259)+(L102*$C$260)+(N102*$C$261)+(P102*$C$262)+(R102*$C$263)+(T102*$C$264) -> 45.93192294 | D102: kr/fartøykm | E102: 2019 | F102: 58.277 | G102: kr/kjkm | H102: 58.277 | I102: kr/kjkm | J102: 64.217 | K102: kr/kjkm | L102: 25.901 | M102: kr/kjkm | N102: 60.608 | O102: kr/kjkm | P102: 31.857 | Q102: kr/kjkm | R102: 42.295 | S102: kr/kjkm | T102: 42.295 | U102: kr/kjkm | AD102: Beregnet i rapporten fra TØI (2019): Skadekostnader ved transport
B103: Skip-små tettsteder 2019 | C103: =(F103*$C$257)+(H103*$C$258)+(J103*$C$259)+(L103*$C$260)+(N103*$C$261)+(P103*$C$262)+(R103*$C$263)+(T103*$C$264) -> 5.092288119 | D103: kr/fartøykm | E103: 2019 | F103: 6.461 | G103: kr/kjkm | H103: 6.461 | I103: kr/kjkm | J103: 7.12 | K103: kr/kjkm | L103: 2.872 | M103: kr/kjkm | N103: 6.72 | O103: kr/kjkm | P103: 3.532 | Q103: kr/kjkm | R103: 4.689 | S103: kr/kjkm | T103: 4.689 | U103: kr/kjkm | AD103: Beregnet i rapporten fra TØI (2019): Skadekostnader ved transport
B104: Skip-spredt bebyggelse 2019 | C104: =(F104*$C$257)+(H104*$C$258)+(J104*$C$259)+(L104*$C$260)+(N104*$C$261)+(P104*$C$262)+(R104*$C$263)+(T104*$C$264) -> 0.3192325971 | D104: kr/fartøykm | E104: 2019 | F104: 0.405 | G104: kr/kjkm | H104: 0.405 | I104: kr/kjkm | J104: 0.446 | K104: kr/kjkm | L104: 0.18 | M104: kr/kjkm | N104: 0.421 | O104: kr/kjkm | P104: 0.221 | Q104: kr/kjkm | R104: 0.294 | S104: kr/kjkm | T104: 0.294 | U104: kr/kjkm | AD104: Beregnet i rapporten fra TØI (2019): Skadekostnader ved transport
B105: SO2-utslipp
B106: Skip-store tettsteder 2019 | C106: =(F106*$C$257)+(H106*$C$258)+(J106*$C$259)+(L106*$C$260)+(N106*$C$261)+(P106*$C$262)+(R106*$C$263)+(T106*$C$264) -> 3.284370421 | D106: kr/fartøykm | E106: 2019 | F106: 3.514 | G106: kr/kjkm | H106: 3.514 | I106: kr/kjkm | J106: 3.693 | K106: kr/kjkm | L106: 1.432 | M106: kr/kjkm | N106: 6.737 | O106: kr/kjkm | P106: 1.768 | Q106: kr/kjkm | R106: 3.223 | S106: kr/kjkm | T106: 3.223 | U106: kr/kjkm | AD106: Beregnet i rapporten fra TØI (2019): Skadekostnader ved transport
B107: Skip-små tettsteder 2019 | C107: =(F107*$C$257)+(H107*$C$258)+(J107*$C$259)+(L107*$C$260)+(N107*$C$261)+(P107*$C$262)+(R107*$C$263)+(T107*$C$264) -> 1.642530376 | D107: kr/fartøykm | E107: 2019 | F107: 1.757 | G107: kr/kjkm | H107: 1.757 | I107: kr/kjkm | J107: 1.847 | K107: kr/kjkm | L107: 0.716 | M107: kr/kjkm | N107: 3.369 | O107: kr/kjkm | P107: 0.884 | Q107: kr/kjkm | R107: 1.612 | S107: kr/kjkm | T107: 1.612 | U107: kr/kjkm | AD107: Beregnet i rapporten fra TØI (2019): Skadekostnader ved transport
B108: Skip-spredt bebyggelse 2019 | C108: =(F108*$C$257)+(H108*$C$258)+(J108*$C$259)+(L108*$C$260)+(N108*$C$261)+(P108*$C$262)+(R108*$C$263)+(T108*$C$264) -> 0 | D108: kr/fartøykm | E108: 2019 | F108: 0 | G108: kr/kjkm | H108: 0 | I108: kr/kjkm | J108: 0 | K108: kr/kjkm | L108: 0 | M108: kr/kjkm | N108: 0 | O108: kr/kjkm | P108: 0 | Q108: kr/kjkm | R108: 0 | S108: kr/kjkm | T108: 0 | U108: kr/kjkm | AD108: Beregnet i rapporten fra TØI (2019): Skadekostnader ved transport
B109: Satser
B110: Svevestøv (PM10) - Store tettsteder - vektet for eksos og veistøv | C110: 5499.886 | D110: Kr/kg | E110: 2019 | AD110: Anslag for enhetspriser ved utslipp av svevestøv (PM10) per kg/tonn utslipp, Store tettsteder. Benyttet i rapporten fra TØI (2019): Skadekostnader ved transport.
B111: Svevestøv (PM10) - Små tettsteder - vektet for eksos og veistøv | C111: 609.7831 | D111: Kr/kg | E111: 2019 | AD111: Anslag for enhetspriser ved utslipp av svevestøv (PM10) per kg/tonn utslipp, Små tettsteder. Benyttet i rapporten fra TØI (2019): Skadekostnader ved transport.
B112: Svevestøv (PM10) - Spredt bebyggelse - vektet for eksos og veistøv | C112: 22.27 | D112: Kr/kg | E112: 2019 | AD112: Anslag for enhetspriser ved utslipp av svevestøv (PM10) per kg/tonn utslipp, Spredt bebyggelse. Benyttet i rapporten fra TØI (2019): Skadekostnader ved transport.
B113: Svevestøv (PM10) - Store tettsteder - eksos | C113: 3204.7879 | D113: Kr/kg | E113: 2019
B114: Svevestøv (PM10) - Små tettsteder - eksos | C114: 355.3211 | D114: Kr/kg | E114: 2019
B115: Svevestøv (PM10) - Spredt bebyggelse - eksos | C115: 22.27 | D115: Kr/kg | E115: 2019
B116: Svevestøv (PM10) - Store tettsteder - veistøv mm | C116: 7731.6526 | D116: Kr/kg | E116: 2019
B117: Svevestøv (PM10) - Små tettsteder - veistøv mm | C117: 857.2234 | D117: Kr/kg | E117: 2019
B118: Svevestøv (PM10) - Spredt bebyggelse - veistøv mm | C118: 22.27 | D118: Kr/kg | E118: 2019
B119: Nitrogenoksider (NOx) - Store tettsteder | C119: 394.4157 | D119: Kr/kg | E119: 2019 | AD119: Anslag for enhetspriser ved utslipp av nitrogenoksider (NOx) per kg/tonn utslipp, Store tettsteder. Benyttet i rapporten fra TØI (2019): Skadekostnader ved transport.
B120: Nitrogenoksider (NOx) - Små tettsteder | C120: 87.7933 | D120: Kr/kg | E120: 2019 | AD120: Anslag for enhetspriser ved utslipp av nitrogenoksider (NOx) per kg/tonn utslipp, Små tettsteder. Benyttet i rapporten fra TØI (2019): Skadekostnader ved transport.
B121: Nitrogenoksider (NOx) - Spredt bebyggelse | C121: 22.27 | D121: Kr/kg | E121: 2019 | AD121: Anslag for enhetspriser ved utslipp av nitrogenoksider (NOx) per kg/tonn utslipp, Spredt bebyggelse. Benyttet i rapporten fra TØI (2019): Skadekostnader ved transport.
B122: Svoveldioksid (SO2) - Store tettsteder | C122: 22 | D122: Kr/kg | E122: 2019 | AD122: Anslag for enhetspriser ved utslipp av svoveldioksid (SO2) per kg/tonn utslipp, Store tettsteder. Benyttet i rapporten fra TØI (2019): Skadekostnader ved transport.
B123: Svoveldioksid (SO2) - Små tettsteder | C123: 11 | D123: Kr/kg | E123: 2019 | AD123: Anslag for enhetspriser ved utslipp av svoveldioksid (SO2) per kg/tonn utslipp, Små tettsteder. Benyttet i rapporten fra TØI (2019): Skadekostnader ved transport.
B124: Svoveldioksid (SO2) - Spredt bebyggelse | C124: 0 | D124: Kr/kg | E124: 2019 | AD124: Anslag for enhetspriser ved utslipp av svoveldioksid (SO2), per kg/tonn utslipp, Spredt bebyggelse. Benyttet i rapporten fra TØI (2019): Skadekostnader ved transport.
B125: Beregning til "1.2 Forutsetninger" | C125: Forutsetning | D125: =$D$9 -> Benevning | E125: =$E$9 -> Opprinnelig Kroneår | AE125: ="" -> 
B126: ='1.2 Forutsetninger'!$B$21 -> Skattesats, overskudd og utbytte operatører | C126: =F126+(H126*J126*L126) -> 0.467104 | D126: Prosent | E126: 2020 | F126: 0.22 | G126: prosent | H126: =1-F126 -> 0.78 | I126: faktor | J126: 1.44 | K126: faktor | L126: =F126 -> 0.22 | M126: prosent | AD126: Er lik summen av selskaps- og utbytteskatt. Grunnlaget for utbytteskatt er lik overskuddet (dvs. selskapsskattegrunnlaget fratrukket selskapsskatten) multiplisert med 1) en myndighetsbestemt faktor for utbytte og 2) satsen for selskapsskatt. Se forklaring i fotnote 7 på https://www.regjeringen.no/no/tema/okonomi-og-budsjett/skatter-og-avgifter/skattesatser-2020/id2671009/. | AE126: ="" -> 
B127: ='1.2 Forutsetninger'!B127 -> Bilbelegg
B128: =CONCATENATE('1.2 Forutsetninger'!$B$131," - ",'1.2 Forutsetninger'!B$132) -> Reiser < 50 km - Arbeidsreiser | C128: 1.18 | D128: Personer pr. bil | E128: 2019 | AD128: Snittet av tallene utgjør satsen. Statistikken gjelder alle turer opp til 50 km. Kilden oppgir ikke tall for reiser i intervallet 50-100 km. | AE128: ="" -> 
B129: =CONCATENATE('1.2 Forutsetninger'!$B$131," - ",'1.2 Forutsetninger'!B$133) -> Reiser < 50 km - Fritidsreiser | C129: 1.94 | D129: Personer pr. bil | E129: 2019 | AD129: Snittet av tallene utgjør satsen. Statistikken gjelder alle turer opp til 50 km. Kilden oppgir ikke tall for reiser i intervallet 50-100 km. | AE129: ="" -> 
B130: =CONCATENATE('1.2 Forutsetninger'!$B$145) -> Tidskostnader for reisende
B131: =CONCATENATE('1.2 Forutsetninger'!$B$153," - ",'1.2 Forutsetninger'!$B$154) -> Tid mellom avganger, faktor per intervall - Ventetid 0 - 15 min | C131: =((1/3)*F131+(2/3)*H131) -> 2.02 | D131: Vekt | E131: 2010 | F131: 2.3 | G131: Vektfaktor | H131: 1.88 | I131: Vektfaktor | AD131: Det vektede snittet mellom vekt-faktor for ventetid på henholdsvis 0-5 min. og 6-15 min. utgjør satsen. | AE131: ="" -> 
B132: =CONCATENATE('1.2 Forutsetninger'!B174) -> Trafikkvolumer
B133: =CONCATENATE('1.2 Forutsetninger'!$B$180," , ",'1.2 Forutsetninger'!$B$181) -> Persontog , Elektrisk - Store tettsteder | C133: =H133/F133 -> 0.1290322581 | D133: Prosent | E133: 2000 | F133: 31 | G133: Trafikkarbeid (mill. kjøretøykm.) | H133: 4 | I133: Trafikkarbeid (mill. kjøretøykm.) | J133: ="" ->  | AD133: Trafikkarbeid i store tettsteder i mill. kjøretøykm./Totalt trafikkarbeid målt i mill. kjøretøykm. | AE133: ="" -> 
B134: =CONCATENATE('1.2 Forutsetninger'!$B$180,", ",'1.2 Forutsetninger'!$B$182) -> Persontog, Elektrisk - Små tettsteder | C134: =H134/F134 -> 0.2903225806 | D134: Prosent | E134: 2000 | F134: 31 | G134: Trafikkarbeid (mill. kjøretøykm.) | H134: 9 | I134: Trafikkarbeid (mill. kjøretøykm.) | J134: ="" ->  | AD134: Trafikkarbeid i små tettsteder i mill. kjøretøykm./Totalt trafikkarbeid målt i mill. kjøretøykm. | AE134: ="" -> 
B135: =CONCATENATE('1.2 Forutsetninger'!$B$180,", ",'1.2 Forutsetninger'!$B$183) -> Persontog, Elektrisk - Spredt bebyggelse | C135: 0.5806451613 | D135: Prosent | E135: 2000 | F135: 31 | G135: Trafikkarbeid (mill. kjøretøykm.) | H135: 18 | I135: Trafikkarbeid (mill. kjøretøykm.) | J135: ="" ->  | AD135: Trafikkarbeid i spredt bebyggelse i mill. kjøretøykm./Totalt trafikkarbeid målt i mill. kjøretøykm. | AE135: ="" -> 
B136: =CONCATENATE('1.2 Forutsetninger'!$B$194, ", ",'1.2 Forutsetninger'!$B$195) -> Personbil, Store tettsteder | C136: =(F136+H136)/(J136+L136) -> 0.186042982 | D136: Prosent | E136: 2011 | F136: 3116 | G136: Mill. kjøretøykm | H136: 3013 | I136: Mill. kjøretøykm | J136: 16747 | K136: Mill. kjøretøykm | L136: 16197 | M136: Mill. kjøretøykm | AD136: Summerer andel kjøretøykm for bensin og diesel i tettsteder over 100 000, og deler det på totalt antall kjøretøykm | AE136: ="" -> 
B137: =CONCATENATE('1.2 Forutsetninger'!$B$194, ", ",'1.2 Forutsetninger'!$B$196) -> Personbil, Små tettsteder | C137: =(F137+H137)/(J137+L137) -> 0.186042982 | D137: Prosent | E137: 2011 | F137: 3116 | G137: Mill. kjøretøykm | H137: 3013 | I137: Mill. kjøretøykm | J137: 16747 | K137: Mill. kjøretøykm | L137: 16197 | M137: Mill. kjøretøykm | AD137: Summerer andel kjøretøykm for bensin og diesel i tettsteder mellom 15' -100 000, og deler det på totalt antall kjøretøykm | AE137: ="" -> 
B138: =CONCATENATE('1.2 Forutsetninger'!$B$194, ", ",'1.2 Forutsetninger'!$B$197) -> Personbil, Spredt bebyggelse | C138: =(F138+H138)/(J138+L138) -> 0.6279140359 | D138: Prosent | E138: 2011 | F138: 10516 | G138: Mill. kjøretøykm | H138: 10170 | I138: Mill. kjøretøykm | J138: 16747 | K138: Mill. kjøretøykm | L138: 16197 | M138: Mill. kjøretøykm | AD138: Summerer andel kjøretøykm for bensin og diesel i spredt bebyggelse, og deler det på totalt antall kjøretøykm | AE138: ="" -> 
B139: =CONCATENATE('1.2 Forutsetninger'!$B$198, ", ",'1.2 Forutsetninger'!$B$199) -> Buss, Store tettsteder | C139: =F139/H139 -> 0.2796296296 | D139: Prosent | E139: 2011 | F139: 151 | G139: Mill. kjøretøykm | H139: 540 | I139: Mill. kjøretøykm | AD139: Andel kjøretøykm for diesel i tettsteder over 100 000, og deler det på totalt antall kjøretøykm | AE139: ="" -> 
B140: =CONCATENATE('1.2 Forutsetninger'!$B$198, ", ",'1.2 Forutsetninger'!$B$200) -> Buss, Små tettsteder | C140: =F140/H140 -> 0.2796296296 | D140: Prosent | E140: 2011 | F140: 151 | G140: Mill. kjøretøykm | H140: 540 | I140: Mill. kjøretøykm | AD140: Andel kjøretøykm for diesel i tettsteder under 100 000, og deler det på totalt antall kjøretøykm | AE140: ="" -> 
B141: =CONCATENATE('1.2 Forutsetninger'!$B$198, ", ",'1.2 Forutsetninger'!$B$201) -> Buss, Spredt bebyggelse | C141: 0.4407407407 | D141: Prosent | E141: 2011 | F141: 238 | G141: Mill. kjøretøykm | H141: 540 | I141: Mill. kjøretøykm | AD141: Andel kjøretøykm for diesel i spredt bebyggelse, og deler det på totalt antall kjøretøykm | AE141: ="" -> 
B142: =CONCATENATE('1.2 Forutsetninger'!$B$206,", ",'1.2 Forutsetninger'!$B$207) -> Vei (gods) - Lett lastebil, Store tettsteder | C142: =F142/H142 -> 0.1298701299 | D142: Prosent | E142: 2011 | F142: 10 | G142: Mill. kjøretøykm | H142: 77 | I142: Mill. kjøretøykm | AD142: Andel kjøretøykm for lett lastebil i tettsteder over 100 000, og deler det på totalt antall kjøretøykm | AE142: ="" -> 
B143: =CONCATENATE('1.2 Forutsetninger'!$B$206,", ",'1.2 Forutsetninger'!$B$208) -> Vei (gods) - Lett lastebil, Små tettsteder | C143: =F143/H143 -> 0.1298701299 | D143: Prosent | E143: 2011 | F143: 10 | G143: Mill. kjøretøykm | H143: 77 | I143: Mill. kjøretøykm | AD143: Andel kjøretøykm for lett lastebil i tettsteder under 100 000, og deler det på totalt antall kjøretøykm | AE143: ="" -> 
B144: =CONCATENATE('1.2 Forutsetninger'!$B$206,", ",'1.2 Forutsetninger'!$B$209) -> Vei (gods) - Lett lastebil, Spredt bebyggelse | C144: 0.7402597403 | D144: Prosent | E144: 2011 | F144: 57 | G144: Mill. kjøretøykm | H144: 77 | I144: Mill. kjøretøykm | AD144: Andel kjøretøykm for lett lastebil i spredt bebyggelse, og deler det på totalt antall kjøretøykm | AE144: ="" -> 
B145: =CONCATENATE('1.2 Forutsetninger'!$B$210,", ",'1.2 Forutsetninger'!$B$211) -> Vei (gods) - Tung lastebil, Store tettsteder | C145: 0.1275510204 | D145: Prosent | E145: 2011 | F145: 25 | G145: Mill. kjøretøykm | H145: 196 | I145: Mill. kjøretøykm | AD145: Andel kjøretøykm for tung lastebil i tettsteder over 100 000, og deler det på totalt antall kjøretøykm
B146: =CONCATENATE('1.2 Forutsetninger'!$B$210,", ",'1.2 Forutsetninger'!$B$212) -> Vei (gods) - Tung lastebil, Små tettsteder | C146: 0.1275510204 | D146: Prosent | E146: 2011 | F146: 25 | G146: Mill. kjøretøykm | H146: 196 | I146: Mill. kjøretøykm | AD146: Andel kjøretøykm for tung lastebil i tettsteder under 100 000, og deler det på totalt antall kjøretøykm
B147: =CONCATENATE('1.2 Forutsetninger'!$B$210,", ",'1.2 Forutsetninger'!$B$213) -> Vei (gods) - Tung lastebil, Spredt bebyggelse | C147: 0.7448979592 | D147: Prosent | E147: 2011 | F147: 146 | G147: Mill. kjøretøykm | H147: 196 | I147: Mill. kjøretøykm | AD147: Andel kjøretøykm for tung lastebil i spredt bebyggelse, og deler det på totalt antall kjøretøykm
B148: =CONCATENATE('1.2 Forutsetninger'!$B$214,", ",'1.2 Forutsetninger'!$B$215) -> Vei (gods) - Modulvogntog, Store tettsteder | C148: 0.1275510204 | D148: Prosent | E148: 2011 | F148: 25 | G148: Mill. kjøretøykm | H148: 196 | I148: Mill. kjøretøykm | AD148: Antar at modulvogn har samme fordeling som tung lastebil
B149: =CONCATENATE('1.2 Forutsetninger'!$B$214,", ",'1.2 Forutsetninger'!$B$216) -> Vei (gods) - Modulvogntog, Små tettsteder | C149: 0.1275510204 | D149: Prosent | E149: 2011 | F149: 25 | G149: Mill. kjøretøykm | H149: 196 | I149: Mill. kjøretøykm | AD149: Antar at modulvogn har samme fordeling som tung lastebil
B150: =CONCATENATE('1.2 Forutsetninger'!$B$214,", ",'1.2 Forutsetninger'!$B$217) -> Vei (gods) - Modulvogntog, Spredt bebyggelse | C150: 0.7448979592 | D150: Prosent | E150: 2011 | F150: 146 | G150: Mill. kjøretøykm | H150: 196 | I150: Mill. kjøretøykm | AD150: Antar at modulvogn har samme fordeling som tung lastebil
B151: ='1.2 Forutsetninger'!B273 -> Ulykkesfrekvens | C151: Vektet snitt (ulykker/ mill. kjøretøykm | D151: Kjøretøykm snitt 2006-2017 | E151: Sum | F151: Fotgjenger | G151: Sykkel | H151: Moped | I151: Lett MC | J151: Tung MC | K151: Bil < 1200 kg | L151: Bil 12-1400 kg | M151: Bil 14-1600 kg | N151: Bil > 1600 kg | O151: Buss | P151: Kombibil | Q151: Varebil | R151: Lastebil | S151: Tankbil | T151: Semitrailer | U151: Vogntog | V151: Trikk | W151: Persontog | X151: Godstog | Y151: Annet (vegtr.sp.) | Z151: Ingen motpart
B152: Persontog | D152: 37 | AE152: ="" -> 
B153: Lettere skadet | C153: =E153 -> 0.036 | E153: =SUM(F153:Z153) -> 0.036 | F153: 0.0016 | K153: 0.0051 | L153: 0.003 | M153: 0.002 | N153: 0.0029 | R153: 0.0017 | S153: 0.0005 | Y153: 0.0011 | Z153: 0.0181 | AD153: Kolonnene bortover viser sannsynligheten for at transportmiddelet i den angitte raden forårsaker skade på transportmiddelet i kolonnen. Summen av disse sannsynlighetene utgjør ulykkesfrekvensen for transportmiddelet i raden. Biler, lette og tunge lastebiler består av flere underkategorier av transportmidler. Underkategoriene er samlet i vektede snitt basert på kjøretøykm i perioden 2006-2017. | AE153: ="" -> 
B154: Hardt skadet | C154: =E154 -> 0.0294 | E154: =SUM(F154:Z154) -> 0.0294 | F154: 0.0087 | H154: 0.0006 | J154: 0.0011 | K154: 0.0006 | L154: 0.0001 | M154: 0.0001 | N154: 0.0001 | Z154: 0.0181 | AD154: Kolonnene bortover viser sannsynligheten for at transportmiddelet i den angitte raden forårsaker skade på transportmiddelet i kolonnen. Summen av disse sannsynlighetene utgjør ulykkesfrekvensen for transportmiddelet i raden. Biler, lette og tunge lastebiler består av flere underkategorier av transportmidler. Underkategoriene er samlet i vektede snitt basert på kjøretøykm i perioden 2006-2017.
B155: Død | C155: 0.0294 | E155: 0.0294 | F155: 0.0249 | G155: 0.0008 | I155: 0.0008 | K155: 0.0002 | L155: 0.0002 | M155: 0.0009 | N155: 0.0002 | T155: 0.0007 | Y155: 0.0007 | AD155: Kolonnene bortover viser sannsynligheten for at transportmiddelet i den angitte raden forårsaker skade på transportmiddelet i kolonnen. Summen av disse sannsynlighetene utgjør ulykkesfrekvensen for transportmiddelet i raden. Biler, lette og tunge lastebiler består av flere underkategorier av transportmidler. Underkategoriene er samlet i vektede snitt basert på kjøretøykm i perioden 2006-2017.
B156: Godstog | D156: 12
B157: Lettere skadet | C157: =E157 -> 0.1002 | E157: =SUM(F157:Z157) -> 0.1002 | F157: 0.0052 | K157: 0.0162 | L157: 0.0096 | M157: 0.0065 | N157: 0.0091 | R157: 0.0054 | S157: 0.0015 | X157: 0.0216 | Y157: 0.0035 | Z157: 0.0216 | AD157: Kolonnene bortover viser sannsynligheten for at transportmiddelet i den angitte raden forårsaker skade på transportmiddelet i kolonnen. Summen av disse sannsynlighetene utgjør ulykkesfrekvensen for transportmiddelet i raden. Biler, lette og tunge lastebiler består av flere underkategorier av transportmidler. Underkategoriene er samlet i vektede snitt basert på kjøretøykm i perioden 2006-2017.
B158: Hardt skadet | C158: =E158 -> 0.0574 | E158: =SUM(F158:Z158) -> 0.0574 | F158: 0.0277 | H158: 0.0017 | J158: 0.0033 | K158: 0.0019 | L158: 0.0004 | M158: 0.0004 | N158: 0.0004 | Z158: 0.0216 | AD158: Kolonnene bortover viser sannsynligheten for at transportmiddelet i den angitte raden forårsaker skade på transportmiddelet i kolonnen. Summen av disse sannsynlighetene utgjør ulykkesfrekvensen for transportmiddelet i raden. Biler, lette og tunge lastebiler består av flere underkategorier av transportmidler. Underkategoriene er samlet i vektede snitt basert på kjøretøykm i perioden 2006-2017.
B159: Død | C159: 0.0324 | E159: 0.0324 | F159: 0.0274 | G159: 0.0009 | I159: 0.0009 | K159: 0.0002 | L159: 0.0002 | M159: 0.001 | N159: 0.0002 | T159: 0.0008 | Y159: 0.0008 | AD159: Kolonnene bortover viser sannsynligheten for at transportmiddelet i den angitte raden forårsaker skade på transportmiddelet i kolonnen. Summen av disse sannsynlighetene utgjør ulykkesfrekvensen for transportmiddelet i raden. Biler, lette og tunge lastebiler består av flere underkategorier av transportmidler. Underkategoriene er samlet i vektede snitt basert på kjøretøykm i perioden 2006-2017.
B160: Bil < 1200 kg | D160: 6814
B161: Lettere skadet | E161: =SUM(F161:Z161) -> 0.2702 | F161: 0.0102 | G161: 0.0094 | H161: 0.005 | I161: 0.0016 | J161: 0.0039 | K161: 0.0406 | L161: 0.0434 | M161: 0.0298 | N161: 0.0173 | O161: 0.0025 | P161: 0.0011 | Q161: 0.0074 | R161: 0.0054 | S161: 0.0002 | T161: 0.0016 | U161: 0.0014 | V161: 0.0002 | Y161: 0.0042 | Z161: 0.085
B162: Hardt skadet | E162: =SUM(F162:Z162) -> 0.0211 | F162: 0.0016 | G162: 0.001 | H162: 0.0004 | I162: 0.0002 | J162: 0.0008 | K162: 0.002 | L162: 0.0022 | M162: 0.0015 | N162: 0.001 | O162: 0.0002 | P162: 0.0001 | Q162: 0.0005 | R162: 0.0005 | T162: 0.0003 | U162: 0.0002 | Y162: 0.0004 | Z162: 0.0082
B163: Død | E163: 0.0046 | F163: 0.0003 | G163: 0.0001 | J163: 0.0002 | K163: 0.0003 | L163: 0.0004 | M163: 0.0003 | N163: 0.0002 | O163: 0.0001 | Q163: 0.0001 | R163: 0.0003 | T163: 0.0002 | U163: 0.0002 | Y163: 0.0001 | Z163: 0.0018
B164: Bil 12-1400 kg | D164: 9482
B165: Lettere skadet | E165: =SUM(F165:Z165) -> 0.1683 | F165: 0.0066 | G165: 0.006 | H165: 0.0032 | I165: 0.0009 | J165: 0.0028 | K165: 0.0312 | L165: 0.02 | M165: 0.0192 | N165: 0.0119 | O165: 0.0014 | P165: 0.0005 | Q165: 0.0049 | R165: 0.0032 | S165: 0.0001 | T165: 0.0012 | U165: 0.0008 | V165: 0.0002 | Y165: 0.003 | Z165: 0.0512
B166: Hardt skadet | E166: =SUM(F166:Z166) -> 0.0132 | F166: 0.001 | G166: 0.0006 | H166: 0.0002 | I166: 0.0001 | J166: 0.0005 | K166: 0.0016 | L166: 0.0013 | M166: 0.0011 | N166: 0.0007 | O166: 0.0002 | Q166: 0.0003 | R166: 0.0003 | T166: 0.0001 | U166: 0.0001 | Y166: 0.0002 | Z166: 0.0049
B167: Død | E167: 0.0034 | F167: 0.0002 | J167: 0.0001 | K167: 0.0003 | L167: 0.0003 | M167: 0.0002 | N167: 0.0001 | O167: 0.0001 | Q167: 0.0001 | R167: 0.0003 | T167: 0.0001 | U167: 0.0001 | Y167: 0.0001 | Z167: 0.0014
B168: Bil 14-1600 kg | D168: 9535
B169: Lettere skadet | E169: =SUM(F169:Z169) -> 0.1137 | F169: 0.0048 | G169: 0.0042 | H169: 0.0025 | I169: 0.0008 | J169: 0.0021 | K169: 0.0213 | L169: 0.0191 | M169: 0.0103 | N169: 0.0091 | O169: 0.001 | P169: 0.0004 | Q169: 0.0034 | R169: 0.0023 | S169: 0.0001 | T169: 0.0008 | U169: 0.0006 | V169: 0.0001 | Y169: 0.0023 | Z169: 0.0285
B170: Hardt skadet | E170: =SUM(F170:Z170) -> 0.0093 | F170: 0.0008 | G170: 0.0004 | H170: 0.0002 | I170: 0.0001 | J170: 0.0004 | K170: 0.0011 | L170: 0.0011 | M170: 0.0009 | N170: 0.0005 | O170: 0.0001 | Q170: 0.0002 | R170: 0.0002 | T170: 0.0001 | U170: 0.0001 | Y170: 0.0002 | Z170: 0.0029
B171: Død | E171: 0.0019 | F171: 0.0002 | J171: 0.0001 | K171: 0.0002 | L171: 0.0002 | M171: 0.0001 | R171: 0.0001 | T171: 0.0001 | U171: 0.0001 | Y171: 0.0001 | Z171: 0.0007
B172: Bil > 1600 kg | D172: 6403
B173: Lettere skadet | E173: =SUM(F173:Z173) -> 0.1068 | F173: 0.0052 | G173: 0.0044 | H173: 0.0021 | I173: 0.0007 | J173: 0.0019 | K173: 0.0184 | L173: 0.0176 | M173: 0.0135 | N173: 0.0064 | O173: 0.001 | P173: 0.0004 | Q173: 0.0031 | R173: 0.0019 | T173: 0.0007 | U173: 0.0004 | V173: 0.0001 | Y173: 0.0019 | Z173: 0.0271
B174: Hardt skadet | E174: =SUM(F174:Z174) -> 0.0091 | F174: 0.0008 | G174: 0.0006 | H174: 0.0003 | I174: 0.0002 | J174: 0.0005 | K174: 0.001 | L174: 0.001 | M174: 0.0008 | N174: 0.0004 | O174: 0.0001 | Q174: 0.0001 | R174: 0.0002 | T174: 0.0001 | U174: 0.0001 | Y174: 0.0002 | Z174: 0.0027
B175: Død | E175: 0.0021 | F175: 0.0002 | G175: 0.0001 | J175: 0.0001 | K175: 0.0002 | L175: 0.0002 | M175: 0.0001 | N175: 0.0001 | R175: 0.0001 | T175: 0.0001 | U175: 0.0001 | Y175: 0.0001 | Z175: 0.0007
B176: Personbil
B177: Lettere skadet | C177: =($D$160*E161+$D$164*E165+$D$168*E169+$D$172*E173)/($D$160+$D$164+$D$168+$D$172) -> 0.1614733915 | AD177: Kolonnene bortover viser sannsynligheten for at transportmiddelet i den angitte raden forårsaker skade på transportmiddelet i kolonnen. Summen av disse sannsynlighetene utgjør ulykkesfrekvensen for transportmiddelet i raden. Biler, lette og tunge lastebiler består av flere underkategorier av transportmidler. Underkategoriene er samlet i vektede snitt basert på kjøretøykm i perioden 2006-2017.
B178: Hardt skadet | C178: =($D$160*E162+$D$164*E166+$D$168*E170+$D$172*E174)/($D$160+$D$164+$D$168+$D$172) -> 0.01290192343 | AD178: Kolonnene bortover viser sannsynligheten for at transportmiddelet i den angitte raden forårsaker skade på transportmiddelet i kolonnen. Summen av disse sannsynlighetene utgjør ulykkesfrekvensen for transportmiddelet i raden. Biler, lette og tunge lastebiler består av flere underkategorier av transportmidler. Underkategoriene er samlet i vektede snitt basert på kjøretøykm i perioden 2006-2017.
B179: Død | C179: 0.002951727989 | AD179: Kolonnene bortover viser sannsynligheten for at transportmiddelet i den angitte raden forårsaker skade på transportmiddelet i kolonnen. Summen av disse sannsynlighetene utgjør ulykkesfrekvensen for transportmiddelet i raden. Biler, lette og tunge lastebiler består av flere underkategorier av transportmidler. Underkategoriene er samlet i vektede snitt basert på kjøretøykm i perioden 2006-2017.
B180: Buss | D180: 507
B181: Lettere skadet | C181: =E181 -> 0.2612 | E181: =SUM(F181:Z181) -> 0.2612 | F181: 0.022 | G181: 0.009 | H181: 0.0031 | I181: 0.0007 | J181: 0.0029 | K181: 0.0343 | L181: 0.0269 | M181: 0.0197 | N181: 0.013 | O181: 0.029 | P181: 0.0012 | Q181: 0.0062 | R181: 0.0081 | S181: 0.0014 | T181: 0.0014 | U181: 0.0027 | V181: 0.0018 | Y181: 0.0042 | Z181: 0.0736 | AD181: Kolonnene bortover viser sannsynligheten for at transportmiddelet i den angitte raden forårsaker skade på transportmiddelet i kolonnen. Summen av disse sannsynlighetene utgjør ulykkesfrekvensen for transportmiddelet i raden. Biler, lette og tunge lastebiler består av flere underkategorier av transportmidler. Underkategoriene er samlet i vektede snitt basert på kjøretøykm i perioden 2006-2017.
B182: Hardt skadet | C182: =E182 -> 0.0262 | E182: =SUM(F182:Z182) -> 0.0262 | F182: 0.0061 | G182: 0.001 | H182: 0.0003 | I182: 0.0005 | J182: 0.0008 | K182: 0.0024 | L182: 0.0031 | M182: 0.0014 | N182: 0.0011 | O182: 0.0021 | P182: 0.0001 | Q182: 0.0004 | R182: 0.0007 | S182: 0.0003 | T182: 0.0001 | U182: 0.0003 | Y182: 0.0006 | Z182: 0.0049 | AD182: Kolonnene bortover viser sannsynligheten for at transportmiddelet i den angitte raden forårsaker skade på transportmiddelet i kolonnen. Summen av disse sannsynlighetene utgjør ulykkesfrekvensen for transportmiddelet i raden. Biler, lette og tunge lastebiler består av flere underkategorier av transportmidler. Underkategoriene er samlet i vektede snitt basert på kjøretøykm i perioden 2006-2017.
B183: Død | C183: 0.0086 | E183: 0.0086 | F183: 0.0015 | G183: 0.0002 | H183: 0.0001 | J183: 0.0001 | K183: 0.0007 | L183: 0.001 | M183: 0.0003 | N183: 0.0004 | O183: 0.0008 | Q183: 0.0003 | R183: 0.0002 | U183: 0.0003 | Y183: 0.0002 | Z183: 0.0025 | AD183: Kolonnene bortover viser sannsynligheten for at transportmiddelet i den angitte raden forårsaker skade på transportmiddelet i kolonnen. Summen av disse sannsynlighetene utgjør ulykkesfrekvensen for transportmiddelet i raden. Biler, lette og tunge lastebiler består av flere underkategorier av transportmidler. Underkategoriene er samlet i vektede snitt basert på kjøretøykm i perioden 2006-2017.
B184: Skip | D184: 40
B185: Lettere skadet | C185: =E185 -> 0.0815 | E185: =SUM(F185:Z185) -> 0.0815 | Z185: 0.0815 | AD185: Kolonnene bortover viser sannsynligheten for at transportmiddelet i den angitte raden forårsaker skade på transportmiddelet i kolonnen. Summen av disse sannsynlighetene utgjør ulykkesfrekvensen for transportmiddelet i raden. Biler, lette og tunge lastebiler består av flere underkategorier av transportmidler. Underkategoriene er samlet i vektede snitt basert på kjøretøykm i perioden 2006-2017.
B186: Hardt skadet | C186: =E186 -> 0.0815 | E186: =SUM(F186:Z186) -> 0.0815 | Z186: 0.0815 | AD186: Kolonnene bortover viser sannsynligheten for at transportmiddelet i den angitte raden forårsaker skade på transportmiddelet i kolonnen. Summen av disse sannsynlighetene utgjør ulykkesfrekvensen for transportmiddelet i raden. Biler, lette og tunge lastebiler består av flere underkategorier av transportmidler. Underkategoriene er samlet i vektede snitt basert på kjøretøykm i perioden 2006-2017.
B187: Død | C187: 0.0063 | E187: 0.0063 | Z187: 0.0063 | AD187: Kolonnene bortover viser sannsynligheten for at transportmiddelet i den angitte raden forårsaker skade på transportmiddelet i kolonnen. Summen av disse sannsynlighetene utgjør ulykkesfrekvensen for transportmiddelet i raden. Biler, lette og tunge lastebiler består av flere underkategorier av transportmidler. Underkategoriene er samlet i vektede snitt basert på kjøretøykm i perioden 2006-2017.
B188: Kombibil | D188: 599
B189: Lettere skadet | E189: =SUM(F189:Z189) -> 0.0713 | F189: 0.003 | G189: 0.0026 | H189: 0.001 | I189: 0.0005 | J189: 0.0019 | K189: 0.0124 | L189: 0.0083 | M189: 0.0058 | N189: 0.0046 | O189: 0.001 | P189: 0.0018 | Q189: 0.004 | R189: 0.0016 | S189: 0.0001 | T189: 0.0008 | U189: 0.0004 | Y189: 0.0012 | Z189: 0.0203
B190: Hardt skadet | E190: =SUM(F190:Z190) -> 0.0069 | F190: 0.0009 | G190: 0.0002 | I190: 0.0001 | J190: 0.0002 | K190: 0.001 | L190: 0.0007 | M190: 0.0003 | N190: 0.0003 | O190: 0.0001 | P190: 0.0001 | Q190: 0.0002 | R190: 0.0003 | S190: 0.0001 | T190: 0.0002 | U190: 0.0001 | Y190: 0.0003 | Z190: 0.0018
B191: Død | E191: 0.0016 | K191: 0.0005 | L191: 0.0003 | M191: 0.0001 | N191: 0.0001 | Q191: 0.0001 | T191: 0.0001 | Y191: 0.0001 | Z191: 0.0003
B192: Varebil | D192: 6419
B193: Lettere skadet | E193: =SUM(F193:Z193) -> 0.0489 | F193: 0.0021 | G193: 0.002 | H193: 0.0011 | I193: 0.0002 | J193: 0.0007 | K193: 0.0078 | L193: 0.0073 | M193: 0.005 | N193: 0.0031 | O193: 0.0005 | P193: 0.0004 | Q193: 0.0031 | R193: 0.0013 | T193: 0.0004 | U193: 0.0003 | Y193: 0.0011 | Z193: 0.0125
B194: Hardt skadet | E194: =SUM(F194:Z194) -> 0.0045 | F194: 0.0004 | G194: 0.0003 | H194: 0.0001 | I194: 0.0001 | J194: 0.0003 | K194: 0.0006 | L194: 0.0005 | M194: 0.0004 | N194: 0.0001 | Q194: 0.0002 | R194: 0.0002 | T194: 0.0001 | Y194: 0.0001 | Z194: 0.0011
B195: Død | E195: 0.0008 | J195: 0.0001 | K195: 0.0001 | L195: 0.0001 | M195: 0.0001 | R195: 0.0001 | Y195: 0.0001 | Z195: 0.0002
B196: Lastebil | D196: 803
B197: Lettere skadet | E197: =SUM(F197:Z197) -> 0.2239 | F197: 0.0054 | G197: 0.005 | H197: 0.0027 | I197: 0.0012 | J197: 0.0035 | K197: 0.0456 | L197: 0.0375 | M197: 0.0268 | N197: 0.0154 | O197: 0.0051 | P197: 0.0012 | Q197: 0.0103 | R197: 0.0103 | T197: 0.0024 | U197: 0.0017 | V197: 0.0003 | W197: 0.0001 | X197: 0.0001 | Y197: 0.006 | Z197: 0.0433
B198: Hardt skadet | E198: =SUM(F198:Z198) -> 0.0263 | F198: 0.002 | G198: 0.0019 | H198: 0.0005 | I198: 0.0001 | J198: 0.0011 | K198: 0.004 | L198: 0.004 | M198: 0.0021 | N198: 0.0015 | O198: 0.0004 | P198: 0.0002 | Q198: 0.0014 | R198: 0.0016 | T198: 0.0004 | U198: 0.0005 | Y198: 0.0004 | Z198: 0.0042
B199: Død | E199: 0.0147 | F199: 0.0017 | G199: 0.0008 | H199: 0.0001 | I199: 0.0001 | J199: 0.0004 | K199: 0.0025 | L199: 0.003 | M199: 0.0012 | N199: 0.0008 | O199: 0.0001 | Q199: 0.0007 | R199: 0.0001 | T199: 0.0002 | Y199: 0.0003 | Z199: 0.0027
B200: Lett lastebil
B201: Lettere skadet | C201: =($D$188*E189+$D$192*E193+$D$196*E197)/($D$188+$D$192+$D$196) -> 0.06858323744 | AD201: Kolonnene bortover viser sannsynligheten for at transportmiddelet i den angitte raden forårsaker skade på transportmiddelet i kolonnen. Summen av disse sannsynlighetene utgjør ulykkesfrekvensen for transportmiddelet i raden. Biler, lette og tunge lastebiler består av flere underkategorier av transportmidler. Underkategoriene er samlet i vektede snitt basert på kjøretøykm i perioden 2006-2017.
B202: Hardt skadet | C202: =($D$188*E190+$D$192*E194+$D$196*E198)/($D$188+$D$192+$D$196) -> 0.006922068789 | AD202: Kolonnene bortover viser sannsynligheten for at transportmiddelet i den angitte raden forårsaker skade på transportmiddelet i kolonnen. Summen av disse sannsynlighetene utgjør ulykkesfrekvensen for transportmiddelet i raden. Biler, lette og tunge lastebiler består av flere underkategorier av transportmidler. Underkategoriene er samlet i vektede snitt basert på kjøretøykm i perioden 2006-2017.
B203: Død | C203: =($D$188*E191+$D$192*E195+$D$196*E199)/($D$188+$D$192+$D$196) -> 0.002288415804 | AD203: Kolonnene bortover viser sannsynligheten for at transportmiddelet i den angitte raden forårsaker skade på transportmiddelet i kolonnen. Summen av disse sannsynlighetene utgjør ulykkesfrekvensen for transportmiddelet i raden. Biler, lette og tunge lastebiler består av flere underkategorier av transportmidler. Underkategoriene er samlet i vektede snitt basert på kjøretøykm i perioden 2006-2017.
B204: Tankbil | D204: 42
B205: Lettere skadet | E205: =SUM(F205:Z205) -> 0.2163 | F205: 0.001 | G205: 0.001 | H205: 0.0019 | J205: 0.0066 | K205: 0.029 | L205: 0.0243 | M205: 0.0167 | N205: 0.0062 | O205: 0.017 | P205: 0.0008 | Q205: 0.0044 | R205: 0.0009 | S205: 0.0049 | T205: 0.0034 | U205: 0.0008 | W205: 0.0004 | X205: 0.0004 | Y205: 0.0017 | Z205: 0.0949
B206: Hardt skadet | E206: =SUM(F206:Z206) -> 0.0432 | F206: 0.0029 | G206: 0.0029 | H206: 0.001 | J206: 0.0009 | K206: 0.0076 | L206: 0.0024 | M206: 0.0093 | N206: 0.0015 | O206: 0.0031 | P206: 0.0008 | R206: 0.0009 | S206: 0.002 | Z206: 0.0079
B207: Død | E207: 0.022 | F207: 0.0029 | K207: 0.0041 | L207: 0.0049 | M207: 0.0031 | N207: 0.0015 | Q207: 0.0035 | Z207: 0.002
... 58 more rows

Sheet 1.1 Standardsatser
A4: Fargeforklaring:
A5: Gule celler er 'Default'-verdier. Kan endres hvis det finnes nye og oppdaterte kilder. | B5: Endres ved oppdaterte kilder
A6: Røde celler er formler. Skal ikke endres. | B6: Formel - skal ikke endres
B11: Standardsatser | J11: Informasjon | N11: Fylles ut ved endring:
C12: =CONCATENATE("Sats ("&KroneårIBeregninger&"-kr) ") -> Sats (-kr) | D12: =CONCATENATE("Sats ("&SisteStatistikkÅr&"-kr) ") -> Sats (2022-kr) | E12: ="Sats ("&H12&")" -> Sats (Opprinnelig kroneår) | F12: Prisjustering | G12: Benevning | H12: Opprinnelig kroneår | J12: Kilde | K12: Indeks for prisjustering | L12: Kommentar | M12: Bakgrunn til satsen | N12: Dato | O12: Lagt inn (Navn):
B13: Billettkostnader for transportmidler
B14: Takster for tog
B15: Grunntakst (per reise) - Arbeidsreiser | C15: =D15*KPIJustering ->  | D15: =E15*F15 -> 20.35531543 | E15: 17.168 | F15: =1/LOOKUP($H15,StatistikkOgPrognoseÅr,KPIIndeks) -> 1.18565444 | G15: Kr | H15: 2016 | J15: Jernbanedirektoratet (2019) | K15: KPI | L15: Det er antatt at det er en fastpris for billetten, så påløper det kilometeravhengige kostnader. Billettprisen blir derfor grunntaksten + antall km*kr/km for hver reisehensikt. | N15: 42977 | O15: Malene Nerland
B16: Grunntakst (per reise) - Fritidsreiser | D16: =E16*F16 -> 4.89201022 | E16: 4.126 | F16: =1/LOOKUP($H16,StatistikkOgPrognoseÅr,KPIIndeks) -> 1.18565444 | G16: Kr | H16: 2016 | J16: Jernbanedirektoratet (2019) | K16: KPI | L16: Det er antatt at det er en fastpris for billetten, så påløper det kilometeravhengige kostnader. Billettprisen blir derfor grunntaksten + antall km*kr/km for hver reisehensikt. | N16: 42977 | O16: Malene Nerland
B17: Grunntakst (per reise) - Forretningsreiser | D17: =E17*F17 -> 111.6009098 | E17: 94.126 | F17: =1/LOOKUP($H17,StatistikkOgPrognoseÅr,KPIIndeks) -> 1.18565444 | G17: Kr | H17: 2016 | J17: Jernbanedirektoratet (2019) | K17: KPI | L17: Det er antatt at det er en fastpris for billetten, så påløper det kilometeravhengige kostnader. Billettprisen blir derfor grunntaksten + antall km*kr/km for hver reisehensikt. | N17: 42977 | O17: Malene Nerland
B18: Grunntakst (per reise) - Vektet Gjennomsnitt | D18: =D15*AndelArbeidsreiser+D16*AndelFritidsreiser+D17*AndelForretningsreiser -> 16.56741034 | K18: ="" -> 
B19: Distanseavhengig - Arbeidsreiser | D19: =E19*F19 -> 0.8157302548 | E19: 0.688 | F19: =1/LOOKUP($H19,StatistikkOgPrognoseÅr,KPIIndeks) -> 1.18565444 | G19: Kr/km | H19: 2016 | J19: Jernbanedirektoratet (2019) | K19: KPI | L19: Det er antatt at det er en fastpris for billetten, så påløper det kilometeravhengige kostnader. Billettprisen blir derfor grunntaksten + antall km*kr/km for hver reisehensikt. | N19: 42977 | O19: Malene Nerland
B20: Distanseavhengig - Fritidsreiser | D20: =E20*F20 -> 2.884697253 | E20: 2.433 | F20: =1/LOOKUP($H20,StatistikkOgPrognoseÅr,KPIIndeks) -> 1.18565444 | G20: Kr/km | H20: 2016 | J20: Jernbanedirektoratet (2019) | K20: KPI | L20: Det er antatt at det er en fastpris for billetten, så påløper det kilometeravhengige kostnader. Billettprisen blir derfor grunntaksten + antall km*kr/km for hver reisehensikt. | N20: 42977 | O20: Malene Nerland
B21: Distanseavhengig - Forretningsreiser | D21: =E21*F21 -> 2.884697253 | E21: 2.433 | F21: =1/LOOKUP($H21,StatistikkOgPrognoseÅr,KPIIndeks) -> 1.18565444 | G21: Kr/km | H21: 2016 | J21: Jernbanedirektoratet (2019) | K21: KPI | L21: Det er antatt at det er en fastpris for billetten, så påløper det kilometeravhengige kostnader. Billettprisen blir derfor grunntaksten + antall km*kr/km for hver reisehensikt. | N21: 42977 | O21: Malene Nerland
B22: Distanseavhengig - Vektet Gjennomsnitt | D22: =D19*AndelArbeidsreiser+D20*AndelFritidsreiser+D21*AndelForretningsreiser -> 2.036420784 | K22: ="" ->  | N22: 42977 | O22: Malene Nerland
B23: Tidskostnader for reisende
B24: Reiser under 70 km
B25: Arbeidsreiser - Tog (gj.snittlig trengsel) | C25: =IF(KroneårIBeregninger<=SistePrognoseÅr,D25*LønnskostnadJustering,D25*Realprisjustering_tilsisteprognoseår*Realprisjustering_ettersisteprognoseår) ->  | D25: =E25*F25 -> 124.4509804 | E25: 108 | F25: =1/LOOKUP($H25,StatistikkOgPrognoseÅr,Lønnskostnadsindeks) -> 1.152323893 | G25: Kr/time | H25: 2018 | J25: TØI (2020) | K25: Lønnskostnad | L25: TØIs studie er basert på stated preferences (SP), med hypotetiske valg mellom reisetid, ventetid, omstigning, pålitelighet og kø. For gående og syklende er det også gjort en undersøkelse basert på endring i faktisk atferd (revealed preferences, RP). For tog, buss og bane/trikk er verdsettingen gjennomført med ulike forutsetninger om trengsel om bord. Dersom man i trafikantnytteberegningen ikke skal beregne nyttevirkninger fra endret trengselsnivå separat, bør man bruke verdiene for gjennomsnittlig trengsel. Dersom man skal beregne trengselsvirkninger separat (f.eks. i Trenklin), bør man bruke verdiene uten trengsel. Merk at SAGA ikke beregner trafikantnytten, slik at disse verdiene kun er ment som oppslagsverk. | N25: 44012 | O25: Øystein Rembar
B26: Arbeidsreiser - Tog (uten trengsel) | D26: =E26*F26 -> 97.94753086 | E26: 85 | F26: 1.152323893 | G26: Kr/time | H26: 2018 | J26: TØI (2020) | K26: Lønnskostnad | L26: TØIs studie er basert på stated preferences (SP), med hypotetiske valg mellom reisetid, ventetid, omstigning, pålitelighet og kø. For gående og syklende er det også gjort en undersøkelse basert på endring i faktisk atferd (revealed preferences, RP). For tog, buss og bane/trikk er verdsettingen gjennomført med ulike forutsetninger om trengsel om bord. Dersom man i trafikantnytteberegningen ikke skal beregne nyttevirkninger fra endret trengselsnivå separat, bør man bruke verdiene for gjennomsnittlig trengsel. Dersom man skal beregne trengselsvirkninger separat (f.eks. i Trenklin), bør man bruke verdiene uten trengsel. Merk at SAGA ikke beregner trafikantnytten, slik at disse verdiene kun er ment som oppslagsverk. | N26: 44012 | O26: Øystein Rembar
B27: Arbeidsreiser - Bilfører | D27: 107.166122 | E27: 93 | F27: 1.152323893 | G27: Kr/time | H27: 2018 | J27: TØI (2020) | K27: Lønnskostnad | L27: TØIs studie er basert på stated preferences (SP), med hypotetiske valg mellom reisetid, ventetid, omstigning, pålitelighet og kø. For gående og syklende er det også gjort en undersøkelse basert på endring i faktisk atferd (revealed preferences, RP). For tog, buss og bane/trikk er verdsettingen gjennomført med ulike forutsetninger om trengsel om bord. Dersom man i trafikantnytteberegningen ikke skal beregne nyttevirkninger fra endret trengselsnivå separat, bør man bruke verdiene for gjennomsnittlig trengsel. Dersom man skal beregne trengselsvirkninger separat (f.eks. i Trenklin), bør man bruke verdiene uten trengsel. Merk at SAGA ikke beregner trafikantnytten, slik at disse verdiene kun er ment som oppslagsverk. | N27: 44012 | O27: Øystein Rembar
B28: Arbeidsreiser - Bilpassasjer | D28: 63.37781409 | E28: 55 | F28: 1.152323893 | G28: Kr/time | H28: 2018 | J28: TØI (2020) | K28: Lønnskostnad | L28: TØIs studie er basert på stated preferences (SP), med hypotetiske valg mellom reisetid, ventetid, omstigning, pålitelighet og kø. For gående og syklende er det også gjort en undersøkelse basert på endring i faktisk atferd (revealed preferences, RP). For tog, buss og bane/trikk er verdsettingen gjennomført med ulike forutsetninger om trengsel om bord. Dersom man i trafikantnytteberegningen ikke skal beregne nyttevirkninger fra endret trengselsnivå separat, bør man bruke verdiene for gjennomsnittlig trengsel. Dersom man skal beregne trengselsvirkninger separat (f.eks. i Trenklin), bør man bruke verdiene uten trengsel. Merk at SAGA ikke beregner trafikantnytten, slik at disse verdiene kun er ment som oppslagsverk. | N28: 44012 | O28: Øystein Rembar
B29: Arbeidsreiser - Buss (gj.snittlig trengsel) | D29: 91.03358751 | E29: 79 | F29: 1.152323893 | G29: Kr/time | H29: 2018 | J29: TØI (2020) | K29: Lønnskostnad | L29: TØIs studie er basert på stated preferences (SP), med hypotetiske valg mellom reisetid, ventetid, omstigning, pålitelighet og kø. For gående og syklende er det også gjort en undersøkelse basert på endring i faktisk atferd (revealed preferences, RP). For tog, buss og bane/trikk er verdsettingen gjennomført med ulike forutsetninger om trengsel om bord. Dersom man i trafikantnytteberegningen ikke skal beregne nyttevirkninger fra endret trengselsnivå separat, bør man bruke verdiene for gjennomsnittlig trengsel. Dersom man skal beregne trengselsvirkninger separat (f.eks. i Trenklin), bør man bruke verdiene uten trengsel. Merk at SAGA ikke beregner trafikantnytten, slik at disse verdiene kun er ment som oppslagsverk. | N29: 44012 | O29: Øystein Rembar
B30: Arbeidsreiser - Sykkel (kontrollert for ulykkesrisiko) | D30: 132.9781772 | E30: 115.4 | F30: 1.152323893 | G30: Kr/time | H30: 2018 | J30: TØI (2020) | K30: Lønnskostnad | L30: TØIs studie er basert på stated preferences (SP), med hypotetiske valg mellom reisetid, ventetid, omstigning, pålitelighet og kø. For gående og syklende er det også gjort en undersøkelse basert på endring i faktisk atferd (revealed preferences, RP). For tog, buss og bane/trikk er verdsettingen gjennomført med ulike forutsetninger om trengsel om bord. Dersom man i trafikantnytteberegningen ikke skal beregne nyttevirkninger fra endret trengselsnivå separat, bør man bruke verdiene for gjennomsnittlig trengsel. Dersom man skal beregne trengselsvirkninger separat (f.eks. i Trenklin), bør man bruke verdiene uten trengsel. Merk at SAGA ikke beregner trafikantnytten, slik at disse verdiene kun er ment som oppslagsverk. | N30: 44012 | O30: Øystein Rembar
B31: Arbeidsreiser - Gange (kontrollert for ulykkesrisiko) | D31: 297.2995643 | E31: 258 | F31: 1.152323893 | G31: Kr/time | H31: 2018 | J31: TØI (2020) | K31: Lønnskostnad | L31: TØIs studie er basert på stated preferences (SP), med hypotetiske valg mellom reisetid, ventetid, omstigning, pålitelighet og kø. For gående og syklende er det også gjort en undersøkelse basert på endring i faktisk atferd (revealed preferences, RP). For tog, buss og bane/trikk er verdsettingen gjennomført med ulike forutsetninger om trengsel om bord. Dersom man i trafikantnytteberegningen ikke skal beregne nyttevirkninger fra endret trengselsnivå separat, bør man bruke verdiene for gjennomsnittlig trengsel. Dersom man skal beregne trengselsvirkninger separat (f.eks. i Trenklin), bør man bruke verdiene uten trengsel. Merk at SAGA ikke beregner trafikantnytten, slik at disse verdiene kun er ment som oppslagsverk. | N31: 44012 | O31: Øystein Rembar
B32: Arbeidsreiser - Hutigbåt | D32: 120.9940087 | E32: 105 | F32: 1.152323893 | G32: Kr/time | H32: 2018 | J32: TØI (2020) | K32: Lønnskostnad | L32: TØIs studie er basert på stated preferences (SP), med hypotetiske valg mellom reisetid, ventetid, omstigning, pålitelighet og kø. For gående og syklende er det også gjort en undersøkelse basert på endring i faktisk atferd (revealed preferences, RP). For tog, buss og bane/trikk er verdsettingen gjennomført med ulike forutsetninger om trengsel om bord. Dersom man i trafikantnytteberegningen ikke skal beregne nyttevirkninger fra endret trengselsnivå separat, bør man bruke verdiene for gjennomsnittlig trengsel. Dersom man skal beregne trengselsvirkninger separat (f.eks. i Trenklin), bør man bruke verdiene uten trengsel. Merk at SAGA ikke beregner trafikantnytten, slik at disse verdiene kun er ment som oppslagsverk. | N32: 44012 | O32: Øystein Rembar
B33: Arbeidsreiser - T-bane/trikk/bybane (gj.snittlig trengsel) | D33: 91.03358751 | E33: 79 | F33: 1.152323893 | G33: Kr/time | H33: 2018 | J33: TØI (2020) | K33: Lønnskostnad | L33: TØIs studie er basert på stated preferences (SP), med hypotetiske valg mellom reisetid, ventetid, omstigning, pålitelighet og kø. For gående og syklende er det også gjort en undersøkelse basert på endring i faktisk atferd (revealed preferences, RP). For tog, buss og bane/trikk er verdsettingen gjennomført med ulike forutsetninger om trengsel om bord. Dersom man i trafikantnytteberegningen ikke skal beregne nyttevirkninger fra endret trengselsnivå separat, bør man bruke verdiene for gjennomsnittlig trengsel. Dersom man skal beregne trengselsvirkninger separat (f.eks. i Trenklin), bør man bruke verdiene uten trengsel. Merk at SAGA ikke beregner trafikantnytten, slik at disse verdiene kun er ment som oppslagsverk. | N33: 44012 | O33: Øystein Rembar
B34: Fritidsreiser - Tog (gj.snittlig trengsel) | D34: 108.3184459 | E34: 94 | F34: 1.152323893 | G34: Kr/time | H34: 2018 | J34: TØI (2020) | K34: Lønnskostnad | L34: TØIs studie er basert på stated preferences (SP), med hypotetiske valg mellom reisetid, ventetid, omstigning, pålitelighet og kø. For gående og syklende er det også gjort en undersøkelse basert på endring i faktisk atferd (revealed preferences, RP). For tog, buss og bane/trikk er verdsettingen gjennomført med ulike forutsetninger om trengsel om bord. Dersom man i trafikantnytteberegningen ikke skal beregne nyttevirkninger fra endret trengselsnivå separat, bør man bruke verdiene for gjennomsnittlig trengsel. Dersom man skal beregne trengselsvirkninger separat (f.eks. i Trenklin), bør man bruke verdiene uten trengsel. Merk at SAGA ikke beregner trafikantnytten, slik at disse verdiene kun er ment som oppslagsverk. | N34: 44012 | O34: Øystein Rembar
B35: Fritidsreiser - Tog (uten trengsel) | D35: 93.33823529 | E35: 81 | F35: 1.152323893 | G35: Kr/time | H35: 2018 | J35: TØI (2020) | K35: Lønnskostnad | L35: TØIs studie er basert på stated preferences (SP), med hypotetiske valg mellom reisetid, ventetid, omstigning, pålitelighet og kø. For gående og syklende er det også gjort en undersøkelse basert på endring i faktisk atferd (revealed preferences, RP). For tog, buss og bane/trikk er verdsettingen gjennomført med ulike forutsetninger om trengsel om bord. Dersom man i trafikantnytteberegningen ikke skal beregne nyttevirkninger fra endret trengselsnivå separat, bør man bruke verdiene for gjennomsnittlig trengsel. Dersom man skal beregne trengselsvirkninger separat (f.eks. i Trenklin), bør man bruke verdiene uten trengsel. Merk at SAGA ikke beregner trafikantnytten, slik at disse verdiene kun er ment som oppslagsverk. | N35: 44012 | O35: Øystein Rembar
B36: Fritidsreiser - Bilfører | D36: 88.72893972 | E36: 77 | F36: 1.152323893 | G36: Kr/time | H36: 2018 | J36: TØI (2020) | K36: Lønnskostnad | L36: TØIs studie er basert på stated preferences (SP), med hypotetiske valg mellom reisetid, ventetid, omstigning, pålitelighet og kø. For gående og syklende er det også gjort en undersøkelse basert på endring i faktisk atferd (revealed preferences, RP). For tog, buss og bane/trikk er verdsettingen gjennomført med ulike forutsetninger om trengsel om bord. Dersom man i trafikantnytteberegningen ikke skal beregne nyttevirkninger fra endret trengselsnivå separat, bør man bruke verdiene for gjennomsnittlig trengsel. Dersom man skal beregne trengselsvirkninger separat (f.eks. i Trenklin), bør man bruke verdiene uten trengsel. Merk at SAGA ikke beregner trafikantnytten, slik at disse verdiene kun er ment som oppslagsverk. | N36: 44012 | O36: Øystein Rembar
B37: Fritidsreiser - Bilpassasjer | D37: 81.81499637 | E37: 71 | F37: 1.152323893 | G37: Kr/time | H37: 2018 | J37: TØI (2020) | K37: Lønnskostnad | L37: TØIs studie er basert på stated preferences (SP), med hypotetiske valg mellom reisetid, ventetid, omstigning, pålitelighet og kø. For gående og syklende er det også gjort en undersøkelse basert på endring i faktisk atferd (revealed preferences, RP). For tog, buss og bane/trikk er verdsettingen gjennomført med ulike forutsetninger om trengsel om bord. Dersom man i trafikantnytteberegningen ikke skal beregne nyttevirkninger fra endret trengselsnivå separat, bør man bruke verdiene for gjennomsnittlig trengsel. Dersom man skal beregne trengselsvirkninger separat (f.eks. i Trenklin), bør man bruke verdiene uten trengsel. Merk at SAGA ikke beregner trafikantnytten, slik at disse verdiene kun er ment som oppslagsverk. | N37: 44012 | O37: Øystein Rembar
B38: Fritidsreiser - Buss (gj.snittlig trengsel) | D38: 64.53013798 | E38: 56 | F38: 1.152323893 | G38: Kr/time | H38: 2018 | J38: TØI (2020) | K38: Lønnskostnad | L38: TØIs studie er basert på stated preferences (SP), med hypotetiske valg mellom reisetid, ventetid, omstigning, pålitelighet og kø. For gående og syklende er det også gjort en undersøkelse basert på endring i faktisk atferd (revealed preferences, RP). For tog, buss og bane/trikk er verdsettingen gjennomført med ulike forutsetninger om trengsel om bord. Dersom man i trafikantnytteberegningen ikke skal beregne nyttevirkninger fra endret trengselsnivå separat, bør man bruke verdiene for gjennomsnittlig trengsel. Dersom man skal beregne trengselsvirkninger separat (f.eks. i Trenklin), bør man bruke verdiene uten trengsel. Merk at SAGA ikke beregner trafikantnytten, slik at disse verdiene kun er ment som oppslagsverk. | N38: 44012 | O38: Øystein Rembar
B39: Fritidsreiser - Sykkel (kontrollert for ulykkesrisiko) | D39: 73.40303195 | E39: 63.7 | F39: 1.152323893 | G39: Kr/time | H39: 2018 | J39: TØI (2020) | K39: Lønnskostnad | L39: TØIs studie er basert på stated preferences (SP), med hypotetiske valg mellom reisetid, ventetid, omstigning, pålitelighet og kø. For gående og syklende er det også gjort en undersøkelse basert på endring i faktisk atferd (revealed preferences, RP). For tog, buss og bane/trikk er verdsettingen gjennomført med ulike forutsetninger om trengsel om bord. Dersom man i trafikantnytteberegningen ikke skal beregne nyttevirkninger fra endret trengselsnivå separat, bør man bruke verdiene for gjennomsnittlig trengsel. Dersom man skal beregne trengselsvirkninger separat (f.eks. i Trenklin), bør man bruke verdiene uten trengsel. Merk at SAGA ikke beregner trafikantnytten, slik at disse verdiene kun er ment som oppslagsverk. | N39: 44012 | O39: Øystein Rembar
B40: Fritidsreiser - Gange (kontrollert for ulykkesrisiko) | D40: 180.9148511 | E40: 157 | F40: 1.152323893 | G40: Kr/time | H40: 2018 | J40: TØI (2020) | K40: Lønnskostnad | L40: TØIs studie er basert på stated preferences (SP), med hypotetiske valg mellom reisetid, ventetid, omstigning, pålitelighet og kø. For gående og syklende er det også gjort en undersøkelse basert på endring i faktisk atferd (revealed preferences, RP). For tog, buss og bane/trikk er verdsettingen gjennomført med ulike forutsetninger om trengsel om bord. Dersom man i trafikantnytteberegningen ikke skal beregne nyttevirkninger fra endret trengselsnivå separat, bør man bruke verdiene for gjennomsnittlig trengsel. Dersom man skal beregne trengselsvirkninger separat (f.eks. i Trenklin), bør man bruke verdiene uten trengsel. Merk at SAGA ikke beregner trafikantnytten, slik at disse verdiene kun er ment som oppslagsverk. | N40: 44012 | O40: Øystein Rembar
B41: Fritidsreiser - Hurtigbåt | D41: 95.64288308 | E41: 83 | F41: 1.152323893 | G41: Kr/time | H41: 2018 | J41: TØI (2020) | K41: Lønnskostnad | L41: TØIs studie er basert på stated preferences (SP), med hypotetiske valg mellom reisetid, ventetid, omstigning, pålitelighet og kø. For gående og syklende er det også gjort en undersøkelse basert på endring i faktisk atferd (revealed preferences, RP). For tog, buss og bane/trikk er verdsettingen gjennomført med ulike forutsetninger om trengsel om bord. Dersom man i trafikantnytteberegningen ikke skal beregne nyttevirkninger fra endret trengselsnivå separat, bør man bruke verdiene for gjennomsnittlig trengsel. Dersom man skal beregne trengselsvirkninger separat (f.eks. i Trenklin), bør man bruke verdiene uten trengsel. Merk at SAGA ikke beregner trafikantnytten, slik at disse verdiene kun er ment som oppslagsverk. | N41: 44012 | O41: Øystein Rembar
B42: Fritidsreiser - T-bane/trikk/bybane (gj.snittlig trengsel) | D42: 81.81499637 | E42: 71 | F42: 1.152323893 | G42: Kr/time | H42: 2018 | J42: TØI (2020) | K42: Lønnskostnad | L42: TØIs studie er basert på stated preferences (SP), med hypotetiske valg mellom reisetid, ventetid, omstigning, pålitelighet og kø. For gående og syklende er det også gjort en undersøkelse basert på endring i faktisk atferd (revealed preferences, RP). For tog, buss og bane/trikk er verdsettingen gjennomført med ulike forutsetninger om trengsel om bord. Dersom man i trafikantnytteberegningen ikke skal beregne nyttevirkninger fra endret trengselsnivå separat, bør man bruke verdiene for gjennomsnittlig trengsel. Dersom man skal beregne trengselsvirkninger separat (f.eks. i Trenklin), bør man bruke verdiene uten trengsel. Merk at SAGA ikke beregner trafikantnytten, slik at disse verdiene kun er ment som oppslagsverk. | N42: 44012 | O42: Øystein Rembar
B43: Forretningsreiser - Tog (gj.snittlig trengsel) | D43: 519.6980755 | E43: 451 | F43: 1.152323893 | G43: Kr/time | H43: 2018 | J43: TØI (2020) | K43: Lønnskostnad | L43: TØIs studie er basert på stated preferences (SP), med hypotetiske valg mellom reisetid, ventetid, omstigning, pålitelighet og kø. For gående og syklende er det også gjort en undersøkelse basert på endring i faktisk atferd (revealed preferences, RP). For tog, buss og bane/trikk er verdsettingen gjennomført med ulike forutsetninger om trengsel om bord. Dersom man i trafikantnytteberegningen ikke skal beregne nyttevirkninger fra endret trengselsnivå separat, bør man bruke verdiene for gjennomsnittlig trengsel. Dersom man skal beregne trengselsvirkninger separat (f.eks. i Trenklin), bør man bruke verdiene uten trengsel. Merk at SAGA ikke beregner trafikantnytten, slik at disse verdiene kun er ment som oppslagsverk. | N43: 44012 | O43: Øystein Rembar
B44: Forretningsreiser - Tog (uten trengsel) | D44: 502.4132171 | E44: 436 | F44: 1.152323893 | G44: Kr/time | H44: 2018 | J44: TØI (2020) | K44: Lønnskostnad | L44: TØIs studie er basert på stated preferences (SP), med hypotetiske valg mellom reisetid, ventetid, omstigning, pålitelighet og kø. For gående og syklende er det også gjort en undersøkelse basert på endring i faktisk atferd (revealed preferences, RP). For tog, buss og bane/trikk er verdsettingen gjennomført med ulike forutsetninger om trengsel om bord. Dersom man i trafikantnytteberegningen ikke skal beregne nyttevirkninger fra endret trengselsnivå separat, bør man bruke verdiene for gjennomsnittlig trengsel. Dersom man skal beregne trengselsvirkninger separat (f.eks. i Trenklin), bør man bruke verdiene uten trengsel. Merk at SAGA ikke beregner trafikantnytten, slik at disse verdiene kun er ment som oppslagsverk. | N44: 44012 | O44: Øystein Rembar
B45: Forretningsreiser - Bilfører | D45: 589.989833 | E45: 512 | F45: 1.152323893 | G45: Kr/time | H45: 2018 | J45: TØI (2020) | K45: Lønnskostnad | L45: TØIs studie er basert på stated preferences (SP), med hypotetiske valg mellom reisetid, ventetid, omstigning, pålitelighet og kø. For gående og syklende er det også gjort en undersøkelse basert på endring i faktisk atferd (revealed preferences, RP). For tog, buss og bane/trikk er verdsettingen gjennomført med ulike forutsetninger om trengsel om bord. Dersom man i trafikantnytteberegningen ikke skal beregne nyttevirkninger fra endret trengselsnivå separat, bør man bruke verdiene for gjennomsnittlig trengsel. Dersom man skal beregne trengselsvirkninger separat (f.eks. i Trenklin), bør man bruke verdiene uten trengsel. Merk at SAGA ikke beregner trafikantnytten, slik at disse verdiene kun er ment som oppslagsverk. | N45: 44012 | O45: Øystein Rembar
B46: Forretningsreiser - Bilpassasjer | D46: 455.1679375 | E46: 395 | F46: 1.152323893 | G46: Kr/time | H46: 2018 | J46: TØI (2020) | K46: Lønnskostnad | L46: TØIs studie er basert på stated preferences (SP), med hypotetiske valg mellom reisetid, ventetid, omstigning, pålitelighet og kø. For gående og syklende er det også gjort en undersøkelse basert på endring i faktisk atferd (revealed preferences, RP). For tog, buss og bane/trikk er verdsettingen gjennomført med ulike forutsetninger om trengsel om bord. Dersom man i trafikantnytteberegningen ikke skal beregne nyttevirkninger fra endret trengselsnivå separat, bør man bruke verdiene for gjennomsnittlig trengsel. Dersom man skal beregne trengselsvirkninger separat (f.eks. i Trenklin), bør man bruke verdiene uten trengsel. Merk at SAGA ikke beregner trafikantnytten, slik at disse verdiene kun er ment som oppslagsverk. | N46: 44012 | O46: Øystein Rembar
B47: Forretningsreiser - Buss (gj.snittlig trengsel) | D47: 518.5457516 | E47: 450 | F47: 1.152323893 | G47: Kr/time | H47: 2018 | J47: TØI (2020) | K47: Lønnskostnad | L47: TØIs studie er basert på stated preferences (SP), med hypotetiske valg mellom reisetid, ventetid, omstigning, pålitelighet og kø. For gående og syklende er det også gjort en undersøkelse basert på endring i faktisk atferd (revealed preferences, RP). For tog, buss og bane/trikk er verdsettingen gjennomført med ulike forutsetninger om trengsel om bord. Dersom man i trafikantnytteberegningen ikke skal beregne nyttevirkninger fra endret trengselsnivå separat, bør man bruke verdiene for gjennomsnittlig trengsel. Dersom man skal beregne trengselsvirkninger separat (f.eks. i Trenklin), bør man bruke verdiene uten trengsel. Merk at SAGA ikke beregner trafikantnytten, slik at disse verdiene kun er ment som oppslagsverk. | N47: 44012 | O47: Øystein Rembar
B48: Forretningsreiser - Hurtigbåt | D48: 504.7178649 | E48: 438 | F48: 1.152323893 | G48: Kr/time | H48: 2018 | J48: TØI (2020) | K48: Lønnskostnad | L48: TØIs studie er basert på stated preferences (SP), med hypotetiske valg mellom reisetid, ventetid, omstigning, pålitelighet og kø. For gående og syklende er det også gjort en undersøkelse basert på endring i faktisk atferd (revealed preferences, RP). For tog, buss og bane/trikk er verdsettingen gjennomført med ulike forutsetninger om trengsel om bord. Dersom man i trafikantnytteberegningen ikke skal beregne nyttevirkninger fra endret trengselsnivå separat, bør man bruke verdiene for gjennomsnittlig trengsel. Dersom man skal beregne trengselsvirkninger separat (f.eks. i Trenklin), bør man bruke verdiene uten trengsel. Merk at SAGA ikke beregner trafikantnytten, slik at disse verdiene kun er ment som oppslagsverk. | N48: 44012 | O48: Øystein Rembar
B49: Forretningsreiser - T-bane/trikk/bybane (gj.snittlig trengsel) | D49: 550.8108206 | E49: 478 | F49: 1.152323893 | G49: Kr/time | H49: 2018 | J49: TØI (2020) | K49: Lønnskostnad | L49: TØIs studie er basert på stated preferences (SP), med hypotetiske valg mellom reisetid, ventetid, omstigning, pålitelighet og kø. For gående og syklende er det også gjort en undersøkelse basert på endring i faktisk atferd (revealed preferences, RP). For tog, buss og bane/trikk er verdsettingen gjennomført med ulike forutsetninger om trengsel om bord. Dersom man i trafikantnytteberegningen ikke skal beregne nyttevirkninger fra endret trengselsnivå separat, bør man bruke verdiene for gjennomsnittlig trengsel. Dersom man skal beregne trengselsvirkninger separat (f.eks. i Trenklin), bør man bruke verdiene uten trengsel. Merk at SAGA ikke beregner trafikantnytten, slik at disse verdiene kun er ment som oppslagsverk. | N49: 44012 | O49: Øystein Rembar
B50: Alle formål - Tog (gj.snittlig trengsel) | D50: 125.6033043 | E50: 109 | F50: 1.152323893 | G50: Kr/time | H50: 2018 | J50: TØI (2020) | K50: Lønnskostnad | L50: TØIs studie er basert på stated preferences (SP), med hypotetiske valg mellom reisetid, ventetid, omstigning, pålitelighet og kø. For gående og syklende er det også gjort en undersøkelse basert på endring i faktisk atferd (revealed preferences, RP). For tog, buss og bane/trikk er verdsettingen gjennomført med ulike forutsetninger om trengsel om bord. Dersom man i trafikantnytteberegningen ikke skal beregne nyttevirkninger fra endret trengselsnivå separat, bør man bruke verdiene for gjennomsnittlig trengsel. Dersom man skal beregne trengselsvirkninger separat (f.eks. i Trenklin), bør man bruke verdiene uten trengsel. Merk at SAGA ikke beregner trafikantnytten, slik at disse verdiene kun er ment som oppslagsverk. | N50: 44012 | O50: Øystein Rembar
B51: Alle formål - Tog (uten trengsel) | D51: 102.5568264 | E51: 89 | F51: 1.152323893 | G51: Kr/time | H51: 2018 | J51: TØI (2020) | K51: Lønnskostnad | L51: TØIs studie er basert på stated preferences (SP), med hypotetiske valg mellom reisetid, ventetid, omstigning, pålitelighet og kø. For gående og syklende er det også gjort en undersøkelse basert på endring i faktisk atferd (revealed preferences, RP). For tog, buss og bane/trikk er verdsettingen gjennomført med ulike forutsetninger om trengsel om bord. Dersom man i trafikantnytteberegningen ikke skal beregne nyttevirkninger fra endret trengselsnivå separat, bør man bruke verdiene for gjennomsnittlig trengsel. Dersom man skal beregne trengselsvirkninger separat (f.eks. i Trenklin), bør man bruke verdiene uten trengsel. Merk at SAGA ikke beregner trafikantnytten, slik at disse verdiene kun er ment som oppslagsverk. | N51: 44012 | O51: Øystein Rembar
B52: Alle formål - Bilfører | D52: 192.4380901 | E52: 167 | F52: 1.152323893 | G52: Kr/time | H52: 2018 | J52: TØI (2020) | K52: Lønnskostnad | L52: TØIs studie er basert på stated preferences (SP), med hypotetiske valg mellom reisetid, ventetid, omstigning, pålitelighet og kø. For gående og syklende er det også gjort en undersøkelse basert på endring i faktisk atferd (revealed preferences, RP). For tog, buss og bane/trikk er verdsettingen gjennomført med ulike forutsetninger om trengsel om bord. Dersom man i trafikantnytteberegningen ikke skal beregne nyttevirkninger fra endret trengselsnivå separat, bør man bruke verdiene for gjennomsnittlig trengsel. Dersom man skal beregne trengselsvirkninger separat (f.eks. i Trenklin), bør man bruke verdiene uten trengsel. Merk at SAGA ikke beregner trafikantnytten, slik at disse verdiene kun er ment som oppslagsverk. | N52: 44012 | O52: Øystein Rembar
B53: Alle formål - Bilpassasjer | D53: 101.4045025 | E53: 88 | F53: 1.152323893 | G53: Kr/time | H53: 2018 | J53: TØI (2020) | K53: Lønnskostnad | L53: TØIs studie er basert på stated preferences (SP), med hypotetiske valg mellom reisetid, ventetid, omstigning, pålitelighet og kø. For gående og syklende er det også gjort en undersøkelse basert på endring i faktisk atferd (revealed preferences, RP). For tog, buss og bane/trikk er verdsettingen gjennomført med ulike forutsetninger om trengsel om bord. Dersom man i trafikantnytteberegningen ikke skal beregne nyttevirkninger fra endret trengselsnivå separat, bør man bruke verdiene for gjennomsnittlig trengsel. Dersom man skal beregne trengselsvirkninger separat (f.eks. i Trenklin), bør man bruke verdiene uten trengsel. Merk at SAGA ikke beregner trafikantnytten, slik at disse verdiene kun er ment som oppslagsverk. | N53: 44012 | O53: Øystein Rembar
B54: Alle formål - Buss (gj.snittlig trengsel) | D54: 86.42429194 | E54: 75 | F54: 1.152323893 | G54: Kr/time | H54: 2018 | J54: TØI (2020) | K54: Lønnskostnad | L54: TØIs studie er basert på stated preferences (SP), med hypotetiske valg mellom reisetid, ventetid, omstigning, pålitelighet og kø. For gående og syklende er det også gjort en undersøkelse basert på endring i faktisk atferd (revealed preferences, RP). For tog, buss og bane/trikk er verdsettingen gjennomført med ulike forutsetninger om trengsel om bord. Dersom man i trafikantnytteberegningen ikke skal beregne nyttevirkninger fra endret trengselsnivå separat, bør man bruke verdiene for gjennomsnittlig trengsel. Dersom man skal beregne trengselsvirkninger separat (f.eks. i Trenklin), bør man bruke verdiene uten trengsel. Merk at SAGA ikke beregner trafikantnytten, slik at disse verdiene kun er ment som oppslagsverk. | N54: 44012 | O54: Øystein Rembar
B55: Alle formål - Sykkel (kontrollert for ulykkesrisiko) | D55: =E55*F55 -> 129.7516703 | E55: 112.6 | F55: 1.152323893 | G55: Kr/time | H55: 2018 | J55: TØI (2020) | K55: Lønnskostnad | L55: TØIs studie er basert på stated preferences (SP), med hypotetiske valg mellom reisetid, ventetid, omstigning, pålitelighet og kø. For gående og syklende er det også gjort en undersøkelse basert på endring i faktisk atferd (revealed preferences, RP). For tog, buss og bane/trikk er verdsettingen gjennomført med ulike forutsetninger om trengsel om bord. Dersom man i trafikantnytteberegningen ikke skal beregne nyttevirkninger fra endret trengselsnivå separat, bør man bruke verdiene for gjennomsnittlig trengsel. Dersom man skal beregne trengselsvirkninger separat (f.eks. i Trenklin), bør man bruke verdiene uten trengsel. Merk at SAGA ikke beregner trafikantnytten, slik at disse verdiene kun er ment som oppslagsverk. | N55: 44012 | O55: Øystein Rembar
B56: Alle formål - Gange (kontrollert for ulykkesrisiko) | D56: 193.5904139 | E56: 168 | F56: 1.152323893 | G56: Kr/time | H56: 2018 | J56: TØI (2020) | K56: Lønnskostnad | L56: TØIs studie er basert på stated preferences (SP), med hypotetiske valg mellom reisetid, ventetid, omstigning, pålitelighet og kø. For gående og syklende er det også gjort en undersøkelse basert på endring i faktisk atferd (revealed preferences, RP). For tog, buss og bane/trikk er verdsettingen gjennomført med ulike forutsetninger om trengsel om bord. Dersom man i trafikantnytteberegningen ikke skal beregne nyttevirkninger fra endret trengselsnivå separat, bør man bruke verdiene for gjennomsnittlig trengsel. Dersom man skal beregne trengselsvirkninger separat (f.eks. i Trenklin), bør man bruke verdiene uten trengsel. Merk at SAGA ikke beregner trafikantnytten, slik at disse verdiene kun er ment som oppslagsverk. | N56: 44012 | O56: Øystein Rembar
B57: Alle formål - Hurtigbåt | D57: =E57*F57 -> 124.7348658 | E57: 112 | F57: 1.113704159 | G57: Kr/time | H57: 2019 | J57: TØI (2020) | K57: Lønnskostnad | L57: TØIs studie er basert på stated preferences (SP), med hypotetiske valg mellom reisetid, ventetid, omstigning, pålitelighet og kø. For gående og syklende er det også gjort en undersøkelse basert på endring i faktisk atferd (revealed preferences, RP). For tog, buss og bane/trikk er verdsettingen gjennomført med ulike forutsetninger om trengsel om bord. Dersom man i trafikantnytteberegningen ikke skal beregne nyttevirkninger fra endret trengselsnivå separat, bør man bruke verdiene for gjennomsnittlig trengsel. Dersom man skal beregne trengselsvirkninger separat (f.eks. i Trenklin), bør man bruke verdiene uten trengsel. Merk at SAGA ikke beregner trafikantnytten, slik at disse verdiene kun er ment som oppslagsverk. | N57: 44012 | O57: Øystein Rembar
B58: Alle formål - T-bane/trikk/bybane (gj.snittlig trengsel) | D58: 99.09985476 | E58: 86 | F58: 1.152323893 | G58: Kr/time | H58: 2018 | J58: TØI (2020) | K58: Lønnskostnad | L58: TØIs studie er basert på stated preferences (SP), med hypotetiske valg mellom reisetid, ventetid, omstigning, pålitelighet og kø. For gående og syklende er det også gjort en undersøkelse basert på endring i faktisk atferd (revealed preferences, RP). For tog, buss og bane/trikk er verdsettingen gjennomført med ulike forutsetninger om trengsel om bord. Dersom man i trafikantnytteberegningen ikke skal beregne nyttevirkninger fra endret trengselsnivå separat, bør man bruke verdiene for gjennomsnittlig trengsel. Dersom man skal beregne trengselsvirkninger separat (f.eks. i Trenklin), bør man bruke verdiene uten trengsel. Merk at SAGA ikke beregner trafikantnytten, slik at disse verdiene kun er ment som oppslagsverk. | N58: 44012 | O58: Øystein Rembar
B59: Reiser 70 - 200 km
B60: Arbeidsreiser - Tog (gj.snittlig trengsel) | C60: =IF(KroneårIBeregninger<=SistePrognoseÅr,D60*LønnskostnadJustering,D60*Realprisjustering_ettersisteprognoseår*Realprisjustering_tilsisteprognoseår) ->  | D60: =E60*F60 -> 210.8752723 | E60: 183 | F60: =1/LOOKUP($H60,StatistikkOgPrognoseÅr,Lønnskostnadsindeks) -> 1.152323893 | G60: Kr/time | H60: 2018 | J60: TØI (2020) | K60: Lønnskostnad | L60: TØIs studie er basert på stated preferences (SP), med hypotetiske valg mellom reisetid, ventetid, omstigning, pålitelighet og kø. For gående og syklende er det også gjort en undersøkelse basert på endring i faktisk atferd (revealed preferences, RP). For tog, buss og bane/trikk er verdsettingen gjennomført med ulike forutsetninger om trengsel om bord. Dersom man i trafikantnytteberegningen ikke skal beregne nyttevirkninger fra endret trengselsnivå separat, bør man bruke verdiene for gjennomsnittlig trengsel. Dersom man skal beregne trengselsvirkninger separat (f.eks. i Trenklin), bør man bruke verdiene uten trengsel. Merk at SAGA ikke beregner trafikantnytten, slik at disse verdiene kun er ment som oppslagsverk. | N60: 44012 | O60: Øystein Rembar
B61: Arbeidsreiser - Tog (uten trengsel) | D61: =E61*F61 -> 174.0009078 | E61: 151 | F61: 1.152323893 | G61: Kr/time | H61: 2018 | J61: TØI (2020) | K61: Lønnskostnad | L61: TØIs studie er basert på stated preferences (SP), med hypotetiske valg mellom reisetid, ventetid, omstigning, pålitelighet og kø. For gående og syklende er det også gjort en undersøkelse basert på endring i faktisk atferd (revealed preferences, RP). For tog, buss og bane/trikk er verdsettingen gjennomført med ulike forutsetninger om trengsel om bord. Dersom man i trafikantnytteberegningen ikke skal beregne nyttevirkninger fra endret trengselsnivå separat, bør man bruke verdiene for gjennomsnittlig trengsel. Dersom man skal beregne trengselsvirkninger separat (f.eks. i Trenklin), bør man bruke verdiene uten trengsel. Merk at SAGA ikke beregner trafikantnytten, slik at disse verdiene kun er ment som oppslagsverk. | N61: 44012 | O61: Øystein Rembar
B62: Arbeidsreiser - Bilfører | D62: 267.3391431 | E62: 232 | F62: 1.152323893 | G62: Kr/time | H62: 2018 | J62: TØI (2020) | K62: Lønnskostnad | L62: TØIs studie er basert på stated preferences (SP), med hypotetiske valg mellom reisetid, ventetid, omstigning, pålitelighet og kø. For gående og syklende er det også gjort en undersøkelse basert på endring i faktisk atferd (revealed preferences, RP). For tog, buss og bane/trikk er verdsettingen gjennomført med ulike forutsetninger om trengsel om bord. Dersom man i trafikantnytteberegningen ikke skal beregne nyttevirkninger fra endret trengselsnivå separat, bør man bruke verdiene for gjennomsnittlig trengsel. Dersom man skal beregne trengselsvirkninger separat (f.eks. i Trenklin), bør man bruke verdiene uten trengsel. Merk at SAGA ikke beregner trafikantnytten, slik at disse verdiene kun er ment som oppslagsverk. | N62: 44012 | O62: Øystein Rembar
B63: Arbeidsreiser - Bilpassasjer | D63: 95.64288308 | E63: 83 | F63: 1.152323893 | G63: Kr/time | H63: 2018 | J63: TØI (2020) | K63: Lønnskostnad | L63: TØIs studie er basert på stated preferences (SP), med hypotetiske valg mellom reisetid, ventetid, omstigning, pålitelighet og kø. For gående og syklende er det også gjort en undersøkelse basert på endring i faktisk atferd (revealed preferences, RP). For tog, buss og bane/trikk er verdsettingen gjennomført med ulike forutsetninger om trengsel om bord. Dersom man i trafikantnytteberegningen ikke skal beregne nyttevirkninger fra endret trengselsnivå separat, bør man bruke verdiene for gjennomsnittlig trengsel. Dersom man skal beregne trengselsvirkninger separat (f.eks. i Trenklin), bør man bruke verdiene uten trengsel. Merk at SAGA ikke beregner trafikantnytten, slik at disse verdiene kun er ment som oppslagsverk. | N63: 44012 | O63: Øystein Rembar
B64: Arbeidsreiser - Buss (gj.snittlig trengsel) | D64: 195.8950617 | E64: 170 | F64: 1.152323893 | G64: Kr/time | H64: 2018 | J64: TØI (2020) | K64: Lønnskostnad | L64: TØIs studie er basert på stated preferences (SP), med hypotetiske valg mellom reisetid, ventetid, omstigning, pålitelighet og kø. For gående og syklende er det også gjort en undersøkelse basert på endring i faktisk atferd (revealed preferences, RP). For tog, buss og bane/trikk er verdsettingen gjennomført med ulike forutsetninger om trengsel om bord. Dersom man i trafikantnytteberegningen ikke skal beregne nyttevirkninger fra endret trengselsnivå separat, bør man bruke verdiene for gjennomsnittlig trengsel. Dersom man skal beregne trengselsvirkninger separat (f.eks. i Trenklin), bør man bruke verdiene uten trengsel. Merk at SAGA ikke beregner trafikantnytten, slik at disse verdiene kun er ment som oppslagsverk. | N64: 44012 | O64: Øystein Rembar
B65: Arbeidsreiser - Fly | D65: 518.5457516 | E65: 450 | F65: 1.152323893 | G65: Kr/time | H65: 2018 | J65: TØI (2020) | K65: Lønnskostnad | L65: TØIs studie er basert på stated preferences (SP), med hypotetiske valg mellom reisetid, ventetid, omstigning, pålitelighet og kø. For gående og syklende er det også gjort en undersøkelse basert på endring i faktisk atferd (revealed preferences, RP). For tog, buss og bane/trikk er verdsettingen gjennomført med ulike forutsetninger om trengsel om bord. Dersom man i trafikantnytteberegningen ikke skal beregne nyttevirkninger fra endret trengselsnivå separat, bør man bruke verdiene for gjennomsnittlig trengsel. Dersom man skal beregne trengselsvirkninger separat (f.eks. i Trenklin), bør man bruke verdiene uten trengsel. Merk at SAGA ikke beregner trafikantnytten, slik at disse verdiene kun er ment som oppslagsverk. | N65: 44012 | O65: Øystein Rembar
B66: Arbeidsreiser - Hutigbåt | D66: 194.7427378 | E66: 169 | F66: 1.152323893 | G66: Kr/time | H66: 2018 | J66: TØI (2020) | K66: Lønnskostnad | L66: TØIs studie er basert på stated preferences (SP), med hypotetiske valg mellom reisetid, ventetid, omstigning, pålitelighet og kø. For gående og syklende er det også gjort en undersøkelse basert på endring i faktisk atferd (revealed preferences, RP). For tog, buss og bane/trikk er verdsettingen gjennomført med ulike forutsetninger om trengsel om bord. Dersom man i trafikantnytteberegningen ikke skal beregne nyttevirkninger fra endret trengselsnivå separat, bør man bruke verdiene for gjennomsnittlig trengsel. Dersom man skal beregne trengselsvirkninger separat (f.eks. i Trenklin), bør man bruke verdiene uten trengsel. Merk at SAGA ikke beregner trafikantnytten, slik at disse verdiene kun er ment som oppslagsverk. | N66: 44012 | O66: Øystein Rembar
B67: Fritidsreiser - Tog (gj.snittlig trengsel) | D67: 138.2788671 | E67: 120 | F67: 1.152323893 | G67: Kr/time | H67: 2018 | J67: TØI (2020) | K67: Lønnskostnad | L67: TØIs studie er basert på stated preferences (SP), med hypotetiske valg mellom reisetid, ventetid, omstigning, pålitelighet og kø. For gående og syklende er det også gjort en undersøkelse basert på endring i faktisk atferd (revealed preferences, RP). For tog, buss og bane/trikk er verdsettingen gjennomført med ulike forutsetninger om trengsel om bord. Dersom man i trafikantnytteberegningen ikke skal beregne nyttevirkninger fra endret trengselsnivå separat, bør man bruke verdiene for gjennomsnittlig trengsel. Dersom man skal beregne trengselsvirkninger separat (f.eks. i Trenklin), bør man bruke verdiene uten trengsel. Merk at SAGA ikke beregner trafikantnytten, slik at disse verdiene kun er ment som oppslagsverk. | N67: 44012 | O67: Øystein Rembar
B68: Fritidsreiser - Tog (uten trengsel) | D68: 120.9940087 | E68: 105 | F68: 1.152323893 | G68: Kr/time | H68: 2018 | J68: TØI (2020) | K68: Lønnskostnad | L68: TØIs studie er basert på stated preferences (SP), med hypotetiske valg mellom reisetid, ventetid, omstigning, pålitelighet og kø. For gående og syklende er det også gjort en undersøkelse basert på endring i faktisk atferd (revealed preferences, RP). For tog, buss og bane/trikk er verdsettingen gjennomført med ulike forutsetninger om trengsel om bord. Dersom man i trafikantnytteberegningen ikke skal beregne nyttevirkninger fra endret trengselsnivå separat, bør man bruke verdiene for gjennomsnittlig trengsel. Dersom man skal beregne trengselsvirkninger separat (f.eks. i Trenklin), bør man bruke verdiene uten trengsel. Merk at SAGA ikke beregner trafikantnytten, slik at disse verdiene kun er ment som oppslagsverk. | N68: 44012 | O68: Øystein Rembar
B69: Fritidsreiser - Bilfører | D69: 149.802106 | E69: 130 | F69: 1.152323893 | G69: Kr/time | H69: 2018 | J69: TØI (2020) | K69: Lønnskostnad | L69: TØIs studie er basert på stated preferences (SP), med hypotetiske valg mellom reisetid, ventetid, omstigning, pålitelighet og kø. For gående og syklende er det også gjort en undersøkelse basert på endring i faktisk atferd (revealed preferences, RP). For tog, buss og bane/trikk er verdsettingen gjennomført med ulike forutsetninger om trengsel om bord. Dersom man i trafikantnytteberegningen ikke skal beregne nyttevirkninger fra endret trengselsnivå separat, bør man bruke verdiene for gjennomsnittlig trengsel. Dersom man skal beregne trengselsvirkninger separat (f.eks. i Trenklin), bør man bruke verdiene uten trengsel. Merk at SAGA ikke beregner trafikantnytten, slik at disse verdiene kun er ment som oppslagsverk. | N69: 44012 | O69: Øystein Rembar
B70: Fritidsreiser - Bilpassasjer | D70: 154.4114016 | E70: 134 | F70: 1.152323893 | G70: Kr/time | H70: 2018 | J70: TØI (2020) | K70: Lønnskostnad | L70: TØIs studie er basert på stated preferences (SP), med hypotetiske valg mellom reisetid, ventetid, omstigning, pålitelighet og kø. For gående og syklende er det også gjort en undersøkelse basert på endring i faktisk atferd (revealed preferences, RP). For tog, buss og bane/trikk er verdsettingen gjennomført med ulike forutsetninger om trengsel om bord. Dersom man i trafikantnytteberegningen ikke skal beregne nyttevirkninger fra endret trengselsnivå separat, bør man bruke verdiene for gjennomsnittlig trengsel. Dersom man skal beregne trengselsvirkninger separat (f.eks. i Trenklin), bør man bruke verdiene uten trengsel. Merk at SAGA ikke beregner trafikantnytten, slik at disse verdiene kun er ment som oppslagsverk. | N70: 44012 | O70: Øystein Rembar
B71: Fritidsreiser - Buss (gj.snittlig trengsel) | D71: 108.3184459 | E71: 94 | F71: 1.152323893 | G71: Kr/time | H71: 2018 | J71: TØI (2020) | K71: Lønnskostnad | L71: TØIs studie er basert på stated preferences (SP), med hypotetiske valg mellom reisetid, ventetid, omstigning, pålitelighet og kø. For gående og syklende er det også gjort en undersøkelse basert på endring i faktisk atferd (revealed preferences, RP). For tog, buss og bane/trikk er verdsettingen gjennomført med ulike forutsetninger om trengsel om bord. Dersom man i trafikantnytteberegningen ikke skal beregne nyttevirkninger fra endret trengselsnivå separat, bør man bruke verdiene for gjennomsnittlig trengsel. Dersom man skal beregne trengselsvirkninger separat (f.eks. i Trenklin), bør man bruke verdiene uten trengsel. Merk at SAGA ikke beregner trafikantnytten, slik at disse verdiene kun er ment som oppslagsverk. | N71: 44012 | O71: Øystein Rembar
B72: Fritidsreiser - Fly | D72: 307.6704793 | E72: 267 | F72: 1.152323893 | G72: Kr/time | H72: 2018 | J72: TØI (2020) | K72: Lønnskostnad | L72: TØIs studie er basert på stated preferences (SP), med hypotetiske valg mellom reisetid, ventetid, omstigning, pålitelighet og kø. For gående og syklende er det også gjort en undersøkelse basert på endring i faktisk atferd (revealed preferences, RP). For tog, buss og bane/trikk er verdsettingen gjennomført med ulike forutsetninger om trengsel om bord. Dersom man i trafikantnytteberegningen ikke skal beregne nyttevirkninger fra endret trengselsnivå separat, bør man bruke verdiene for gjennomsnittlig trengsel. Dersom man skal beregne trengselsvirkninger separat (f.eks. i Trenklin), bør man bruke verdiene uten trengsel. Merk at SAGA ikke beregner trafikantnytten, slik at disse verdiene kun er ment som oppslagsverk. | N72: 44012 | O72: Øystein Rembar
B73: Fritidsreiser - Hurtigbåt | D73: 124.4509804 | E73: 108 | F73: 1.152323893 | G73: Kr/time | H73: 2018 | J73: TØI (2020) | K73: Lønnskostnad | L73: TØIs studie er basert på stated preferences (SP), med hypotetiske valg mellom reisetid, ventetid, omstigning, pålitelighet og kø. For gående og syklende er det også gjort en undersøkelse basert på endring i faktisk atferd (revealed preferences, RP). For tog, buss og bane/trikk er verdsettingen gjennomført med ulike forutsetninger om trengsel om bord. Dersom man i trafikantnytteberegningen ikke skal beregne nyttevirkninger fra endret trengselsnivå separat, bør man bruke verdiene for gjennomsnittlig trengsel. Dersom man skal beregne trengselsvirkninger separat (f.eks. i Trenklin), bør man bruke verdiene uten trengsel. Merk at SAGA ikke beregner trafikantnytten, slik at disse verdiene kun er ment som oppslagsverk. | N73: 44012 | O73: Øystein Rembar
B74: Forretningsreiser - Tog (gj.snittlig trengsel) | D74: 450.558642 | E74: 391 | F74: 1.152323893 | G74: Kr/time | H74: 2018 | J74: TØI (2020) | K74: Lønnskostnad | L74: TØIs studie er basert på stated preferences (SP), med hypotetiske valg mellom reisetid, ventetid, omstigning, pålitelighet og kø. For gående og syklende er det også gjort en undersøkelse basert på endring i faktisk atferd (revealed preferences, RP). For tog, buss og bane/trikk er verdsettingen gjennomført med ulike forutsetninger om trengsel om bord. Dersom man i trafikantnytteberegningen ikke skal beregne nyttevirkninger fra endret trengselsnivå separat, bør man bruke verdiene for gjennomsnittlig trengsel. Dersom man skal beregne trengselsvirkninger separat (f.eks. i Trenklin), bør man bruke verdiene uten trengsel. Merk at SAGA ikke beregner trafikantnytten, slik at disse verdiene kun er ment som oppslagsverk. | N74: 44012 | O74: Øystein Rembar
B75: Forretningsreiser - Tog (uten trengsel) | D75: 433.2737836 | E75: 376 | F75: 1.152323893 | G75: Kr/time | H75: 2018 | J75: TØI (2020) | K75: Lønnskostnad | L75: TØIs studie er basert på stated preferences (SP), med hypotetiske valg mellom reisetid, ventetid, omstigning, pålitelighet og kø. For gående og syklende er det også gjort en undersøkelse basert på endring i faktisk atferd (revealed preferences, RP). For tog, buss og bane/trikk er verdsettingen gjennomført med ulike forutsetninger om trengsel om bord. Dersom man i trafikantnytteberegningen ikke skal beregne nyttevirkninger fra endret trengselsnivå separat, bør man bruke verdiene for gjennomsnittlig trengsel. Dersom man skal beregne trengselsvirkninger separat (f.eks. i Trenklin), bør man bruke verdiene uten trengsel. Merk at SAGA ikke beregner trafikantnytten, slik at disse verdiene kun er ment som oppslagsverk. | N75: 44012 | O75: Øystein Rembar
B76: Forretningsreiser - Bilfører | D76: 603.8177197 | E76: 524 | F76: 1.152323893 | G76: Kr/time | H76: 2018 | J76: TØI (2020) | K76: Lønnskostnad | L76: TØIs studie er basert på stated preferences (SP), med hypotetiske valg mellom reisetid, ventetid, omstigning, pålitelighet og kø. For gående og syklende er det også gjort en undersøkelse basert på endring i faktisk atferd (revealed preferences, RP). For tog, buss og bane/trikk er verdsettingen gjennomført med ulike forutsetninger om trengsel om bord. Dersom man i trafikantnytteberegningen ikke skal beregne nyttevirkninger fra endret trengselsnivå separat, bør man bruke verdiene for gjennomsnittlig trengsel. Dersom man skal beregne trengselsvirkninger separat (f.eks. i Trenklin), bør man bruke verdiene uten trengsel. Merk at SAGA ikke beregner trafikantnytten, slik at disse verdiene kun er ment som oppslagsverk. | N76: 44012 | O76: Øystein Rembar
B77: Forretningsreiser - Bilpassasjer | D77: 541.5922295 | E77: 470 | F77: 1.152323893 | G77: Kr/time | H77: 2018 | J77: TØI (2020) | K77: Lønnskostnad | L77: TØIs studie er basert på stated preferences (SP), med hypotetiske valg mellom reisetid, ventetid, omstigning, pålitelighet og kø. For gående og syklende er det også gjort en undersøkelse basert på endring i faktisk atferd (revealed preferences, RP). For tog, buss og bane/trikk er verdsettingen gjennomført med ulike forutsetninger om trengsel om bord. Dersom man i trafikantnytteberegningen ikke skal beregne nyttevirkninger fra endret trengselsnivå separat, bør man bruke verdiene for gjennomsnittlig trengsel. Dersom man skal beregne trengselsvirkninger separat (f.eks. i Trenklin), bør man bruke verdiene uten trengsel. Merk at SAGA ikke beregner trafikantnytten, slik at disse verdiene kun er ment som oppslagsverk. | N77: 44012 | O77: Øystein Rembar
B78: Forretningsreiser - Buss (gj.snittlig trengsel) | D78: 515.08878 | E78: 447 | F78: 1.152323893 | G78: Kr/time | H78: 2018 | J78: TØI (2020) | K78: Lønnskostnad | L78: TØIs studie er basert på stated preferences (SP), med hypotetiske valg mellom reisetid, ventetid, omstigning, pålitelighet og kø. For gående og syklende er det også gjort en undersøkelse basert på endring i faktisk atferd (revealed preferences, RP). For tog, buss og bane/trikk er verdsettingen gjennomført med ulike forutsetninger om trengsel om bord. Dersom man i trafikantnytteberegningen ikke skal beregne nyttevirkninger fra endret trengselsnivå separat, bør man bruke verdiene for gjennomsnittlig trengsel. Dersom man skal beregne trengselsvirkninger separat (f.eks. i Trenklin), bør man bruke verdiene uten trengsel. Merk at SAGA ikke beregner trafikantnytten, slik at disse verdiene kun er ment som oppslagsverk. | N78: 44012 | O78: Øystein Rembar
B79: Forretningsreiser - Fly | D79: 912.6405229 | E79: 792 | F79: 1.152323893 | G79: Kr/time | H79: 2018 | J79: TØI (2020) | K79: Lønnskostnad | L79: TØIs studie er basert på stated preferences (SP), med hypotetiske valg mellom reisetid, ventetid, omstigning, pålitelighet og kø. For gående og syklende er det også gjort en undersøkelse basert på endring i faktisk atferd (revealed preferences, RP). For tog, buss og bane/trikk er verdsettingen gjennomført med ulike forutsetninger om trengsel om bord. Dersom man i trafikantnytteberegningen ikke skal beregne nyttevirkninger fra endret trengselsnivå separat, bør man bruke verdiene for gjennomsnittlig trengsel. Dersom man skal beregne trengselsvirkninger separat (f.eks. i Trenklin), bør man bruke verdiene uten trengsel. Merk at SAGA ikke beregner trafikantnytten, slik at disse verdiene kun er ment som oppslagsverk. | N79: 44012 | O79: Øystein Rembar
B80: Forretningsreiser - Hurtigbåt | D80: 411.3796296 | E80: 357 | F80: 1.152323893 | G80: Kr/time | H80: 2018 | J80: TØI (2020) | K80: Lønnskostnad | L80: TØIs studie er basert på stated preferences (SP), med hypotetiske valg mellom reisetid, ventetid, omstigning, pålitelighet og kø. For gående og syklende er det også gjort en undersøkelse basert på endring i faktisk atferd (revealed preferences, RP). For tog, buss og bane/trikk er verdsettingen gjennomført med ulike forutsetninger om trengsel om bord. Dersom man i trafikantnytteberegningen ikke skal beregne nyttevirkninger fra endret trengselsnivå separat, bør man bruke verdiene for gjennomsnittlig trengsel. Dersom man skal beregne trengselsvirkninger separat (f.eks. i Trenklin), bør man bruke verdiene uten trengsel. Merk at SAGA ikke beregner trafikantnytten, slik at disse verdiene kun er ment som oppslagsverk. | N80: 44012 | O80: Øystein Rembar
B81: Alle formål - Tog (gj.snittlig trengsel) | D81: 186.6764706 | E81: 162 | F81: 1.152323893 | G81: Kr/time | H81: 2018 | J81: TØI (2020) | K81: Lønnskostnad | L81: TØIs studie er basert på stated preferences (SP), med hypotetiske valg mellom reisetid, ventetid, omstigning, pålitelighet og kø. For gående og syklende er det også gjort en undersøkelse basert på endring i faktisk atferd (revealed preferences, RP). For tog, buss og bane/trikk er verdsettingen gjennomført med ulike forutsetninger om trengsel om bord. Dersom man i trafikantnytteberegningen ikke skal beregne nyttevirkninger fra endret trengselsnivå separat, bør man bruke verdiene for gjennomsnittlig trengsel. Dersom man skal beregne trengselsvirkninger separat (f.eks. i Trenklin), bør man bruke verdiene uten trengsel. Merk at SAGA ikke beregner trafikantnytten, slik at disse verdiene kun er ment som oppslagsverk. | N81: 44012 | O81: Øystein Rembar
B82: Alle formål - Tog (uten trengsel) | D82: 160.1730211 | E82: 139 | F82: 1.152323893 | G82: Kr/time | H82: 2018 | J82: TØI (2020) | K82: Lønnskostnad | L82: TØIs studie er basert på stated preferences (SP), med hypotetiske valg mellom reisetid, ventetid, omstigning, pålitelighet og kø. For gående og syklende er det også gjort en undersøkelse basert på endring i faktisk atferd (revealed preferences, RP). For tog, buss og bane/trikk er verdsettingen gjennomført med ulike forutsetninger om trengsel om bord. Dersom man i trafikantnytteberegningen ikke skal beregne nyttevirkninger fra endret trengselsnivå separat, bør man bruke verdiene for gjennomsnittlig trengsel. Dersom man skal beregne trengselsvirkninger separat (f.eks. i Trenklin), bør man bruke verdiene uten trengsel. Merk at SAGA ikke beregner trafikantnytten, slik at disse verdiene kun er ment som oppslagsverk. | N82: 44012 | O82: Øystein Rembar
B83: Alle formål - Bilfører | D83: 209.7229484 | E83: 182 | F83: 1.152323893 | G83: Kr/time | H83: 2018 | J83: TØI (2020) | K83: Lønnskostnad | L83: TØIs studie er basert på stated preferences (SP), med hypotetiske valg mellom reisetid, ventetid, omstigning, pålitelighet og kø. For gående og syklende er det også gjort en undersøkelse basert på endring i faktisk atferd (revealed preferences, RP). For tog, buss og bane/trikk er verdsettingen gjennomført med ulike forutsetninger om trengsel om bord. Dersom man i trafikantnytteberegningen ikke skal beregne nyttevirkninger fra endret trengselsnivå separat, bør man bruke verdiene for gjennomsnittlig trengsel. Dersom man skal beregne trengselsvirkninger separat (f.eks. i Trenklin), bør man bruke verdiene uten trengsel. Merk at SAGA ikke beregner trafikantnytten, slik at disse verdiene kun er ment som oppslagsverk. | N83: 44012 | O83: Øystein Rembar
B84: Alle formål - Bilpassasjer | D84: 160.1730211 | E84: 139 | F84: 1.152323893 | G84: Kr/time | H84: 2018 | J84: TØI (2020) | K84: Lønnskostnad | L84: TØIs studie er basert på stated preferences (SP), med hypotetiske valg mellom reisetid, ventetid, omstigning, pålitelighet og kø. For gående og syklende er det også gjort en undersøkelse basert på endring i faktisk atferd (revealed preferences, RP). For tog, buss og bane/trikk er verdsettingen gjennomført med ulike forutsetninger om trengsel om bord. Dersom man i trafikantnytteberegningen ikke skal beregne nyttevirkninger fra endret trengselsnivå separat, bør man bruke verdiene for gjennomsnittlig trengsel. Dersom man skal beregne trengselsvirkninger separat (f.eks. i Trenklin), bør man bruke verdiene uten trengsel. Merk at SAGA ikke beregner trafikantnytten, slik at disse verdiene kun er ment som oppslagsverk. | N84: 44012 | O84: Øystein Rembar
B85: Alle formål - Buss (gj.snittlig trengsel) | D85: 135.9742193 | E85: 118 | F85: 1.152323893 | G85: Kr/time | H85: 2018 | J85: TØI (2020) | K85: Lønnskostnad | L85: TØIs studie er basert på stated preferences (SP), med hypotetiske valg mellom reisetid, ventetid, omstigning, pålitelighet og kø. For gående og syklende er det også gjort en undersøkelse basert på endring i faktisk atferd (revealed preferences, RP). For tog, buss og bane/trikk er verdsettingen gjennomført med ulike forutsetninger om trengsel om bord. Dersom man i trafikantnytteberegningen ikke skal beregne nyttevirkninger fra endret trengselsnivå separat, bør man bruke verdiene for gjennomsnittlig trengsel. Dersom man skal beregne trengselsvirkninger separat (f.eks. i Trenklin), bør man bruke verdiene uten trengsel. Merk at SAGA ikke beregner trafikantnytten, slik at disse verdiene kun er ment som oppslagsverk. | N85: 44012 | O85: Øystein Rembar
B86: Alle formål - Fly | D86: 570.4003268 | E86: 495 | F86: 1.152323893 | G86: Kr/time | H86: 2018 | J86: TØI (2020) | K86: Lønnskostnad | L86: TØIs studie er basert på stated preferences (SP), med hypotetiske valg mellom reisetid, ventetid, omstigning, pålitelighet og kø. For gående og syklende er det også gjort en undersøkelse basert på endring i faktisk atferd (revealed preferences, RP). For tog, buss og bane/trikk er verdsettingen gjennomført med ulike forutsetninger om trengsel om bord. Dersom man i trafikantnytteberegningen ikke skal beregne nyttevirkninger fra endret trengselsnivå separat, bør man bruke verdiene for gjennomsnittlig trengsel. Dersom man skal beregne trengselsvirkninger separat (f.eks. i Trenklin), bør man bruke verdiene uten trengsel. Merk at SAGA ikke beregner trafikantnytten, slik at disse verdiene kun er ment som oppslagsverk. | N86: 44012 | O86: Øystein Rembar
B87: Alle formål - Hurtigbåt | D87: =E87*F87 -> 182.647482 | E87: 164 | F87: 1.113704159 | G87: Kr/time | H87: 2019 | J87: TØI (2020) | K87: Lønnskostnad | L87: TØIs studie er basert på stated preferences (SP), med hypotetiske valg mellom reisetid, ventetid, omstigning, pålitelighet og kø. For gående og syklende er det også gjort en undersøkelse basert på endring i faktisk atferd (revealed preferences, RP). For tog, buss og bane/trikk er verdsettingen gjennomført med ulike forutsetninger om trengsel om bord. Dersom man i trafikantnytteberegningen ikke skal beregne nyttevirkninger fra endret trengselsnivå separat, bør man bruke verdiene for gjennomsnittlig trengsel. Dersom man skal beregne trengselsvirkninger separat (f.eks. i Trenklin), bør man bruke verdiene uten trengsel. Merk at SAGA ikke beregner trafikantnytten, slik at disse verdiene kun er ment som oppslagsverk. | N87: 44012 | O87: Øystein Rembar
B88: Reiser over 200 km
B89: Arbeidsreiser - Tog (gj.snittlig trengsel) | C89: =IF(KroneårIBeregninger<=SistePrognoseÅr,D89*LønnskostnadJustering,D89*Realprisjustering_ettersisteprognoseår*Realprisjustering_tilsisteprognoseår) ->  | D89: =E89*F89 -> 268.491467 | E89: 233 | F89: =1/LOOKUP($H89,StatistikkOgPrognoseÅr,Lønnskostnadsindeks) -> 1.152323893 | G89: Kr/time | H89: 2018 | J89: TØI (2020) | K89: Lønnskostnad | L89: TØIs studie er basert på stated preferences (SP), med hypotetiske valg mellom reisetid, ventetid, omstigning, pålitelighet og kø. For gående og syklende er det også gjort en undersøkelse basert på endring i faktisk atferd (revealed preferences, RP). For tog, buss og bane/trikk er verdsettingen gjennomført med ulike forutsetninger om trengsel om bord. Dersom man i trafikantnytteberegningen ikke skal beregne nyttevirkninger fra endret trengselsnivå separat, bør man bruke verdiene for gjennomsnittlig trengsel. Dersom man skal beregne trengselsvirkninger separat (f.eks. i Trenklin), bør man bruke verdiene uten trengsel. Merk at SAGA ikke beregner trafikantnytten, slik at disse verdiene kun er ment som oppslagsverk. | N89: 44012 | O89: Øystein Rembar
B90: Arbeidsreiser - Tog (uten trengsel) | D90: =E90*F90 -> 248.9019608 | E90: 216 | F90: 1.152323893 | G90: Kr/time | H90: 2018 | J90: TØI (2020) | K90: Lønnskostnad | L90: TØIs studie er basert på stated preferences (SP), med hypotetiske valg mellom reisetid, ventetid, omstigning, pålitelighet og kø. For gående og syklende er det også gjort en undersøkelse basert på endring i faktisk atferd (revealed preferences, RP). For tog, buss og bane/trikk er verdsettingen gjennomført med ulike forutsetninger om trengsel om bord. Dersom man i trafikantnytteberegningen ikke skal beregne nyttevirkninger fra endret trengselsnivå separat, bør man bruke verdiene for gjennomsnittlig trengsel. Dersom man skal beregne trengselsvirkninger separat (f.eks. i Trenklin), bør man bruke verdiene uten trengsel. Merk at SAGA ikke beregner trafikantnytten, slik at disse verdiene kun er ment som oppslagsverk. | N90: 44012 | O90: Øystein Rembar
B91: Arbeidsreiser - Bilfører | D91: 364.13435 | E91: 316 | F91: 1.152323893 | G91: Kr/time | H91: 2018 | J91: TØI (2020) | K91: Lønnskostnad | L91: TØIs studie er basert på stated preferences (SP), med hypotetiske valg mellom reisetid, ventetid, omstigning, pålitelighet og kø. For gående og syklende er det også gjort en undersøkelse basert på endring i faktisk atferd (revealed preferences, RP). For tog, buss og bane/trikk er verdsettingen gjennomført med ulike forutsetninger om trengsel om bord. Dersom man i trafikantnytteberegningen ikke skal beregne nyttevirkninger fra endret trengselsnivå separat, bør man bruke verdiene for gjennomsnittlig trengsel. Dersom man skal beregne trengselsvirkninger separat (f.eks. i Trenklin), bør man bruke verdiene uten trengsel. Merk at SAGA ikke beregner trafikantnytten, slik at disse verdiene kun er ment som oppslagsverk. | N91: 44012 | O91: Øystein Rembar
B92: Arbeidsreiser - Bilpassasjer | D92: 95.64288308 | E92: 83 | F92: 1.152323893 | G92: Kr/time | H92: 2018 | J92: TØI (2020) | K92: Lønnskostnad | L92: TØIs studie er basert på stated preferences (SP), med hypotetiske valg mellom reisetid, ventetid, omstigning, pålitelighet og kø. For gående og syklende er det også gjort en undersøkelse basert på endring i faktisk atferd (revealed preferences, RP). For tog, buss og bane/trikk er verdsettingen gjennomført med ulike forutsetninger om trengsel om bord. Dersom man i trafikantnytteberegningen ikke skal beregne nyttevirkninger fra endret trengselsnivå separat, bør man bruke verdiene for gjennomsnittlig trengsel. Dersom man skal beregne trengselsvirkninger separat (f.eks. i Trenklin), bør man bruke verdiene uten trengsel. Merk at SAGA ikke beregner trafikantnytten, slik at disse verdiene kun er ment som oppslagsverk. | N92: 44012 | O92: Øystein Rembar
B93: Arbeidsreiser - Buss (gj.snittlig trengsel) | D93: 195.8950617 | E93: 170 | F93: 1.152323893 | G93: Kr/time | H93: 2018 | J93: TØI (2020) | K93: Lønnskostnad | L93: TØIs studie er basert på stated preferences (SP), med hypotetiske valg mellom reisetid, ventetid, omstigning, pålitelighet og kø. For gående og syklende er det også gjort en undersøkelse basert på endring i faktisk atferd (revealed preferences, RP). For tog, buss og bane/trikk er verdsettingen gjennomført med ulike forutsetninger om trengsel om bord. Dersom man i trafikantnytteberegningen ikke skal beregne nyttevirkninger fra endret trengselsnivå separat, bør man bruke verdiene for gjennomsnittlig trengsel. Dersom man skal beregne trengselsvirkninger separat (f.eks. i Trenklin), bør man bruke verdiene uten trengsel. Merk at SAGA ikke beregner trafikantnytten, slik at disse verdiene kun er ment som oppslagsverk. | N93: 44012 | O93: Øystein Rembar
B94: Arbeidsreiser - Fly | D94: 518.5457516 | E94: 450 | F94: 1.152323893 | G94: Kr/time | H94: 2018 | J94: TØI (2020) | K94: Lønnskostnad | L94: TØIs studie er basert på stated preferences (SP), med hypotetiske valg mellom reisetid, ventetid, omstigning, pålitelighet og kø. For gående og syklende er det også gjort en undersøkelse basert på endring i faktisk atferd (revealed preferences, RP). For tog, buss og bane/trikk er verdsettingen gjennomført med ulike forutsetninger om trengsel om bord. Dersom man i trafikantnytteberegningen ikke skal beregne nyttevirkninger fra endret trengselsnivå separat, bør man bruke verdiene for gjennomsnittlig trengsel. Dersom man skal beregne trengselsvirkninger separat (f.eks. i Trenklin), bør man bruke verdiene uten trengsel. Merk at SAGA ikke beregner trafikantnytten, slik at disse verdiene kun er ment som oppslagsverk. | N94: 44012 | O94: Øystein Rembar
B95: Arbeidsreiser - Hutigbåt | D95: 194.7427378 | E95: 169 | F95: 1.152323893 | G95: Kr/time | H95: 2018 | J95: TØI (2020) | K95: Lønnskostnad | L95: TØIs studie er basert på stated preferences (SP), med hypotetiske valg mellom reisetid, ventetid, omstigning, pålitelighet og kø. For gående og syklende er det også gjort en undersøkelse basert på endring i faktisk atferd (revealed preferences, RP). For tog, buss og bane/trikk er verdsettingen gjennomført med ulike forutsetninger om trengsel om bord. Dersom man i trafikantnytteberegningen ikke skal beregne nyttevirkninger fra endret trengselsnivå separat, bør man bruke verdiene for gjennomsnittlig trengsel. Dersom man skal beregne trengselsvirkninger separat (f.eks. i Trenklin), bør man bruke verdiene uten trengsel. Merk at SAGA ikke beregner trafikantnytten, slik at disse verdiene kun er ment som oppslagsverk. | N95: 44012 | O95: Øystein Rembar
B96: Fritidsreiser - Tog (gj.snittlig trengsel) | D96: 172.8485839 | E96: 150 | F96: 1.152323893 | G96: Kr/time | H96: 2018 | J96: TØI (2020) | K96: Lønnskostnad | L96: TØIs studie er basert på stated preferences (SP), med hypotetiske valg mellom reisetid, ventetid, omstigning, pålitelighet og kø. For gående og syklende er det også gjort en undersøkelse basert på endring i faktisk atferd (revealed preferences, RP). For tog, buss og bane/trikk er verdsettingen gjennomført med ulike forutsetninger om trengsel om bord. Dersom man i trafikantnytteberegningen ikke skal beregne nyttevirkninger fra endret trengselsnivå separat, bør man bruke verdiene for gjennomsnittlig trengsel. Dersom man skal beregne trengselsvirkninger separat (f.eks. i Trenklin), bør man bruke verdiene uten trengsel. Merk at SAGA ikke beregner trafikantnytten, slik at disse verdiene kun er ment som oppslagsverk. | N96: 44012 | O96: Øystein Rembar
B97: Fritidsreiser - Tog (uten trengsel) | D97: 159.0206972 | E97: 138 | F97: 1.152323893 | G97: Kr/time | H97: 2018 | J97: TØI (2020) | K97: Lønnskostnad | L97: TØIs studie er basert på stated preferences (SP), med hypotetiske valg mellom reisetid, ventetid, omstigning, pålitelighet og kø. For gående og syklende er det også gjort en undersøkelse basert på endring i faktisk atferd (revealed preferences, RP). For tog, buss og bane/trikk er verdsettingen gjennomført med ulike forutsetninger om trengsel om bord. Dersom man i trafikantnytteberegningen ikke skal beregne nyttevirkninger fra endret trengselsnivå separat, bør man bruke verdiene for gjennomsnittlig trengsel. Dersom man skal beregne trengselsvirkninger separat (f.eks. i Trenklin), bør man bruke verdiene uten trengsel. Merk at SAGA ikke beregner trafikantnytten, slik at disse verdiene kun er ment som oppslagsverk. | N97: 44012 | O97: Øystein Rembar
B98: Fritidsreiser - Bilfører | D98: 215.4845679 | E98: 187 | F98: 1.152323893 | G98: Kr/time | H98: 2018 | J98: TØI (2020) | K98: Lønnskostnad | L98: TØIs studie er basert på stated preferences (SP), med hypotetiske valg mellom reisetid, ventetid, omstigning, pålitelighet og kø. For gående og syklende er det også gjort en undersøkelse basert på endring i faktisk atferd (revealed preferences, RP). For tog, buss og bane/trikk er verdsettingen gjennomført med ulike forutsetninger om trengsel om bord. Dersom man i trafikantnytteberegningen ikke skal beregne nyttevirkninger fra endret trengselsnivå separat, bør man bruke verdiene for gjennomsnittlig trengsel. Dersom man skal beregne trengselsvirkninger separat (f.eks. i Trenklin), bør man bruke verdiene uten trengsel. Merk at SAGA ikke beregner trafikantnytten, slik at disse verdiene kun er ment som oppslagsverk. | N98: 44012 | O98: Øystein Rembar
B99: Fritidsreiser - Bilpassasjer | D99: 154.4114016 | E99: 134 | F99: 1.152323893 | G99: Kr/time | H99: 2018 | J99: TØI (2020) | K99: Lønnskostnad | L99: TØIs studie er basert på stated preferences (SP), med hypotetiske valg mellom reisetid, ventetid, omstigning, pålitelighet og kø. For gående og syklende er det også gjort en undersøkelse basert på endring i faktisk atferd (revealed preferences, RP). For tog, buss og bane/trikk er verdsettingen gjennomført med ulike forutsetninger om trengsel om bord. Dersom man i trafikantnytteberegningen ikke skal beregne nyttevirkninger fra endret trengselsnivå separat, bør man bruke verdiene for gjennomsnittlig trengsel. Dersom man skal beregne trengselsvirkninger separat (f.eks. i Trenklin), bør man bruke verdiene uten trengsel. Merk at SAGA ikke beregner trafikantnytten, slik at disse verdiene kun er ment som oppslagsverk. | N99: 44012 | O99: Øystein Rembar
B100: Fritidsreiser - Buss (gj.snittlig trengsel) | D100: 108.3184459 | E100: 94 | F100: 1.152323893 | G100: Kr/time | H100: 2018 | J100: TØI (2020) | K100: Lønnskostnad | L100: TØIs studie er basert på stated preferences (SP), med hypotetiske valg mellom reisetid, ventetid, omstigning, pålitelighet og kø. For gående og syklende er det også gjort en undersøkelse basert på endring i faktisk atferd (revealed preferences, RP). For tog, buss og bane/trikk er verdsettingen gjennomført med ulike forutsetninger om trengsel om bord. Dersom man i trafikantnytteberegningen ikke skal beregne nyttevirkninger fra endret trengselsnivå separat, bør man bruke verdiene for gjennomsnittlig trengsel. Dersom man skal beregne trengselsvirkninger separat (f.eks. i Trenklin), bør man bruke verdiene uten trengsel. Merk at SAGA ikke beregner trafikantnytten, slik at disse verdiene kun er ment som oppslagsverk. | N100: 44012 | O100: Øystein Rembar
B101: Fritidsreiser - Fly | D101: 307.6704793 | E101: 267 | F101: 1.152323893 | G101: Kr/time | H101: 2018 | J101: TØI (2020) | K101: Lønnskostnad | L101: TØIs studie er basert på stated preferences (SP), med hypotetiske valg mellom reisetid, ventetid, omstigning, pålitelighet og kø. For gående og syklende er det også gjort en undersøkelse basert på endring i faktisk atferd (revealed preferences, RP). For tog, buss og bane/trikk er verdsettingen gjennomført med ulike forutsetninger om trengsel om bord. Dersom man i trafikantnytteberegningen ikke skal beregne nyttevirkninger fra endret trengselsnivå separat, bør man bruke verdiene for gjennomsnittlig trengsel. Dersom man skal beregne trengselsvirkninger separat (f.eks. i Trenklin), bør man bruke verdiene uten trengsel. Merk at SAGA ikke beregner trafikantnytten, slik at disse verdiene kun er ment som oppslagsverk. | N101: 44012 | O101: Øystein Rembar
B102: Fritidsreiser - Hurtigbåt | D102: 124.4509804 | E102: 108 | F102: 1.152323893 | G102: Kr/time | H102: 2018 | J102: TØI (2020) | K102: Lønnskostnad | L102: TØIs studie er basert på stated preferences (SP), med hypotetiske valg mellom reisetid, ventetid, omstigning, pålitelighet og kø. For gående og syklende er det også gjort en undersøkelse basert på endring i faktisk atferd (revealed preferences, RP). For tog, buss og bane/trikk er verdsettingen gjennomført med ulike forutsetninger om trengsel om bord. Dersom man i trafikantnytteberegningen ikke skal beregne nyttevirkninger fra endret trengselsnivå separat, bør man bruke verdiene for gjennomsnittlig trengsel. Dersom man skal beregne trengselsvirkninger separat (f.eks. i Trenklin), bør man bruke verdiene uten trengsel. Merk at SAGA ikke beregner trafikantnytten, slik at disse verdiene kun er ment som oppslagsverk. | N102: 44012 | O102: Øystein Rembar
B103: Forretningsreiser - Tog (gj.snittlig trengsel) | D103: 482.823711 | E103: 419 | F103: 1.152323893 | G103: Kr/time | H103: 2018 | J103: TØI (2020) | K103: Lønnskostnad | L103: TØIs studie er basert på stated preferences (SP), med hypotetiske valg mellom reisetid, ventetid, omstigning, pålitelighet og kø. For gående og syklende er det også gjort en undersøkelse basert på endring i faktisk atferd (revealed preferences, RP). For tog, buss og bane/trikk er verdsettingen gjennomført med ulike forutsetninger om trengsel om bord. Dersom man i trafikantnytteberegningen ikke skal beregne nyttevirkninger fra endret trengselsnivå separat, bør man bruke verdiene for gjennomsnittlig trengsel. Dersom man skal beregne trengselsvirkninger separat (f.eks. i Trenklin), bør man bruke verdiene uten trengsel. Merk at SAGA ikke beregner trafikantnytten, slik at disse verdiene kun er ment som oppslagsverk. | N103: 44012 | O103: Øystein Rembar
B104: Forretningsreiser - Tog (uten trengsel) | D104: 472.4527959 | E104: 410 | F104: 1.152323893 | G104: Kr/time | H104: 2018 | J104: TØI (2020) | K104: Lønnskostnad | L104: TØIs studie er basert på stated preferences (SP), med hypotetiske valg mellom reisetid, ventetid, omstigning, pålitelighet og kø. For gående og syklende er det også gjort en undersøkelse basert på endring i faktisk atferd (revealed preferences, RP). For tog, buss og bane/trikk er verdsettingen gjennomført med ulike forutsetninger om trengsel om bord. Dersom man i trafikantnytteberegningen ikke skal beregne nyttevirkninger fra endret trengselsnivå separat, bør man bruke verdiene for gjennomsnittlig trengsel. Dersom man skal beregne trengselsvirkninger separat (f.eks. i Trenklin), bør man bruke verdiene uten trengsel. Merk at SAGA ikke beregner trafikantnytten, slik at disse verdiene kun er ment som oppslagsverk. | N104: 44012 | O104: Øystein Rembar
B105: Forretningsreiser - Bilfører | D105: 727.1163762 | E105: 631 | F105: 1.152323893 | G105: Kr/time | H105: 2018 | J105: TØI (2020) | K105: Lønnskostnad | L105: TØIs studie er basert på stated preferences (SP), med hypotetiske valg mellom reisetid, ventetid, omstigning, pålitelighet og kø. For gående og syklende er det også gjort en undersøkelse basert på endring i faktisk atferd (revealed preferences, RP). For tog, buss og bane/trikk er verdsettingen gjennomført med ulike forutsetninger om trengsel om bord. Dersom man i trafikantnytteberegningen ikke skal beregne nyttevirkninger fra endret trengselsnivå separat, bør man bruke verdiene for gjennomsnittlig trengsel. Dersom man skal beregne trengselsvirkninger separat (f.eks. i Trenklin), bør man bruke verdiene uten trengsel. Merk at SAGA ikke beregner trafikantnytten, slik at disse verdiene kun er ment som oppslagsverk. | N105: 44012 | O105: Øystein Rembar
B106: Forretningsreiser - Bilpassasjer | D106: 541.5922295 | E106: 470 | F106: 1.152323893 | G106: Kr/time | H106: 2018 | J106: TØI (2020) | K106: Lønnskostnad | L106: TØIs studie er basert på stated preferences (SP), med hypotetiske valg mellom reisetid, ventetid, omstigning, pålitelighet og kø. For gående og syklende er det også gjort en undersøkelse basert på endring i faktisk atferd (revealed preferences, RP). For tog, buss og bane/trikk er verdsettingen gjennomført med ulike forutsetninger om trengsel om bord. Dersom man i trafikantnytteberegningen ikke skal beregne nyttevirkninger fra endret trengselsnivå separat, bør man bruke verdiene for gjennomsnittlig trengsel. Dersom man skal beregne trengselsvirkninger separat (f.eks. i Trenklin), bør man bruke verdiene uten trengsel. Merk at SAGA ikke beregner trafikantnytten, slik at disse verdiene kun er ment som oppslagsverk. | N106: 44012 | O106: Øystein Rembar
B107: Forretningsreiser - Buss (gj.snittlig trengsel) | D107: 515.08878 | E107: 447 | F107: 1.152323893 | G107: Kr/time | H107: 2018 | J107: TØI (2020) | K107: Lønnskostnad | L107: TØIs studie er basert på stated preferences (SP), med hypotetiske valg mellom reisetid, ventetid, omstigning, pålitelighet og kø. For gående og syklende er det også gjort en undersøkelse basert på endring i faktisk atferd (revealed preferences, RP). For tog, buss og bane/trikk er verdsettingen gjennomført med ulike forutsetninger om trengsel om bord. Dersom man i trafikantnytteberegningen ikke skal beregne nyttevirkninger fra endret trengselsnivå separat, bør man bruke verdiene for gjennomsnittlig trengsel. Dersom man skal beregne trengselsvirkninger separat (f.eks. i Trenklin), bør man bruke verdiene uten trengsel. Merk at SAGA ikke beregner trafikantnytten, slik at disse verdiene kun er ment som oppslagsverk. | N107: 44012 | O107: Øystein Rembar
B108: Forretningsreiser - Fly | D108: 912.6405229 | E108: 792 | F108: 1.152323893 | G108: Kr/time | H108: 2018 | J108: TØI (2020) | K108: Lønnskostnad | L108: TØIs studie er basert på stated preferences (SP), med hypotetiske valg mellom reisetid, ventetid, omstigning, pålitelighet og kø. For gående og syklende er det også gjort en undersøkelse basert på endring i faktisk atferd (revealed preferences, RP). For tog, buss og bane/trikk er verdsettingen gjennomført med ulike forutsetninger om trengsel om bord. Dersom man i trafikantnytteberegningen ikke skal beregne nyttevirkninger fra endret trengselsnivå separat, bør man bruke verdiene for gjennomsnittlig trengsel. Dersom man skal beregne trengselsvirkninger separat (f.eks. i Trenklin), bør man bruke verdiene uten trengsel. Merk at SAGA ikke beregner trafikantnytten, slik at disse verdiene kun er ment som oppslagsverk. | N108: 44012 | O108: Øystein Rembar
B109: Forretningsreiser - Hurtigbåt | D109: 411.3796296 | E109: 357 | F109: 1.152323893 | G109: Kr/time | H109: 2018 | J109: TØI (2020) | K109: Lønnskostnad | L109: TØIs studie er basert på stated preferences (SP), med hypotetiske valg mellom reisetid, ventetid, omstigning, pålitelighet og kø. For gående og syklende er det også gjort en undersøkelse basert på endring i faktisk atferd (revealed preferences, RP). For tog, buss og bane/trikk er verdsettingen gjennomført med ulike forutsetninger om trengsel om bord. Dersom man i trafikantnytteberegningen ikke skal beregne nyttevirkninger fra endret trengselsnivå separat, bør man bruke verdiene for gjennomsnittlig trengsel. Dersom man skal beregne trengselsvirkninger separat (f.eks. i Trenklin), bør man bruke verdiene uten trengsel. Merk at SAGA ikke beregner trafikantnytten, slik at disse verdiene kun er ment som oppslagsverk. | N109: 44012 | O109: Øystein Rembar
B110: Alle formål - Tog (gj.snittlig trengsel) | D110: 222.3985113 | E110: 193 | F110: 1.152323893 | G110: Kr/time | H110: 2018 | J110: TØI (2020) | K110: Lønnskostnad | L110: TØIs studie er basert på stated preferences (SP), med hypotetiske valg mellom reisetid, ventetid, omstigning, pålitelighet og kø. For gående og syklende er det også gjort en undersøkelse basert på endring i faktisk atferd (revealed preferences, RP). For tog, buss og bane/trikk er verdsettingen gjennomført med ulike forutsetninger om trengsel om bord. Dersom man i trafikantnytteberegningen ikke skal beregne nyttevirkninger fra endret trengselsnivå separat, bør man bruke verdiene for gjennomsnittlig trengsel. Dersom man skal beregne trengselsvirkninger separat (f.eks. i Trenklin), bør man bruke verdiene uten trengsel. Merk at SAGA ikke beregner trafikantnytten, slik at disse verdiene kun er ment som oppslagsverk. | N110: 44012 | O110: Øystein Rembar
B111: Alle formål - Tog (uten trengsel) | D111: 206.2659768 | E111: 179 | F111: 1.152323893 | G111: Kr/time | H111: 2018 | J111: TØI (2020) | K111: Lønnskostnad | L111: TØIs studie er basert på stated preferences (SP), med hypotetiske valg mellom reisetid, ventetid, omstigning, pålitelighet og kø. For gående og syklende er det også gjort en undersøkelse basert på endring i faktisk atferd (revealed preferences, RP). For tog, buss og bane/trikk er verdsettingen gjennomført med ulike forutsetninger om trengsel om bord. Dersom man i trafikantnytteberegningen ikke skal beregne nyttevirkninger fra endret trengselsnivå separat, bør man bruke verdiene for gjennomsnittlig trengsel. Dersom man skal beregne trengselsvirkninger separat (f.eks. i Trenklin), bør man bruke verdiene uten trengsel. Merk at SAGA ikke beregner trafikantnytten, slik at disse verdiene kun er ment som oppslagsverk. | N111: 44012 | O111: Øystein Rembar
B112: Alle formål - Bilfører | D112: 256.968228 | E112: 223 | F112: 1.152323893 | G112: Kr/time | H112: 2018 | J112: TØI (2020) | K112: Lønnskostnad | L112: TØIs studie er basert på stated preferences (SP), med hypotetiske valg mellom reisetid, ventetid, omstigning, pålitelighet og kø. For gående og syklende er det også gjort en undersøkelse basert på endring i faktisk atferd (revealed preferences, RP). For tog, buss og bane/trikk er verdsettingen gjennomført med ulike forutsetninger om trengsel om bord. Dersom man i trafikantnytteberegningen ikke skal beregne nyttevirkninger fra endret trengselsnivå separat, bør man bruke verdiene for gjennomsnittlig trengsel. Dersom man skal beregne trengselsvirkninger separat (f.eks. i Trenklin), bør man bruke verdiene uten trengsel. Merk at SAGA ikke beregner trafikantnytten, slik at disse verdiene kun er ment som oppslagsverk. | N112: 44012 | O112: Øystein Rembar
B113: Alle formål - Bilpassasjer | D113: 157.8683733 | E113: 137 | F113: 1.152323893 | G113: Kr/time | H113: 2018 | J113: TØI (2020) | K113: Lønnskostnad | L113: TØIs studie er basert på stated preferences (SP), med hypotetiske valg mellom reisetid, ventetid, omstigning, pålitelighet og kø. For gående og syklende er det også gjort en undersøkelse basert på endring i faktisk atferd (revealed preferences, RP). For tog, buss og bane/trikk er verdsettingen gjennomført med ulike forutsetninger om trengsel om bord. Dersom man i trafikantnytteberegningen ikke skal beregne nyttevirkninger fra endret trengselsnivå separat, bør man bruke verdiene for gjennomsnittlig trengsel. Dersom man skal beregne trengselsvirkninger separat (f.eks. i Trenklin), bør man bruke verdiene uten trengsel. Merk at SAGA ikke beregner trafikantnytten, slik at disse verdiene kun er ment som oppslagsverk. | N113: 44012 | O113: Øystein Rembar
B114: Alle formål - Buss (gj.snittlig trengsel) | D114: 152.1067538 | E114: 132 | F114: 1.152323893 | G114: Kr/time | H114: 2018 | J114: TØI (2020) | K114: Lønnskostnad | L114: TØIs studie er basert på stated preferences (SP), med hypotetiske valg mellom reisetid, ventetid, omstigning, pålitelighet og kø. For gående og syklende er det også gjort en undersøkelse basert på endring i faktisk atferd (revealed preferences, RP). For tog, buss og bane/trikk er verdsettingen gjennomført med ulike forutsetninger om trengsel om bord. Dersom man i trafikantnytteberegningen ikke skal beregne nyttevirkninger fra endret trengselsnivå separat, bør man bruke verdiene for gjennomsnittlig trengsel. Dersom man skal beregne trengselsvirkninger separat (f.eks. i Trenklin), bør man bruke verdiene uten trengsel. Merk at SAGA ikke beregner trafikantnytten, slik at disse verdiene kun er ment som oppslagsverk. | N114: 44012 | O114: Øystein Rembar
B115: Alle formål - Fly | D115: 570.4003268 | E115: 495 | F115: 1.152323893 | G115: Kr/time | H115: 2018 | J115: TØI (2020) | K115: Lønnskostnad | L115: TØIs studie er basert på stated preferences (SP), med hypotetiske valg mellom reisetid, ventetid, omstigning, pålitelighet og kø. For gående og syklende er det også gjort en undersøkelse basert på endring i faktisk atferd (revealed preferences, RP). For tog, buss og bane/trikk er verdsettingen gjennomført med ulike forutsetninger om trengsel om bord. Dersom man i trafikantnytteberegningen ikke skal beregne nyttevirkninger fra endret trengselsnivå separat, bør man bruke verdiene for gjennomsnittlig trengsel. Dersom man skal beregne trengselsvirkninger separat (f.eks. i Trenklin), bør man bruke verdiene uten trengsel. Merk at SAGA ikke beregner trafikantnytten, slik at disse verdiene kun er ment som oppslagsverk. | N115: 44012 | O115: Øystein Rembar
B116: Alle formål - Hurtigbåt | D116: =E116*F116 -> 182.647482 | E116: 164 | F116: 1.113704159 | G116: Kr/time | H116: 2019 | J116: TØI (2020) | K116: Lønnskostnad | L116: TØIs studie er basert på stated preferences (SP), med hypotetiske valg mellom reisetid, ventetid, omstigning, pålitelighet og kø. For gående og syklende er det også gjort en undersøkelse basert på endring i faktisk atferd (revealed preferences, RP). For tog, buss og bane/trikk er verdsettingen gjennomført med ulike forutsetninger om trengsel om bord. Dersom man i trafikantnytteberegningen ikke skal beregne nyttevirkninger fra endret trengselsnivå separat, bør man bruke verdiene for gjennomsnittlig trengsel. Dersom man skal beregne trengselsvirkninger separat (f.eks. i Trenklin), bør man bruke verdiene uten trengsel. Merk at SAGA ikke beregner trafikantnytten, slik at disse verdiene kun er ment som oppslagsverk. | N116: 44012 | O116: Øystein Rembar
B117: Køkostnader
B118: Personbil
B119: Store tettsteder | C119: =IF(KroneårIBeregninger<=SistePrognoseÅr,D119*LønnskostnadJustering,D119*Realprisjustering_ettersisteprognoseår*Realprisjustering_tilsisteprognoseår) ->  | D119: =E119*F119 -> 1.648282155 | E119: 1.48 | F119: =1/LOOKUP($H119,StatistikkOgPrognoseÅr,Lønnskostnadsindeks) -> 1.113704159 | G119: Kr/kjøretøykm | H119: 2019 | J119: TØI-rapport 1704/2019 | K119: Lønnskostnad | L119: Det antas at rundt 90 % av trengselskostnaden er knyttet til reisetid. De resterende kostnadene er knyttet til upålitelighet, økte drivstoffkostnader, ubekvemkostnader og kjøretøyenes driftskostnader (depresiering av kjøretøy og personalkostnader). Enhetsprisene (tidsverdiene) er justert i forhold til "normale" tidsverdier og beregningene gjøres kun for forventet kø. Modellberegningene fokuserer utelukkende på antall kjøretøy i nettverket og tidskostnader | N119: 43696 | O119: Malene Nerland
B120: Små tettsteder | C120: =IF(KroneårIBeregninger<=SistePrognoseÅr,D120*LønnskostnadJustering,D120*Realprisjustering_ettersisteprognoseår*Realprisjustering_tilsisteprognoseår) ->  | D120: =E120*F120 -> 0.2338778733 | E120: 0.21 | F120: =1/LOOKUP($H120,StatistikkOgPrognoseÅr,Lønnskostnadsindeks) -> 1.113704159 | G120: Kr/kjøretøykm | H120: 2019 | J120: TØI-rapport 1704/2019 | K120: Lønnskostnad | L120: Det antas at rundt 90 % av trengselskostnaden er knyttet til reisetid. De resterende kostnadene er knyttet til upålitelighet, økte drivstoffkostnader, ubekvemkostnader og kjøretøyenes driftskostnader (depresiering av kjøretøy og personalkostnader). Enhetsprisene (tidsverdiene) er justert i forhold til "normale" tidsverdier og beregningene gjøres kun for forventet kø. Modellberegningene fokuserer utelukkende på antall kjøretøy i nettverket og tidskostnader | N120: 43696 | O120: Malene Nerland
B121: Spredt bebyggelse | C121: =IF(KroneårIBeregninger<=SistePrognoseÅr,D121*LønnskostnadJustering,D121*Realprisjustering_ettersisteprognoseår*Realprisjustering_tilsisteprognoseår) ->  | D121: =E121*F121 -> 0 | E121: 0 | F121: =1/LOOKUP($H121,StatistikkOgPrognoseÅr,Lønnskostnadsindeks) -> 1.113704159 | G121: Kr/kjøretøykm | H121: 2019 | J121: TØI-rapport 1704/2019 | K121: Lønnskostnad | L121: Det antas at rundt 90 % av trengselskostnaden er knyttet til reisetid. De resterende kostnadene er knyttet til upålitelighet, økte drivstoffkostnader, ubekvemkostnader og kjøretøyenes driftskostnader (depresiering av kjøretøy og personalkostnader). Enhetsprisene (tidsverdiene) er justert i forhold til "normale" tidsverdier og beregningene gjøres kun for forventet kø. Modellberegningene fokuserer utelukkende på antall kjøretøy i nettverket og tidskostnader | N121: 43696 | O121: Malene Nerland
B122: Gjennomsnitt | C122: =IF(KroneårIBeregninger<=SistePrognoseÅr,D122*LønnskostnadJustering,D122*Realprisjustering_ettersisteprognoseår*Realprisjustering_tilsisteprognoseår) ->  | D122: =D119*'1.2 Forutsetninger'!$C$195+D120*'1.2 Forutsetninger'!$C$196+D121*'1.2 Forutsetninger'!$C$197 -> 0.3501626643 | G122: Kr/kjøretøykm
B123: Buss
B124: Store tettsteder | C124: =IF(KroneårIBeregninger<=SistePrognoseÅr,D124*LønnskostnadJustering,D124*Realprisjustering_ettersisteprognoseår*Realprisjustering_tilsisteprognoseår) ->  | D124: =E124*F124 -> 1.648282155 | E124: 1.48 | F124: =1/LOOKUP($H124,StatistikkOgPrognoseÅr,Lønnskostnadsindeks) -> 1.113704159 | G124: Kr/kjøretøykm | H124: 2019 | J124: TØI-rapport 1704/2019 | K124: Lønnskostnad | L124: Det antas at rundt 90 % av trengselskostnaden er knyttet til reisetid. De resterende kostnadene er knyttet til upålitelighet, økte drivstoffkostnader, ubekvemkostnader og kjøretøyenes driftskostnader (depresiering av kjøretøy og personalkostnader). Enhetsprisene (tidsverdiene) er justert i forhold til "normale" tidsverdier og beregningene gjøres kun for forventet kø. Modellberegningene fokuserer utelukkende på antall kjøretøy i nettverket og tidskostnader | N124: 43696 | O124: Malene Nerland
B125: Små tettsteder | C125: =IF(KroneårIBeregninger<=SistePrognoseÅr,D125*LønnskostnadJustering,D125*Realprisjustering_ettersisteprognoseår*Realprisjustering_tilsisteprognoseår) ->  | D125: =E125*F125 -> 0.2338778733 | E125: 0.21 | F125: =1/LOOKUP($H125,StatistikkOgPrognoseÅr,Lønnskostnadsindeks) -> 1.113704159 | G125: Kr/kjøretøykm | H125: 2019 | J125: TØI-rapport 1704/2019 | K125: Lønnskostnad | L125: Det antas at rundt 90 % av trengselskostnaden er knyttet til reisetid. De resterende kostnadene er knyttet til upålitelighet, økte drivstoffkostnader, ubekvemkostnader og kjøretøyenes driftskostnader (depresiering av kjøretøy og personalkostnader). Enhetsprisene (tidsverdiene) er justert i forhold til "normale" tidsverdier og beregningene gjøres kun for forventet kø. Modellberegningene fokuserer utelukkende på antall kjøretøy i nettverket og tidskostnader | N125: 43696 | O125: Malene Nerland
B126: Spredt bebyggelse | C126: =IF(KroneårIBeregninger<=SistePrognoseÅr,D126*LønnskostnadJustering,D126*Realprisjustering_ettersisteprognoseår*Realprisjustering_tilsisteprognoseår) ->  | D126: 0 | E126: 0 | F126: =1/LOOKUP($H126,StatistikkOgPrognoseÅr,Lønnskostnadsindeks) -> 1.113704159 | G126: Kr/kjøretøykm | H126: 2019 | J126: TØI-rapport 1704/2019 | K126: Lønnskostnad | L126: Det antas at rundt 90 % av trengselskostnaden er knyttet til reisetid. De resterende kostnadene er knyttet til upålitelighet, økte drivstoffkostnader, ubekvemkostnader og kjøretøyenes driftskostnader (depresiering av kjøretøy og personalkostnader). Enhetsprisene (tidsverdiene) er justert i forhold til "normale" tidsverdier og beregningene gjøres kun for forventet kø. Modellberegningene fokuserer utelukkende på antall kjøretøy i nettverket og tidskostnader | N126: 43696 | O126: Malene Nerland
B127: Gjennomsnitt | C127: =IF(KroneårIBeregninger<=SistePrognoseÅr,D127*LønnskostnadJustering,D127*Realprisjustering_ettersisteprognoseår*Realprisjustering_tilsisteprognoseår) ->  | D127: =D124*'1.2 Forutsetninger'!$C$199+D125*'1.2 Forutsetninger'!$C$200+D126*'1.2 Forutsetninger'!$C$201 -> 0.5263077116 | G127: Kr/kjøretøykm
B128: Vei (gods)
B129: Store tettsteder | C129: =IF(KroneårIBeregninger<=SistePrognoseÅr,D129*LønnskostnadJustering,D129*Realprisjustering_ettersisteprognoseår*Realprisjustering_tilsisteprognoseår) ->  | D129: =E129*F129 -> 1.648282155 | E129: 1.48 | F129: =1/LOOKUP($H129,StatistikkOgPrognoseÅr,Lønnskostnadsindeks) -> 1.113704159 | G129: Kr/kjøretøykm | H129: 2019 | J129: TØI-rapport 1704/2019 | K129: Lønnskostnad | L129: Det antas at rundt 90 % av trengselskostnaden er knyttet til reisetid. De resterende kostnadene er knyttet til upålitelighet, økte drivstoffkostnader, ubekvemkostnader og kjøretøyenes driftskostnader (depresiering av kjøretøy og personalkostnader). Enhetsprisene (tidsverdiene) er justert i forhold til "normale" tidsverdier og beregningene gjøres kun for forventet kø. Modellberegningene fokuserer utelukkende på antall kjøretøy i nettverket og tidskostnader | N129: 43696 | O129: Malene Nerland
B130: Små tettsteder | C130: =IF(KroneårIBeregninger<=SistePrognoseÅr,D130*LønnskostnadJustering,D130*Realprisjustering_ettersisteprognoseår*Realprisjustering_tilsisteprognoseår) ->  | D130: =E130*F130 -> 0.2338778733 | E130: 0.21 | F130: =1/LOOKUP($H130,StatistikkOgPrognoseÅr,Lønnskostnadsindeks) -> 1.113704159 | G130: Kr/kjøretøykm | H130: 2019 | J130: TØI-rapport 1704/2019 | K130: Lønnskostnad | L130: Det antas at rundt 90 % av trengselskostnaden er knyttet til reisetid. De resterende kostnadene er knyttet til upålitelighet, økte drivstoffkostnader, ubekvemkostnader og kjøretøyenes driftskostnader (depresiering av kjøretøy og personalkostnader). Enhetsprisene (tidsverdiene) er justert i forhold til "normale" tidsverdier og beregningene gjøres kun for forventet kø. Modellberegningene fokuserer utelukkende på antall kjøretøy i nettverket og tidskostnader | N130: 43696 | O130: Malene Nerland
B131: Spredt bebyggelse | C131: =IF(KroneårIBeregninger<=SistePrognoseÅr,D131*LønnskostnadJustering,D131*Realprisjustering_ettersisteprognoseår*Realprisjustering_tilsisteprognoseår) ->  | D131: 0 | E131: 0 | F131: =1/LOOKUP($H131,StatistikkOgPrognoseÅr,Lønnskostnadsindeks) -> 1.113704159 | G131: Kr/kjøretøykm | H131: 2019 | J131: TØI-rapport 1704/2019 | K131: Lønnskostnad | L131: Det antas at rundt 90 % av trengselskostnaden er knyttet til reisetid. De resterende kostnadene er knyttet til upålitelighet, økte drivstoffkostnader, ubekvemkostnader og kjøretøyenes driftskostnader (depresiering av kjøretøy og personalkostnader). Enhetsprisene (tidsverdiene) er justert i forhold til "normale" tidsverdier og beregningene gjøres kun for forventet kø. Modellberegningene fokuserer utelukkende på antall kjøretøy i nettverket og tidskostnader | N131: 43696 | O131: Malene Nerland
B132: Gjennomsnitt | C132: =IF(KroneårIBeregninger<=SistePrognoseÅr,D132*LønnskostnadJustering,D132*Realprisjustering_ettersisteprognoseår*Realprisjustering_tilsisteprognoseår) ->  | D132: =D129*'1.2 Forutsetninger'!$C$207+D130*'1.2 Forutsetninger'!$C$208+D131*'1.2 Forutsetninger'!$C$209 -> 0.2444363673 | G132: Kr/kjøretøykm
B133: Helseeffekter
B134: Tilbringerreiser med gang/sykkel
B135: Verdsetting av helseeffekter | C135: =IF(KroneårIBeregninger<=SistePrognoseÅr,Helsegevinst*BNPJustering,Helsegevinst*Realprisjustering_ettersisteprognoseår*Realprisjustering_tilsisteprognoseår) ->  | D135: =E135*F135 -> 35.42750845 | E135: ='Standardsatser-Forutsetninger'!C10 -> 20.145 | F135: =1/LOOKUP($H135,StatistikkOgPrognoseÅr,BNPIndeks) -> 1.758625389 | G135: ='Standardsatser-Forutsetninger'!$D$10 -> Kr/km | H135: ='Standardsatser-Forutsetninger'!$E$10 -> 2012 | J135: Jernbanedirektoratet (2019) | K135: BNP | L135: Det legges vekt på at det er en usikkerhet knyttet til tallene – personer som i utgangspunktet har et lavt aktivitetsnivå får størst helsegevinst av økt gang- og sykkelbruk (estimert effekt). | M135: Bakgrunn for sats | N135: 43531 | O135: Malene Nerland
B136: Avgifter til staten (ekskl. CO2-avgift)
B137: Persontog
B138: Elektrisk | C138: =D138*KPIJustering ->  | D138: 0 | G138: Kr/togkm | H138: =H139 -> 2024 | J138: Jernbanedirektoratet (2019) | L138: Sporprisavgift er satt til 0 kroner siden det er antatt at en utgift for operatøren vil bli dekket av det offentlige, og resultere i et nullsum regnskap for samfunnet. | M138: ="" ->  | N138: 43312 | O138: Malene Nerland
B139: Diesel | C139: =D139*KPIJustering ->  | D139: =E139*F139 -> 1.55853445 | E139: ='Standardsatser-Forutsetninger'!$C$12 -> 1.454822208 | F139: =1/LOOKUP($H139,StatistikkOgPrognoseÅr,BNPIndeks) -> 1.071288602 | G139: ='Standardsatser-Forutsetninger'!$D$12 -> Kr/togkm | H139: ='Standardsatser-Forutsetninger'!$E$12 -> 2024 | J139: Jernbanedirektoratet (2019) | K139: BNP | L139: Nedjustering lik fremtidig reallønnsvekst i perioden 2017-2018. | M139: Bakgrunn for sats | N139: 43312 | O139: Malene Nerland
B140: Godstog
B141: Elektrisk | C141: =D141*KPIJustering ->  | D141: =E141*F141 -> 10.01654843 | E141: ='Standardsatser-Forutsetninger'!$C$13 -> 9.35 | F141: =1/LOOKUP($H141,StatistikkOgPrognoseÅr,BNPIndeks) -> 1.071288602 | G141: Kr/togkm | H141: ='Standardsatser-Forutsetninger'!E13 -> 2024 | J141: Jernbanedirektoratet (2019) | K141: BNP | L141: Nedjustering lik fremtidig reallønnsvekst i perioden 2017-2018. | M141: Bakgrunn for sats | N141: 44511 | O141: Mai Brit Svendsen
B142: Diesel | C142: =D142*KPIJustering ->  | D142: =E142*F142 -> 15.31989483 | E142: ='Standardsatser-Forutsetninger'!$C$14 -> 14.30043668 | F142: =1/LOOKUP($H142,StatistikkOgPrognoseÅr,BNPIndeks) -> 1.071288602 | G142: ='Standardsatser-Forutsetninger'!$D$14 -> Kr/togkm | H142: ='Standardsatser-Forutsetninger'!E14 -> 2024 | J142: Jernbanedirektoratet (2019) | K142: BNP | L142: Nedjustering lik fremtidig reallønnsvekst i perioden 2017-2018. | M142: Bakgrunn for sats | N142: 44511 | O142: Mai Brit Svendsen
B143: Andre transportmidler
B144: Personbil | C144: =D144*KPIJustering ->  | D144: =E144*F144 -> 0.1681500076 | E144: ='Standardsatser-Forutsetninger'!$C$15 -> 0.1569605121 | F144: =1/LOOKUP($H144,StatistikkOgPrognoseÅr,BNPIndeks) -> 1.071288602 | G144: ='Standardsatser-Forutsetninger'!$D$15 -> Kr/kjøretøykm | H144: ='Standardsatser-Forutsetninger'!$E$15 -> 2024 | J144: Jernbanedirektoratet (2019) | K144: BNP | L144: Nedjustering lik fremtidig reallønnsvekst i perioden 2017-2018. | M144: Bakgrunn for sats | N144: 43312 | O144: Malene Nerland
B145: Buss | C145: =D145*KPIJustering ->  | D145: =E145*F145 -> 1.148134062 | E145: ='Standardsatser-Forutsetninger'!$C$16 -> 1.0717318 | F145: =1/LOOKUP($H145,StatistikkOgPrognoseÅr,BNPIndeks) -> 1.071288602 | G145: ='Standardsatser-Forutsetninger'!$D$16 -> Kr/kjøretøykm | H145: ='Standardsatser-Forutsetninger'!$E$16 -> 2024 | J145: Jernbanedirektoratet (2019) | K145: BNP | L145: Avgifter fra CNG-drevne busser er ikke inkludert i satsen da togbruk antas å kun påvirke brukere av dieseldrevne busser. Nedjustering lik fremtidig reallønnsvekst i perioden 2017-2018. | M145: Bakgrunn for sats | N145: 43312 | O145: Malene Nerland
B146: Lett lastebil | D146: 0.7540571438 | E146: ='Standardsatser-Forutsetninger'!$C$17 -> 0.7038786206 | F146: 1.071288602 | G146: ='Standardsatser-Forutsetninger'!$D$17 -> Kr/kjøretøykm | H146: ='Standardsatser-Forutsetninger'!$E$17 -> 2024 | J146: Jernbanedirektoratet (2019) | K146: BNP | L146: Nedjustering lik fremtidig reallønnsvekst i perioden 2017-2018. | M146: Bakgrunn for sats | N146: 43312 | O146: Malene Nerland
B147: Tung lastebil og modulvogntog | D147: 1.28466251 | E147: ='Standardsatser-Forutsetninger'!$C$18 -> 1.199175 | F147: 1.071288602 | G147: ='Standardsatser-Forutsetninger'!$D$18 -> Kr/kjøretøykm | H147: ='Standardsatser-Forutsetninger'!$E$18 -> 2024 | J147: Jernbanedirektoratet (2019) | K147: BNP | L147: Nedjustering lik fremtidig reallønnsvekst i perioden 2017-2018. | M147: Bakgrunn for sats | N147: 43312 | O147: Malene Nerland
B148: Skip | D148: 30.27930518 | E148: ='Standardsatser-Forutsetninger'!C19 -> 28.26437723 | F148: 1.071288602 | G148: ='Standardsatser-Forutsetninger'!D19 -> Kr/fartøykm | H148: ='Standardsatser-Forutsetninger'!$E$18 -> 2024 | J148: Jernbanedirektoratet (2019) | K148: BNP | L148: Nedjustering lik fremtidig reallønnsvekst i perioden 2017-2018. | M148: Bakgrunn for sats | N148: 43312 | O148: Malene Nerland
B149: Vedlikeholdskostnader infrastruktur
B150: Tog
B151: Sporveksel | C151: =D151*BKIJustering_DV ->  | D151: =E151*F151 -> 931582.2785 | E151: 615000 | F151: =1/LOOKUP($H151,StatistikkOgPrognoseÅr,BKIIndeksDV) -> 1.514767932 | G151: Kr per stk, per år | H151: 2011 | J151: Jernbaneverket (2016), s. 3 | K151: BKI D&V | L151: En marginal endring i antall sporveksler endrer vedlikeholdskostnadene med 2,51 % av de opprinnelige vedlikeholdskostnadene. | M151: Sporvekslene er utsatt for spesiell slitasje og da særlig krysspiss (del av et skinnekryss hvor to skinnestrenger som krysser hverandre møtes i en spiss) og tungeanordning (konstruksjon i en sporveksel bestående av en tunge og en stokkskinne med tilhørende glideplater og befestigelseskomponenter). Befestigelse, sviller og ballast er mer utsatt enn på fri linje på grunn av langsgående trykk- og strekkrefter fra to spor blir overført til ett spor. | N151: 42963 | O151: Malene Nerland
B152: Stasjon | D152: 867962.0253 | E152: 573000 | F152: 1.514767932 | G152: Kr per stk, per år | H152: 2011 | J152: Jernbaneverket (2016), s. 3 | K152: BKI D&V | L152: En marginal endring i antall stasjoner endrer vedlikeholdskostnadene med 2,34 % av de opprinnelige vedlikeholdskostnadene. | N152: 42963 | O152: Malene Nerland
B153: Daglinje | D153: 81797.46835 | E153: 54000 | F153: 1.514767932 | G153: Kr/km, per år | H153: 2011 | J153: Jernbaneverket (2016), s. 4 | K153: BKI D&V | L153: En endring i gjennomsnittlig daglinje (77 km) endrer vedlikeholdskostnaden med 0,22 % av de opprinnelige vedlikeholdskostnadene. | M153: Alt annet likt vil den første kilometeren daglinje endre vedlikeholdskostnaden med 1,65 %. Effekten er avtagende til ca. 93 km. Fra ca 213 km er økningen tiltagende. | N153: 42963 | O153: Malene Nerland
B154: Tunnel | D154: 1192122.363 | E154: 787000 | F154: 1.514767932 | G154: Kr/km, per år | H154: 2011 | J154: Jernbaneverket (2016), s. 4 | K154: BKI D&V | L154: En endring i 1 km tunnel endrer vedlikeholdskostnadene med 3,22 %. | M154: En tunnelkm består av flere komponenter som driver opp vedlikeholdskostnadene. I tillegg til vedlikehold av tak og vegger må tunnelen designes slik at RAMS-krav (installasjoner rettet mot sikkerhets- og beredskapskrav som trenger korrektivt og forebyggende vedlikehold) tilfredsstilles. Sammenheng mellom togtrafikk og gjennomføring av vedlikehold (sikkerhet) er også fordyrende. | N154: 42963 | O154: Malene Nerland
B155: Persontog - slitasje | D155: 9.35 | E155: ='Standardsatser-Forutsetninger'!C28 -> 9.35 | F155: 1 | G155: ='Standardsatser-Forutsetninger'!D28 -> Kr/settkm | H155: 2022 | J155: BaneNOR_2022 | K155: BKI D&V | L155: Slitasjekostnad på infrastrukturen ved en ekstra togkm. | M155: Bakgrunn for sats | N155: 44733 | O155: Mai Brit Svendsen
B156: Godstog - slitasje | D156: 21.90344207 | E156: ='Standardsatser-Forutsetninger'!C29 -> 18.08 | F156: 1.211473566 | G156: ='Standardsatser-Forutsetninger'!D29 -> Kr/togkm | H156: ='Standardsatser-Forutsetninger'!E29 -> 2020 | J156: Jernbanedirektoratet (2019) | K156: BKI D&V | L156: Slitasjekostnad på infrastrukturen ved en ekstra togkm. | M156: Bakgrunn for sats | N156: 42963 | O156: Malene Nerland
B157: Andre transportmidler
B158: Personbil - slitasje | C158: =D158*BKIJustering_DV ->  | D158: =E158*F158 -> 0.03690462593 | E158: 0.03 | F158: =1/LOOKUP($H158,StatistikkOgPrognoseÅr,BKIIndeksDV) -> 1.230154198 | G158: Kr/kjøretøykm | H158: 2019 | J158: TØI-rapport 1704/2019 | K158: BKI D&V | L158: Beregningen er basert på marginalkostnad etter vekt, slitasjeelastisiteten, kostnad per kvadratmeter og gjennomsnittlig vegbredde. Beregningene følger svensk metodikk fra VIT, men tilpasset slik at den skal reflektere norske forhold best mulig. | N158: 43696 | O158: Malene Nerland
B159: Buss - slitasje | C159: =D159*BKIJustering_DV ->  | D159: =E159*F159 -> 0.03690462593 | E159: 0.03 | F159: =1/LOOKUP($H159,StatistikkOgPrognoseÅr,BKIIndeksDV) -> 1.230154198 | G159: Kr/kjøretøykm | H159: 2019 | J159: TØI-rapport 1704/2019 | K159: BKI D&V | L159: Beregningen er basert på marginalkostnad etter vekt, slitasjeelastisiteten, kostnad per kvadratmeter og gjennomsnittlig vegbredde. Beregningene følger svensk metodikk fra VIT, men tilpasset slik at den skal reflektere norske forhold best mulig. | N159: 43696 | O159: Malene Nerland
B160: Lett lastebil - slitasje | C160: =D160*BKIJustering_DV ->  | D160: =E160*F160 -> 0.1107138778 | E160: 0.09 | F160: =1/LOOKUP($H160,StatistikkOgPrognoseÅr,BKIIndeksDV) -> 1.230154198 | G160: Kr/kjøretøykm | H160: 2019 | J160: TØI-rapport 1704/2019 | K160: BKI D&V | L160: Beregningen er basert på marginalkostnad etter vekt, slitasjeelastisiteten, kostnad per kvadratmeter og gjennomsnittlig vegbredde. Beregningene følger svensk metodikk fra VIT, men tilpasset slik at den skal reflektere norske forhold best mulig. | N160: 43696 | O160: Malene Nerland
B161: Tung lastebil og modulvogntog - slitasje | C161: =D161*BKIJustering_DV ->  | D161: =E161*F161 -> 0.9533695031 | E161: ='Standardsatser-Forutsetninger'!C31 -> 0.775 | F161: =1/LOOKUP($H161,StatistikkOgPrognoseÅr,BKIIndeksDV) -> 1.230154198 | G161: Kr/kjøretøykm | H161: 2019 | J161: TØI-rapport 1704/2019 | K161: BKI D&V | L161: Beregningen er basert på marginalkostnad etter vekt, slitasjeelastisiteten, kostnad per kvadratmeter og gjennomsnittlig vegbredde. Beregningene følger svensk metodikk fra VIT, men tilpasset slik at den skal reflektere norske forhold best mulig. | M161: Bakgrunn for sats | N161: 43696 | O161: Malene Nerland
B162: Lønnkostnader for personell på tog
B163: Lønn per time inkl. sosiale kostnader
B164: Lokomotivfører | C164: =IF(KroneårIBeregninger<=SistePrognoseÅr,TimeLønnLokfører*LønnskostnadJustering,TimeLønnLokfører*Realprisjustering_tilsisteprognoseår*Realprisjustering_ettersisteprognoseår) ->  | D164: =E164*F164 -> 942.8002006 | E164: ='Standardsatser-Forutsetninger'!$C$33 -> 776.4324324 | F164: =1/LOOKUP($H164,StatistikkOgPrognoseÅr,Lønnskostnadsindeks) -> 1.214272049 | G164: ='Standardsatser-Forutsetninger'!$D$33 -> Kr per time | H164: ='Standardsatser-Forutsetninger'!$E$33 -> 2016 | J164: Jernbanedirektoratet (2019) | K164: Lønnskostnad | L164: Beregningene er basert på gjennomsnittslønn fra utdanning.no | M164: Bakgrunn for sats | N164: 42950 | O164: Malene Nerland
B165: Konduktør | C165: =IF(KroneårIBeregninger<=SistePrognoseÅr,TimeLønnTogfører*LønnskostnadJustering,TimeLønnTogfører*Realprisjustering_tilsisteprognoseår*Realprisjustering_ettersisteprognoseår) ->  | D165: =E165*F165 -> 751.5464456 | E165: ='Standardsatser-Forutsetninger'!$C$34 -> 618.9275676 | F165: =1/LOOKUP($H165,StatistikkOgPrognoseÅr,Lønnskostnadsindeks) -> 1.214272049 | G165: ='Standardsatser-Forutsetninger'!$D$34 -> Kr per time | H165: ='Standardsatser-Forutsetninger'!$E$34 -> 2016 | J165: Jernbanedirektoratet (2019) | K165: Lønnskostnad | L165: Beregningene er basert på gjennomsnittslønn fra utdanning.no | M165: Bakgrunn for sats | N165: 42950 | O165: Malene Nerland
B166: Driftskostnader tog
B167: Kostnad per sett
B168: S tog | C168: =D168*KPIJustering ->  | D168: =E168*F168 -> 139.7161706 | E168: 120 | F168: =1/LOOKUP($H168,StatistikkOgPrognoseÅr,KPIIndeks) -> 1.164301422 | G168: Mill. kr | H168: 2017 | J168: Jernbanedirektoratet (2019) | K168: KPI | L168: Kostnadene per sett nyanskaffelser basert på siste anskaffelser. | N168: 43028 | O168: Malene Nerland
B169: Type 75 | D169: 139.7161706 | E169: 120 | F169: 1.164301422 | G169: Mill. kr | H169: 2017 | J169: Jernbanedirektoratet (2019) | K169: KPI | L169: Kostnadene per sett nyanskaffelser basert på siste anskaffelser. | N169: 43028 | O169: Malene Nerland
B170: Type 74 | D170: 145.5376777 | E170: 125 | F170: 1.164301422 | G170: Mill. kr | H170: 2017 | J170: Jernbanedirektoratet (2019) | K170: KPI | L170: Kostnadene per sett nyanskaffelser basert på siste anskaffelser. | N170: 43028 | O170: Malene Nerland
B171: Type 72 | D171: 139.7161706 | E171: 120 | F171: 1.164301422 | G171: Mill. kr | H171: 2017 | J171: Jernbanedirektoratet (2019) | K171: KPI | L171: Kostnadene per sett nyanskaffelser basert på siste anskaffelser. | N171: 43028 | O171: Malene Nerland
B172: Type 78 | D172: 192.1097346 | E172: 165 | F172: 1.164301422 | G172: Mill. kr | H172: 2017 | J172: Jernbanedirektoratet (2019) | K172: KPI | L172: Kostnadene per sett nyanskaffelser basert på siste anskaffelser. | N172: 43028 | O172: Malene Nerland
B173: Type 77 | D173: 131.3730481 | E173: 120 | F173: 1.094775401 | G173: Mill. kr | H173: 2020 | J173: Jernbanedirektoratet (2019) | K173: KPI | L173: Kostnadene per sett nyanskaffelser basert på siste anskaffelser. | N173: 43909 | O173: Øystein Rembar
B174: Type 93D | D174: 93.14411374 | E174: 80 | F174: 1.164301422 | G174: Mill. kr | H174: 2017 | J174: Jernbanedirektoratet (2019) | K174: KPI | L174: Kostnadene per sett nyanskaffelser basert på siste anskaffelser. | N174: 43028 | O174: Malene Nerland
B175: Type 76 | D175: 163.0021991 | E175: 140 | F175: 1.164301422 | G175: Mill. kr | H175: 2017 | J175: Jernbanedirektoratet (2019) | K175: KPI | L175: Kostnadene per sett nyanskaffelser basert på siste anskaffelser. | N175: 43028 | O175: Malene Nerland
B176: Elektrisk lokomotiv (EL18) | D176: 52.39356398 | E176: 45 | F176: 1.164301422 | G176: Mill. kr | H176: 2017 | J176: Jernbanedirektoratet (2019) | K176: KPI | L176: Kostnadene per sett nyanskaffelser basert på siste anskaffelser. | N176: 43028 | O176: Malene Nerland
B177: Diesel lokomotiv (Di4) | D177: 52.39356398 | E177: 45 | F177: 1.164301422 | G177: Mill. kr | H177: 2017 | J177: Jernbanedirektoratet (2019) | K177: KPI | L177: Kostnadene per sett nyanskaffelser basert på siste anskaffelser. | N177: 43028 | O177: Malene Nerland
B178: Sittevogn (type 5 og 7) | D178: 23.28602844 | E178: 20 | F178: 1.164301422 | G178: Mill. kr | H178: 2017 | J178: Jernbanedirektoratet (2019) | K178: KPI | L178: Kostnadene per sett nyanskaffelser basert på siste anskaffelser. | N178: 43028 | O178: Malene Nerland
B179: Sovevogn | D179: 29.10753555 | E179: 25 | F179: 1.164301422 | G179: Mill. kr | H179: 2017 | J179: Jernbanedirektoratet (2019) | K179: KPI | L179: Kostnadene per sett nyanskaffelser basert på siste anskaffelser. | N179: 43028 | O179: Malene Nerland
B180: Energikostnad
B181: S tog | C181: =D181*KPIJustering ->  | D181: =E181*F181 -> 5.873697917 | E181: ='Standardsatser-Forutsetninger'!C36 -> 6.202625 | F181: =1/LOOKUP($H181,StatistikkOgPrognoseÅr,KPIIndeks) -> 0.946969697 | G181: ='Standardsatser-Forutsetninger'!D36 -> Kr per settkm | H181: ='Standardsatser-Forutsetninger'!E36 -> 2023 | J181: Jernbanedirektoratet (2019) | K181: KPI | L181: Energikostnaden ved elektrisk- og dieselkraft | M181: Bakgrunn for sats | N181: 43256 | O181: Malene Nerland
B182: Type 75 | D182: 5.832623106 | E182: ='Standardsatser-Forutsetninger'!C37 -> 6.15925 | F182: 0.946969697 | G182: ='Standardsatser-Forutsetninger'!D37 -> Kr per settkm | H182: ='Standardsatser-Forutsetninger'!E37 -> 2023 | J182: Jernbanedirektoratet (2019) | K182: KPI | L182: Energikostnaden ved elektrisk- og dieselkraft | M182: Bakgrunn for sats | N182: 43256 | O182: Malene Nerland
B183: Type 74 | D183: =E183*F183 -> 5.011126894 | E183: ='Standardsatser-Forutsetninger'!C38 -> 5.29175 | F183: 0.946969697 | G183: ='Standardsatser-Forutsetninger'!D38 -> Kr per settkm | H183: ='Standardsatser-Forutsetninger'!E38 -> 2023 | J183: Jernbanedirektoratet (2019) | K183: KPI | L183: Energikostnaden ved elektrisk- og dieselkraft | M183: Bakgrunn for sats | N183: 43256 | O183: Malene Nerland
B184: Type 72 | C184: =D184*KPIJustering ->  | D184: =E184*F184 -> 5.832623106 | E184: ='Standardsatser-Forutsetninger'!C39 -> 6.15925 | F184: 0.946969697 | G184: ='Standardsatser-Forutsetninger'!D40 -> Kr per settkm | H184: ='Standardsatser-Forutsetninger'!E40 -> 2023 | J184: Jernbanedirektoratet (2019) | K184: KPI | L184: Energikostnaden ved elektrisk- og dieselkraft | M184: Bakgrunn for sats | N184: 43256 | O184: Malene Nerland
B185: Type 78 | D185: 5.586174242 | E185: ='Standardsatser-Forutsetninger'!C40 -> 5.899 | F185: 0.946969697 | G185: ='Standardsatser-Forutsetninger'!D39 -> Kr per settkm | H185: ='Standardsatser-Forutsetninger'!E39 -> 2023 | J185: Jernbanedirektoratet (2019) | K185: KPI | L185: Energikostnaden ved elektrisk- og dieselkraft | M185: Bakgrunn for sats | N185: 43256 | O185: Malene Nerland
B186: Type 77 | D186: 5.2131892 | E186: ='Standardsatser-Forutsetninger'!C41 -> 4.9274 | F186: 1.058 | G186: ='Standardsatser-Forutsetninger'!D41 -> Kr per settkm | H186: ='Standardsatser-Forutsetninger'!E41 -> 2021 | J186: Jernbanedirektoratet (2019) | K186: KPI | L186: Energikostnaden ved elektrisk- og dieselkraft | M186: Bakgrunn for sats | N186: 43909 | O186: Øystein Rembar
B187: Type 93D | D187: 12.41761364 | E187: ='Standardsatser-Forutsetninger'!C42 -> 13.113 | F187: 0.946969697 | G187: ='Standardsatser-Forutsetninger'!D42 -> Kr per settkm | H187: ='Standardsatser-Forutsetninger'!E42 -> 2023 | J187: Jernbanedirektoratet (2019) | K187: KPI | L187: Energikostnaden ved elektrisk- og dieselkraft | M187: Bakgrunn for sats | N187: 43256 | O187: Malene Nerland
B188: Type 76 (diesel) | D188: 24.56818182 | E188: ='Standardsatser-Forutsetninger'!C43 -> 25.944 | F188: 0.946969697 | G188: ='Standardsatser-Forutsetninger'!D43 -> Kr per settkm | H188: ='Standardsatser-Forutsetninger'!E43 -> 2023 | J188: Jernbanedirektoratet (2019) | K188: KPI | L188: Energikostnaden ved elektrisk- og dieselkraft | M188: Bakgrunn for sats | N188: 43256 | O188: Malene Nerland
B189: Type 76 (elektrisk) | C189: =D189*KPIJustering ->  | D189: =E189*F189 -> 6.328 | E189: ='Standardsatser-Forutsetninger'!C44 -> 6.328 | F189: 1 | G189: Kr per settkm | H189: 2022 | K189: KPI | L189: Energikostnaden ved elektrisk- og dieselkraft | M189: Bakgrunn for sats | N189: 44893 | O189: Mai Brit Svendsen
B190: Elektrisk lokomotiv (EL18) | D190: 5.832623106 | E190: ='Standardsatser-Forutsetninger'!C45 -> 6.15925 | F190: 0.946969697 | G190: ='Standardsatser-Forutsetninger'!D45 -> Kr per settkm | H190: ='Standardsatser-Forutsetninger'!E45 -> 2023 | J190: Jernbanedirektoratet (2019) | K190: KPI | L190: Energikostnaden ved elektrisk- og dieselkraft | M190: Bakgrunn for sats | N190: 43256 | O190: Malene Nerland
B191: Diesel lokomotiv (Di4) | D191: 41.39204545 | E191: ='Standardsatser-Forutsetninger'!C46 -> 43.71 | F191: 0.946969697 | G191: ='Standardsatser-Forutsetninger'!D46 -> Kr per settkm | H191: ='Standardsatser-Forutsetninger'!E46 -> 2023 | J191: Jernbanedirektoratet (2019) | K191: KPI | L191: Energikostnaden ved elektrisk- og dieselkraft | M191: Bakgrunn for sats | N191: 43256 | O191: Malene Nerland
B192: Vedlikeholdskostnader togsett
B193: S tog | C193: =D193*KPIJustering ->  | D193: =E193*F193 -> 11.7920448 | E193: 9.6 | F193: =1/LOOKUP($H193,StatistikkOgPrognoseÅr,KPIIndeks) -> 1.228338 | G193: Kr per settkm | H193: 2015 | J193: Jernbanedirektoratet (2019) | K193: KPI | L193: I vedlikeholdskostnader ligge teknisk vedlikehold av togene, for eksempel service ved faste intervaller og reparasjoner. Vedlikeholdskostnadene er erfaringstall fra 2015 på Flirt togsett, lokomotiver og vogner. | N193: 43028 | O193: Malene Nerland
B194: Type 75 | D194: 19.75286 | E194: 18.67 | F194: 1.058 | G194: Kr per settkm | H194: 2021 | J194: Jernbanedirektoratet (2019) | K194: KPI | L194: I vedlikeholdskostnader ligge teknisk vedlikehold av togene, for eksempel service ved faste intervaller og reparasjoner. Vedlikeholdskostnadene er erfaringstall fra 2021 på Flirt togsett, lokomotiver og vogner. | N194: 44932 | O194: Mai Brit Svendsen
B195: Type 74 | D195: 20.102 | E195: 19 | F195: 1.058 | G195: Kr per settkm | H195: 2021 | J195: Jernbanedirektoratet (2019) | K195: KPI | L195: I vedlikeholdskostnader ligge teknisk vedlikehold av togene, for eksempel service ved faste intervaller og reparasjoner. Vedlikeholdskostnadene er erfaringstall fra 2021 på Flirt togsett, lokomotiver og vogner. | N195: 44932 | O195: Mai Brit Svendsen
B196: Type 72 | D196: 26.979 | E196: 25.5 | F196: 1.058 | G196: Kr per settkm | H196: 2021 | J196: Jernbanedirektoratet (2019) | K196: KPI | L196: I vedlikeholdskostnader ligge teknisk vedlikehold av togene, for eksempel service ved faste intervaller og reparasjoner. Vedlikeholdskostnadene er erfaringstall fra 2021 på Flirt togsett, lokomotiver og vogner. | N196: 44932 | O196: Mai Brit Svendsen
B197: Type 78 | D197: 13.511718 | E197: 11 | F197: 1.228338 | G197: Kr per settkm | H197: 2015 | J197: Jernbanedirektoratet (2019) | K197: KPI | L197: I vedlikeholdskostnader ligge teknisk vedlikehold av togene, for eksempel service ved faste intervaller og reparasjoner. Vedlikeholdskostnadene er erfaringstall fra 2015 på Flirt togsett, lokomotiver og vogner. | N197: 43028 | O197: Malene Nerland
B198: Type 77 | D198: 15.802288 | E198: =E194*0.8 -> 14.936 | F198: 1.058 | G198: Kr per settkm | H198: 2021 | J198: Jernbanedirektoratet (2019) | K198: KPI | L198: I vedlikeholdskostnader ligge teknisk vedlikehold av togene, for eksempel service ved faste intervaller og reparasjoner. Vedlikeholdskostnadene er erfaringstall fra 2021 på Flirt togsett, lokomotiver og vogner. | M198: Forutsatt å være 80 % av kostnadene for type 75 inntil leverandør er valgt | N198: 44936 | O198: Mai Brit Svendsen
B199: Type 93D | D199: 14.740056 | E199: 12 | F199: 1.228338 | G199: Kr per settkm | H199: 2015 | J199: Jernbanedirektoratet (2019) | K199: KPI | L199: I vedlikeholdskostnader ligge teknisk vedlikehold av togene, for eksempel service ved faste intervaller og reparasjoner. Vedlikeholdskostnadene er erfaringstall fra 2015 på Flirt togsett, lokomotiver og vogner. | N199: 43028 | O199: Malene Nerland
B200: Type 76 | D200: 15.354225 | E200: 12.5 | F200: 1.228338 | G200: Kr per settkm | H200: 2015 | J200: Jernbanedirektoratet (2019) | K200: KPI | L200: I vedlikeholdskostnader ligge teknisk vedlikehold av togene, for eksempel service ved faste intervaller og reparasjoner. Vedlikeholdskostnadene er erfaringstall fra 2015 på Flirt togsett, lokomotiver og vogner. | N200: 43028 | O200: Malene Nerland
B201: Elektrisk lokomotiv (EL18) | D201: 14.812 | E201: 14 | F201: 1.058 | G201: Kr per settkm | H201: 2021 | J201: Jernbanedirektoratet (2019) | K201: KPI | L201: I vedlikeholdskostnader ligge teknisk vedlikehold av togene, for eksempel service ved faste intervaller og reparasjoner. Vedlikeholdskostnadene er erfaringstall fra 2021 på Flirt togsett, lokomotiver og vogner. | N201: 44932 | O201: Mai Brit Svendsen
B202: Diesel lokomotiv (Di4) | D202: 18.42507 | E202: 15 | F202: 1.228338 | G202: Kr per settkm | H202: 2015 | J202: Jernbanedirektoratet (2019) | K202: KPI | L202: I vedlikeholdskostnader ligge teknisk vedlikehold av togene, for eksempel service ved faste intervaller og reparasjoner. Vedlikeholdskostnadene er erfaringstall fra 2015 på Flirt togsett, lokomotiver og vogner. | N202: 43028 | O202: Malene Nerland
B203: Sittevogn (type 5 og 7) | D203: 8.11486 | E203: 7.67 | F203: 1.058 | G203: Kr per settkm | H203: 2021 | J203: Jernbanedirektoratet (2019) | K203: KPI | L203: I vedlikeholdskostnader ligge teknisk vedlikehold av togene, for eksempel service ved faste intervaller og reparasjoner. Vedlikeholdskostnadene er erfaringstall fra 2021 på Flirt togsett, lokomotiver og vogner. | N203: 44932 | O203: Mai Brit Svendsen
B204: Sovevogn | D204: =E204*F204 -> 6.14169 | E204: 5 | F204: 1.228338 | G204: Kr per settkm | H204: 2015 | J204: Jernbanedirektoratet (2019) | K204: KPI | L204: I vedlikeholdskostnader ligge teknisk vedlikehold av togene, for eksempel service ved faste intervaller og reparasjoner. Vedlikeholdskostnadene er erfaringstall fra 2015 på Flirt togsett, lokomotiver og vogner. | N204: 43028 | O204: Malene Nerland
B205: Klargjøringskostnad
B206: S tog | C206: =D206*KPIJustering ->  | D206: =E206*F206 -> 1659.916216 | E206: 1400 | F206: =1/LOOKUP($H206,StatistikkOgPrognoseÅr,KPIIndeks) -> 1.18565444 | G206: Kr per dag | H206: 2016 | J206: Jernbanedirektoratet (2019) | K206: KPI | L206: I klargjøringskostnader er det kostnader for tømming av toaletter, utvendig vask av toget, etterfylling av såpedispensere, bytte sengetøy (gjelder sovevogner) og snu seter. | N206: 43028 | O206: Malene Nerland
B207: Type 75 | D207: 1659.916216 | E207: 1400 | F207: 1.18565444 | G207: Kr per dag | H207: 2016 | J207: Jernbanedirektoratet (2019) | K207: KPI | L207: I klargjøringskostnader er det kostnader for tømming av toaletter, utvendig vask av toget, etterfylling av såpedispensere, bytte sengetøy (gjelder sovevogner) og snu seter. | N207: 43028 | O207: Malene Nerland
... 133 more rows

Sheet 1.2 Forutsetninger
A4: Fargeforklaring:
A5: Grønne celler må fylles ut for tiltaket/prosjektet. | B5: Fylles ut
A6: Gule celler er "standard"-verdier eller celler som ikke alltid skal fylles ut. Kan endres når tiltaket/prosjektet vurderes eller det en ny kilde. | B6: Skal vurderes
A7: Røde celler er formler eller skal ikke ikke fylles ut. | B7: Skal ikke endres
B10: Transportmodell | C10: Modell som benyttes i analysen | D10: Informasjon om modellområdet
B11: Modell Person | C11: -
B12: Modell Gods | C12: -
B15: Forutsetninger (Prosjektuavhengige) | H15: Informasjon | K15: Fylles ut ved endring
B16: Kalkulasjonsrente | C16: År | D16: År | E16: År | H16: Kilde | I16: Kommentar | J16: Bakgrunn til forutsetning | K16: Dato | L16: Lagt inn (Navn):
C17: =Åpningsår -> 0 | D17: =Åpningsår+40 -> 40 | E17: =Åpningsår+75 -> 75 | I17: Startår for de ulike kalkulasjonsrentene.
B18: Kalkulasjonsrente/Diskonteringsrente | C18: 0.04 | D18: 0.03 | E18: 0.02 | H18: NOU (2012): 16 (2012), s. 75 | J18: Kalkulasjonsrenten begynner ved første år med investering, og det er antatt 40 år med samme kalkulasjonsrente etter åpning (samme som Statens vegvesen). I noen sammenhenger blir det også kalt diskonteringsrente. | K18: 42907 | L18: Malene Nerland
B19: Generelle forutsetninger | D19: Benevning | E19: Gjeldene tom år | F19: Kildeår
B20: Skattefinansieringsfaktor | C20: 0.2 | D20: Prosent | F20: 2014 | H20: Regjeringen (2014), s. 6 | I20: For alle tiltak som skal finansieres over offentlige budsjetter skal en skattefinansieringskostnad inngå i analysen. Skattefinansieringskostnaden er den marginale kostnaden ved å hente inn en ekstra skattekrone. | J20: Skattekostnaden settes til 20 øre per krone. Denne skal benyttes av alle sektorer. Grunnlaget for beregning av skattekostnaden vil være tiltakets nettovirkning for offentlige budsjetter, dvs. det offentlige finansieringsbehovet. | K20: ="" ->  | L20: Malene Nerland
B21: Skattesats, overskudd og utbytte operatører | C21: ='Standardsatser-Forutsetninger'!$C$126 -> 0.467104 | D21: Prosent | F21: 2017 | H21: Regjeringen (2016) | I21: Skatt på alminnelig inntekt for bedrift, pluss skatt på overskudd. Det blir den maksimale effektive marginale skattesatsen. | J21: Bakgrunn til forutsetning | K21: 42909 | L21: Malene Nerland
B22: Skattefinansieringsfaktor for utbytte i privat sektor | C22: =Skattesats*Skattefinansieringsfaktor -> 0.0934208 | D22: Prosent | I22: Skattefinansieringsfaktor for utbytte er den maksimale effektive marginale skattesatsen på utbytte * skattefinansieringsfaktoren. Hvis tiltaket øker overskuddet i godsnæringen, øker også skatteinngangen til det offentlige. Det reduserer behovet for annen skatteinnkreving, og bidrar således isolert sett til å redusere skattefinansieringskostnaden av tiltaket. | J22: ="" ->  | L22: Malene Nerland
B23: Merverdiavgift, investeringer | C23: 0.25 | D23: Prosent | F23: 2020 | H23: Skatteetaten (2020) | I23: Merverdiavgift (mva.), tidligere kalt merverdiomsetningsavgift (moms), er en generell forbruksavgift (skatt) på verdien som blir lagt til varer eller tjenester (avanse) i hvert produksjons- eller handelsledd i innenlandsk omsetning. | J23: Den generelle satsen for varer og tjenester benyttes. | K23: 43938 | L23: Øystein Rembar
B24: Merverdiavgift, billettinntekter | C24: 0.12 | D24: Prosent | F24: 2020 | H24: Skatteetaten (2020) | I24: Billettinntektene i Trenklin beregnes ved fullpris/voksenpris enkeltbillet (inkl. moms) Se s. 55 i Trenklin 3 dokumentasjon. | J24: Alle beregninger i i nyttekostnadsanalyser skal være uten moms. | K24: 43938 | L24: Øystein Rembar
B25: Fremtidig vekst i reelt BNP (reallønnsvekst) | C25: 0.005 | D25: Prosent | E25: 2061 | F25: 2021 | H25: Regjeringen (2024) | I25: Bruttonasjonalproduktet (BNP) viser verdien av alt som produseres i et land i en viss periode, vanligvis et år, og omfatter verdiskapingen (value added) i all næringsvirksomhet, offentlig forvaltning og ideelle organisasjoner. BNP er et mål for den samlede verdiskapingen i et land | J25: Forventet realvekst i BNP per innbygger, 2021-2060. | K25: 45548 | L25: Mari Baklund Størseth
B26: Siste år med realprisjustering | C26: 2100 | D26: År | F26: 2018 | H26: Regjeringen (2017) | I26: Tidshorisonten i Perspektivmeldingen 2017 er til 2060. Etter dette antas det at veksten synker og går til 0 i 2100. | K26: 43208 | L26: Jon-Kristian Hovland
B27: Fremtidig konsumprisvekst (KPI) | C27: 0.02 | D27: Prosent | F27: 2018 | H27: Norges Bank (2018) | I27: Regjeringen har fastsatt et inflasjonsmål for pengepolitikken i Norge. | J27: Pengepolitikken er innrettet mot at konsumprisene over tid skal vokse med nær 2 prosent årlig. | K27: 43161 | L27: Malene Nerland
B28: =CONCATENATE("Årlig vekst etter siste CO2-prisbane - 2100") -> Årlig vekst etter siste CO2-prisbane - 2100 | C28: 0.009 | D28: Prosent | F28: 2017 | H28: Regjeringen (2017), s.121, tabell 6.1 | I28: Antar at den er lik forventet BNP vekst | K28: 42963 | L28: Malene Nerland
B29: CRF (Capital Recovery Factor) | C29: =((Kalkulasjonsrente1)*((1+Kalkulasjonsrente1)^Levetid_Togmateriell))/(((1+Kalkulasjonsrente1)^Levetid_Togmateriell)-1) -> 0.05783009913 | D29: Faktor | H29: Jernbanedirektoratet (2019) | K29: 43084 | L29: Malene Nerland
B32: Forutsetninger (må alltid fylles ut) | H32: Informasjon
B33: Generelle forutsetninger | D33: Benevning | F33: Kildeår | H33: Kilde | I33: Kommentar | J33: Bakgrunn til forutsetning | K33: Dato | L33: Lagt inn (Navn):
B34: Antall beregningsår | C34: =IF(ISNUMBER(TredjeBeregningsår),3,IF(ISNUMBER(AndreBeregningsår),2,IF(ISNUMBER(FørsteBeregningsår),1,"FEIL"))) -> FEIL | D34: Antall | I34: Antall beregningsår er de årene det gjennomføres trafikk-, inntekts- og kostnadsberegninger for trafikken som påvirkes av tiltaket. | J34: ="" -> 
B35: Oppstartsår | D35: År | I35: Det året investeringen i tiltaket starter.
B36: Åpningsår | D36: År | I36: Er det året prosjektet er ferdigstilt, åpner og begynner å generere nytte. Dette er det første året i prosjektets levetid. | J36: ="" -> 
B37: Første beregningsår | D37: År | I37: Det første året som er forutsatt i transportmodellkjøringen.
B38: Andre beregningsår | D38: År | I38: Det andre året som er forutsatt i transportmodellkjøringen (hvis det er gjennomført transportmodellkjøring for to år). | J38: ="" -> 
B39: Tredje beregningsår | D39: År | I39: Det tredje året som er forutsatt i transportmodellkjøringen (hvis det er gjennomført transportmodellkjøring for tre år). | J39: ="" -> 
B40: Diskonteringsår | D40: År | I40: Angir hvilket år de årlige nytte- og kostnadsbeløpene skal neddiskonteres til. | J40: ="" -> 
B41: Kroneår i beregninger | D41: År | I41: Hvilket kroneår som det skal justeres til i analysen fylles inn her. | J41: ="" -> 
B42: Kroneår - Tidskostnader i transportmodell/analyse | D42: År | I42: Kroneåret for tisdverdiene som inngår for å beregne trafikantnytten i transportmodellen/transportanalysen i "1.3 Persontransportmodell" | K42: 43529 | L42: Malene Nerland
B43: Kroneår - Takster i transportmodell/analyse | D43: År | I43: Kroneåret for takstene som inngår for å beregne billettinntekter i transportmodellen/transportanalysen i "1.3 Persontransportmodell" | K43: 43529 | L43: Malene Nerland
B44: Kroneår - Transportkostnader gods | C44: 2021 | D44: År | I44: Kroneåret for logistikkostnadene for gods som inngår for å beregne transportkostnader i transportmodellen/transportanalysen i "1.4 Godsmodell" | K44: 43529 | L44: Malene Nerland
B45: Siste statistikkår | C45: 2022 | D45: År | I45: Dette er en forutsetning som ikke endrer seg uten at vi prisjusterer alle standardsatsene. | J45: Alle standardsatsene er justert med prisindekser slik at de er oppdatert til det året vi sist har statistikk for. | K45: 44872 | L45: Mari Baklund Størseth
B46: Siste år med prognose | C46: 2024 | D46: År | K46: 45209 | L46: Mai Brit Svendsen
B47: Siste år med volumvekst | C47: 2100 | D47: År | I47: Er det siste året som det beregnes nytte- og kostnadsstrøm for. | J47: ="" -> 
B48: Framskrivning etter siste beregningsår | C48: Vekstprognose | I48: Brukeren skal velge om vekstprognose skal brukes til å framskrive nyttestrøm fra siste beregningsår, eller om det skal brukes lineærtrend basert på de to siste beregningsårene. | J48: ="" ->  | K48: 42887 | L48: Jon-Kristian Ryan Hovland
B49: Prosjektets levetid | D49: Antall år | F49: 2014 | H49: Regjeringen (2014), s. 5 | I49: Angir i hvor mange år tiltaket vil generere en samfunnsnytte. Maksimalt 75 år. | J49: Levetiden som benyttes i analysen av investeringsprosjekter må reflektere den perioden tiltaket som analyseres faktisk vil være i bruk eller yte en samfunnstjeneste. | K49: ="" ->  | L49: Malene Nerland
B50: Analyseperiodens lengde | D50: Antall år | F50: 2014 | H50: Regjeringen (2014), s. 5 | I50: Som hovedprinsipp skal analyseperioden være så nær levetiden som praktisk mulig. | J50: For infrastrukturtiltak i samferdselssektoren settes analyseperioden til 40 år. Avvik fra dette prinsippet må begrunnes. | K50: ="" ->  | L50: Malene Nerland
B51: Investering
B52: Kroneår - Investeringskostnader | D52: År | I52: Dette er hvilket kroneår investeringskostnadene av tiltaket er oppgitt i. | J52: ="" ->  | L52: Malene Nerland
B53: Investeringskostnad - Referanse | D53: Mill. NOK | I53: Investeringskostnader for referansealternativet (hvis det er noe) | J53: Hvis det er investeringer som inngår i referansealternativet så er det antatt at disse kostnadene fordeles likt på antall år som ved utbygging (forenkling). | K53: ="" ->  | L53: Malene Nerland
B54: Investeringskostnad - Tiltak | D54: Mill. NOK | I54: Investeringskostnaden for tiltaket | J54: Investeringskostnaden blir likt fordelt på antall år fra første år med investering til åpningsåret. | K54: ="" ->  | L54: Malene Nerland
B55: Antall år investeringen skal fordeles på | C55: =IFERROR(MAXA(Åpningsår-Oppstartsår_FørsteÅrMedInvestering,1),"") -> 1 | D55: Antall år | I55: Antall år med investering beregnes automatisk fra oppstartsår til åpningsår. | J55: ="" ->  | L55: Malene Nerland
B56: Co2-utslipp i byggefasen (på byggeplassen) | D56: Tonn Co2 | I56: Antall tonn Co2-utslipp beregnet fra utslipp på byggeplassen. Dette vil typisk være utslipp fra anleggsmaskiner og utslipp ifm. sprenging. Her skal det kun inngå Co2-utslipp som er geografisk avgrenset til byggeplassen. | L56: Mari Baklund Størseth
B57: Co2-utslipp i byggefasen (massetransport) | D57: Tonn Co2 | I57: Antall tonn Co2-utslipp beregnet fra massetransport til og fra byggeplassen. | L57: Mari Baklund Størseth
B58: Sum Co2-utslipp i byggefasen | C58: =Co2Utslipp_byggefase_CO2avgift+Co2Utslipp_byggefase_alleavgifter -> 0 | D58: Tonn Co2
B59: Co2-utslipp arealbeslag | D59: Tonn Co2 | I59: Totale antall tonn Co2-utslipp beregnet fra arealbeslag | K59: 44540 | L59: Mari Baklund Størseth
B60: Andel av investeringskostnaden
B61: Underbygg | D61: Prosent | I61: Disse andelene benyttes dersom alle komponentene inngår i et infrastrukturtiltak. Andelen av investeringskostnaden for de ulike komponentene vil være svært varierende fra tiltak til tiltak. Det må gjøres en vurdering for hvert enkelt tiltak hvordan investeringskostnadene fordeler seg, men vi vil her foreslå noen sjablongmessige tilnærminger hvis den informasjonen ikke er tilgjengelig. Det er hovedsakelig underbygning som varierer i størst grad og det er inndelt etter lav, middels og høy grad av underbygning. Når det er lav grad av underbygning vil de andre komponentene være en større del av investeringskostnadene og motsatt ved en høy grad av underbygning. Lav (60 %) - Middels (70 %) - Høy (80 %). Kategorien "Annen" kan benyttes dersom andel av investeringskostnaden ikke går under de øvrige kategoriene. | J61: ="" ->  | L61: Malene Nerland
B62: Overbygg | D62: Prosent | I62: Disse andelene benyttes dersom alle komponentene inngår i et infrastrukturtiltak. Andelen av investeringskostnaden for de ulike komponentene vil være svært varierende fra tiltak til tiltak. Det må gjøres en vurdering for hvert enkelt tiltak hvordan investeringskostnadene fordeler seg, men vi vil her foreslå noen sjablongmessige tilnærminger hvis den informasjonen ikke er tilgjengelig. Det er hovedsakelig underbygning som varierer i størst grad og det er inndelt etter lav, middels og høy grad av underbygning. Når det er lav grad av underbygning vil de andre komponentene være en større del av investeringskostnadene og motsatt ved en høy grad av underbygning. Lav (60 %) - Middels (70 %) - Høy (80 %). Kategorien "Annen" kan benyttes dersom andel av investeringskostnaden ikke går under de øvrige kategoriene. | J62: ="" ->  | L62: Malene Nerland
B63: KL-anlegg | D63: Prosent | I63: Disse andelene benyttes dersom alle komponentene inngår i et infrastrukturtiltak. Andelen av investeringskostnaden for de ulike komponentene vil være svært varierende fra tiltak til tiltak. Det må gjøres en vurdering for hvert enkelt tiltak hvordan investeringskostnadene fordeler seg, men vi vil her foreslå noen sjablongmessige tilnærminger hvis den informasjonen ikke er tilgjengelig. Det er hovedsakelig underbygning som varierer i størst grad og det er inndelt etter lav, middels og høy grad av underbygning. Når det er lav grad av underbygning vil de andre komponentene være en større del av investeringskostnadene og motsatt ved en høy grad av underbygning. Lav (60 %) - Middels (70 %) - Høy (80 %). Kategorien "Annen" kan benyttes dersom andel av investeringskostnaden ikke går under de øvrige kategoriene. | J63: ="" ->  | L63: Malene Nerland
B64: Lavspenning | D64: Prosent | I64: Disse andelene benyttes dersom alle komponentene inngår i et infrastrukturtiltak. Andelen av investeringskostnaden for de ulike komponentene vil være svært varierende fra tiltak til tiltak. Det må gjøres en vurdering for hvert enkelt tiltak hvordan investeringskostnadene fordeler seg, men vi vil her foreslå noen sjablongmessige tilnærminger hvis den informasjonen ikke er tilgjengelig. Det er hovedsakelig underbygning som varierer i størst grad og det er inndelt etter lav, middels og høy grad av underbygning. Når det er lav grad av underbygning vil de andre komponentene være en større del av investeringskostnadene og motsatt ved en høy grad av underbygning. Lav (60 %) - Middels (70 %) - Høy (80 %). Kategorien "Annen" kan benyttes dersom andel av investeringskostnaden ikke går under de øvrige kategoriene. | J64: ="" ->  | L64: Malene Nerland
B65: Signalanlegg | D65: Prosent | I65: Disse andelene benyttes dersom alle komponentene inngår i et infrastrukturtiltak. Andelen av investeringskostnaden for de ulike komponentene vil være svært varierende fra tiltak til tiltak. Det må gjøres en vurdering for hvert enkelt tiltak hvordan investeringskostnadene fordeler seg, men vi vil her foreslå noen sjablongmessige tilnærminger hvis den informasjonen ikke er tilgjengelig. Det er hovedsakelig underbygning som varierer i størst grad og det er inndelt etter lav, middels og høy grad av underbygning. Når det er lav grad av underbygning vil de andre komponentene være en større del av investeringskostnadene og motsatt ved en høy grad av underbygning. Lav (60 %) - Middels (70 %) - Høy (80 %). Kategorien "Annen" kan benyttes dersom andel av investeringskostnaden ikke går under de øvrige kategoriene. | J65: ="" ->  | L65: Malene Nerland
B66: Annen | D66: Prosent | I66: Disse andelene benyttes dersom alle komponentene inngår i et infrastrukturtiltak. Andelen av investeringskostnaden for de ulike komponentene vil være svært varierende fra tiltak til tiltak. Det må gjøres en vurdering for hvert enkelt tiltak hvordan investeringskostnadene fordeler seg, men vi vil her foreslå noen sjablongmessige tilnærminger hvis den informasjonen ikke er tilgjengelig. Det er hovedsakelig underbygning som varierer i størst grad og det er inndelt etter lav, middels og høy grad av underbygning. Når det er lav grad av underbygning vil de andre komponentene være en større del av investeringskostnadene og motsatt ved en høy grad av underbygning. Lav (60 %) - Middels (70 %) - Høy (80 %). Kategorien "Annen" kan benyttes dersom en andel av investeringskostnaden ikke går under de øvrige kategoriene, da må det fylles ut levetid for denne komponenten. | J66: ="" ->  | L66: Mai Brit Svendsen
B67: Sum andel av investeringskostnader | C67: =IF(SUM(C61:C66)=100%,SUM(C61:C66),"FEIL, skal summeres til 100%") -> FEIL, skal summeres til 100%
B68: Vedlikehold | C68: Referanse | D68: Tiltak | E68: Endring | F68: Benevning | H68: Kilde | I68: Kommentar | J68: Bakgrunn til forutsetning | K68: Dato | L68: Lagt inn (Navn):
B69: Sporveksler | E69: =D69-C69 -> 0 | F69: Antall | I69: Antall sporveksler. | L69: Malene Nerland
B70: Stasjoner | E70: =D70-C70 -> 0 | F70: Antall | I70: Antall stasjoner. | L70: Malene Nerland
B71: Daglinje | E71: =D71-C71 -> 0 | F71: Km | I71: Antall km daglinje (vanlig spor i "åpent" terreng, som ikke er tunnel eller bro). | J71: ="" ->  | K71: ="" ->  | L71: Malene Nerland
B72: Tunnel | E72: =D72-C72 -> 0 | F72: Km | I72: Antall km tunnel | L72: Malene Nerland
B73: Gjennomsnittlig hastighet | E73: =D73-C73 -> 0 | F73: km/t | I73: Gjennomsnittlig hastighet på toget. | J73: ="" ->  | L73: Malene Nerland
B74: Hastighet påslag | C74: 0.0048 | F74: Prosent | I74: Endring i snitthastighet på 1 km/t endrer vedlikeholdskostnadene med 0,84 %. | J74: Høyere hastighet utsetter under- og overbygning for større krefter og mer slitasje. | L74: Malene Nerland
B75: Energikilde | C75: Elektrisk | D75: Elektrisk | E75: =IF(C75=D75,0,IF(C75="Diesel",1,-1)) -> 0 | I75: Fyller inn om det er elektrisk, diesel eller bimodal strekning | J75: ="" ->  | L75: Mari Baklund Størseth
B76: Andel diesel | E76: =D76-C76 -> 0 | F76: Prosent | I76: Dersom det er en bimodal strekning legges det inn andel av strekningen som kjøres med diesel | L76: Mari Baklund Størseth
B77: Energikilde påslag | C77: 0.1848 | F77: Prosent | H77: Jernbanedirektoratet (2019) | I77: Vedlikeholdskostnadene er i gjennomsnitt 18,48 % dyrere for elektrisk togstrekning enn dieseldrevet togstrekning. | J77: Elektrifiserte baner har flere komponenter som behøver vedlikehold. Det er mer tidkrevende med vedlikehold siden strøm må kobles fra før hvert vedlikeholdsarbeid og kobles på igjen etter utført arbeid. | K77: ="" ->  | L77: Malene Nerland
B78: Togmateriell
B79: Togtype
B80: Motorvogn eller lok+vogn | C80: - | D80: - | E80: =IF(Togtype_Ref=Togtype_Tiltak,"","Endret") ->  | F80: Togtype | I80: Velg den mest brukte togtypen (motorvogn eller lok+vogn) for persontrafikk på strekningen. Hvis det velges lokomotiv (EL18 eller Di4) må også vogntype (sittevogn) og antall vogner fylles inn. NB: Når det bare ligger inne resultater for gods velges "Godstog" | J80: ="" ->  | K80: ="" ->  | L80: Malene Nerland
B81: Vogner | C81: - | D81: - | E81: =IF(TogtypeVogn_Ref=TogTypeVogn_Tiltak,"","Endret") ->  | F81: Vogntype | I81: Velge vogntype hvis den mest brukste togtypen på strekningen er lok+vogn. | L81: Malene Nerland
B82: Vogner per lokomotiv | E82: =D82-C82 -> 0 | F82: Antall | I82: Antall vogner som i gjennomsnitt er festet på et lokomotiv. | L82: Malene Nerland
B83: Togsett
B84: Motorvogner eller lok+vogn | E84: =Togsett_Tiltak-Togsett_Ref -> 0 | F84: Antall | I84: Fyll inn antall togsett som er nødvendig for å avvikle togtilbudet i analysen. | L84: Malene Nerland
B85: Togtype 2 | C85: Dersom to materielltyper skal analyseres må data for Togype 2 og Togsett 2 fylles ut
B86: Motorvogn eller lok+vogn | C86: - | D86: - | E86: =IF(Togtype_Ref_2=Togtype_Tiltak_2,"","Endret") ->  | F86: Togtype | I86: Velg den mest brukte togtypen (motorvogn eller lok+vogn) for persontrafikk på strekningen. Hvis det velges lokomotiv (EL18 eller Di4) må også vogntype (sittevogn) og antall vogner fylles inn. NB: Når det bare ligger inne resultater for gods velges "Godstog" | L86: Tormod Wergeland Haug
B87: Vogner | C87: - | D87: - | E87: =IF(TogtypeVogn_Ref_2=TogTypeVogn_Tiltak_2,"","Endret") ->  | F87: Vogntype | I87: Velge vogntype hvis den mest brukste togtypen på strekningen er lok+vogn. | L87: Tormod Wergeland Haug
B88: Vogner per lokomotiv | E88: =D88-C88 -> 0 | F88: Antall | I88: Antall vogner som i gjennomsnitt er festet på et lokomotiv. | L88: Tormod Wergeland Haug
B89: Togsett 2
B90: Motorvogner eller lok+vogn | E90: =Togsett_Tiltak_2-Togsett_Ref_2 -> 0 | F90: Antall | I90: Fyll inn antall togsett som er nødvendig for å avvikle togtilbudet i analysen. | L90: Tormod Wergeland Haug
B91: Andre forutsetninger
B92: Punktlighet tog (NB: påvirker kun operatørenes driftskostnader) | E92: =PunktlighetTiltak-PunktlighetRef -> 0 | F92: Prosent | I92: Anslått punktlighet for togtrafikk. Det er foreløpig ikke lagt inn funksjonalitet i SAGA for å beregne trafikantenes nytte av endret punktlighet. Dette fordi det er vanskelig å presist modellere hvordan et tiltak påvirker punktligheten. Punktlighetsanslaget her benyttes derfor kun som et grovt anslag på operatørenes økte driftskostnader (særlig pga. overtid for personell på toget) som følge av forsinkelser. Trafiktantenes nytte må beskrives som en ikke-prissatt virkning, eller beregnes utenfor SAGA. | J92: ="" ->  | K92: ="" ->  | L92: Øystein Rembar
B93: Tomtogkjøring | F93: Prosent | I93: Tomtogkilometer er den tilbakelagte distansen mellom stasjoner uten transporttilbud, også kalt posisjonskjøring. Det regnes normalt kun regelmessig tomtogkjøring mellom stedet et kjøretøy bytter til og fra kundedrift, til driftspause og det stedet kjøretøyet hensettes. | J93: Bruker foreløpig 10 % påslag på rutekm (det samme som har blitt brukt i R2027) | K93: 42907 | L93: Malene Nerland
B94: Rabatt sporavgift godstog | C94: Nei | D94: =IF(Åpningsår<=2023,75%,IF(Åpningsår=2024,60%,IF(Åpningsår=2025,45%,IF(Åpningsår=2026,30%,IF(Åpningsår=2027,15%,IF(Åpningsår>=2027,0%)))))) -> 0.75 | F94: Nei/Ja | H94: BaneNOR_2023 | I94: Hvis "Ja" er valgt her, legges det inn 75 % rabatt på sporavgiften til godstog dersom åpningsåret er 2023 eller mindre, rabatten reduseres deretter gradvis til den blir null i 2028. Rabatten gjelder for utvalgte strekninger og delstrekninger. For deltaljer, se Network Statement (2024). Det skal velges "Nei" her dersom det er en analyse av persontransport. | K94: 45282 | L94: Mari B. Størseth
B95: Anta realprisjustering av fremtidig CO2-avgift | C95: Nei | F95: Nei/Ja | I95: Hvis "Ja" er valgt her, realprisjusteres CO2-avgiften med diskonteringsraten i fremtidige år. Hvis "Nei" er valgt, vil CO2-avgiften videreføres flatt på dagens nivå. Dersom CO2-avgiften er realprisjustert i transportmodellen, bør tilsvarende realprisjustering gjøres i SAGA. Samme avgiftsforutsetninger bør legges til grunn for trafikantnytten (beregnet i transportmodellen) og for operatørene og det offentlige (beregnes i SAGA), siden avgiften er en overføring mellom disse aktørene. | K95: 44016 | L95: Øystein Rembar
B96: Valg av karbonprisbane | C96: Hovedalternativ | F96: Høy/Lav/Hoved | I96: Hvis "Hovedalternativ" er valgt her, vil den årlige karbonprisbanen fra Finansdepartementet benyttes videre i analysen og det gjøres ikke følsomhetsbergegninger. Hvis "Høyt alternativ" er valgt her, benyttes karbonprisbanen som trengs for å begrense oppvarming til 1,5 grader (median-anslag). Hvis "Lavt alternativ" er valgt her, benyttes en karbonprisbane som er satt til 75 prosent av kvoteprisen i det første året og vokser deretter med kalkulasjonsrenten. | K96: 44545 | L96: Mari B. Størseth
B97: Nattogandel (gods) | C97: 0 | F97: Prosent | K97: 44797 | L97: Mari B. Størseth
B98: Virkninger per døgn | D98: Benevning | F98: Kildeår | H98: Kilde | I98: Kommentar | J98: Bakgrunn til forutsetning | K98: Dato | L98: Lagt inn (Navn):
B99: Skalering til årlige virkninger | D99: Faktor | F99: Faktor | H99: Jernbanedirektoratet (2019) | I99: Fra transportmodellene hentes det ut virkninger per døgn som kan være forskjellig etter hvilken modell som brukes og hva som spesifiseres i modellen. Virkninger per døgn må gjøres om til årlige virkninger. | J99: Fylles ut ved input av virkninger per døgn. Er det en gjennomsnittsdag fylles det ut 365. | K99: 43258 | L99: Malene Nerland
B100: Skalering til årlige virkninger - Togmateriell | D100: Faktor | F100: Faktor | I100: Denne faktoren benyttes under "2.2 Operatører" | J100: Fylles ut når input av virkninger per døgn er satt til 1. Ved bruk av resultater for flere modellkjøringer i et beregningsår som allerede er justert til årlige virkninger vil faktor være satt til 1, men faktor for å beregne driftskostnader for operatør må skaleres med den samme faktoren som er brukt for å justere til årlige virkninger utenfor SAGA. Den skal også fylles inn dersom det er en endring i togtype og/eller antall togsett. | K100: 44725 | L100: Mai Brit Svendsen
B103: Forutsetninger (vurderes opp mot tiltaket) | H103: Informasjon | K103: Fylles ut ved endring av sats
B104: Reisehensiktsfordeling | D104: Benevning | F104: Kildeår | H104: Kilde | I104: Kommentar | J104: Bakgrunn til forutsetning | K104: Dato | L104: Lagt inn (Navn):
B105: Arbeidsreiser | C105: =IF('1.3 Persontransportmodell'!AH17>0,'1.3 Persontransportmodell'!AH17/'1.3 Persontransportmodell'!AH20,0.41) -> 0.41 | D105: Prosent | F105: 2021 | H105: RVU 2019 eget uttak | I105: Summerer arbeid og skole for å finne andelen arbeidsreiser. | J105: Blir beregnet fra modellresultatene eller en standard. Standard-andelen er beregnet fra RVU-data (2019): Rapportert reisehensikt og avreisetidspunkt for personreiser, stadfesting på grunnkretsnivå. Tabell 4.1 s. 20. Standard-andelen er summen av reiser med formål arbeid og skole. | K105: 44377 | L105: Tormod Wergeland Haug
B106: Fritidsreiser | C106: =IF('1.3 Persontransportmodell'!AH18>0,'1.3 Persontransportmodell'!AH18/'1.3 Persontransportmodell'!AH20,0.54) -> 0.54 | D106: Prosent | F106: 2021 | H106: RVU 2019 eget uttak | I106: Summerer handle/service, følge/omsorg, fritid, besøk og annet. | J106: Blir beregnet fra modellresultatene eller en standard. Standard andelen er beregnet fra RVU-data (2013/14): Rapportert reisehensikt og avreisetidspunkt for personreiser, stadfesting på grunnkretsnivå. Tabell 4.1 s. 20. Standard-andelen er summen av reiser med formål handle/service, følge/omsorg, fritid, besøk og annet. | K106: 44377 | L106: Tormod Wergeland Haug
B107: Forretningsreiser | C107: =IF('1.3 Persontransportmodell'!AH19>0,'1.3 Persontransportmodell'!AH19/'1.3 Persontransportmodell'!AH20,0.05) -> 0.05 | D107: Prosent | F107: 2021 | H107: RVU 2019 eget uttak | I107: Det samme som tjenestereiser | J107: Blir beregnet fra modellresultatene eller en standard. Standard andelen er beregnet fra RVU-data (2013/14): Rapportert reisehensikt og avreisetidspunkt for personreiser, stadfesting på grunnkretsnivå. Tabell 4.1 s. 20. Standard-andelen er lik tallet for tjenestereiser fra kilde. | K107: 44377 | L107: Tormod Wergeland Haug
B108: Elastisitet
B109: Reallønnsvekst
B110: Tjenestereiser | C110: 1 | D110: Elastisitet | F110: 2010 | H110: TØI-rapport 1053B/2010, s.44. | I110: Hovedfunn er at lavinntektsgrupper har lavere elastisitet enn høyinntektsgrupper. Endringer i inntektsfordelingene over tid har derfor betydning for hvordan gjennomsnittlig elastisitet utvikler seg over tid. I rapporten anbefales det videre forskning på denne elastisiteten, men foreslår å bruke elastisiteten på 1 enn så lenge. Hvis elastisiteten tar verdien 1, innebærer det at tidsverdiene vokser i takt med realinntekten. Hvis den er 0,5, vil tidsverdiene stige med halve veksttakten til realinntekten. | J110: Anbefalinger fra Sverige og Storbritannia (begge for samferdselssektoren er å benytte elastisitet på 1. (Ref. https://www.regjeringen.no/no/dokumenter/nou-2012-16/id700821/?ch=5). | K110: 43047 | L110: Malene Nerland
B111: Øvrige reiser | C111: 1 | D111: Elastisitet | F111: 2010 | H111: TØI-rapport 1053B/2010, s.44. | I111: Hovedfunn er at lavinntektsgrupper har lavere elastisitet enn høyinntektsgrupper. Endringer i inntektsfordelingene over tid har derfor betydning for hvordan gjennomsnittlig elastisitet utvikler seg over tid. I rapporten anbefales det videre forskning på denne elastisiteten, men foreslår å bruke elastisiteten på 1 enn så lenge. Hvis elastisiteten tar verdien 1, innebærer det at tidsverdiene vokser i takt med realinntekten. Hvis den er 0,5, vil tidsverdiene stige med halve veksttakten til realinntekten. | J111: Anbefalinger fra Sverige og Storbritannia (begge for samferdselssektoren er å benytte elastisitet på 1. (Ref. https://www.regjeringen.no/no/dokumenter/nou-2012-16/id700821/?ch=5). | K111: 43047 | L111: Malene Nerland
B112: Miljø, ulykker og helse | C112: 1 | D112: Elastisitet | F112: 2010 | H112: TØI-rapport 1053B/2010, s.44. | I112: Hovedfunn er at lavinntektsgrupper har lavere elastisitet enn høyinntektsgrupper. Endringer i inntektsfordelingene over tid har derfor betydning for hvordan gjennomsnittlig elastisitet utvikler seg over tid. I rapporten anbefales det videre forskning på denne elastisiteten, men foreslår å bruke elastisiteten på 1 enn så lenge. | J112: Anbefalinger fra Sverige og Storbritannia (begge for samferdselssektoren er å benytte elastisitet på 1. (Ref. https://www.regjeringen.no/no/dokumenter/nou-2012-16/id700821/?ch=5). | K112: 43047 | L112: Malene Nerland
B113: Persontrafikk
B114: Priselastisitet | C114: [-0,20; -0,54] | D114: Elastisitet | F114: 2017 | H114: Oslo Economics (2017), s. 4 | I114: Det benyttes priser på periodekort for ulike prissoner i Osloområdet til å belyse prisutvikling, og beregne priselastisiteten. Det er en betinget elastisitet, som betyr at andre transportmidler endrer sin pris tilsvarende som togprisene. | J114: Elastisitetene som presenteres kan tolkes som effekter av passasjerenes tilpasninger på mellomlang horisont og det gjelder for antall turer (data fra 2012-2015). Elastisitetene er beregnet for ulike geografiske inndelinger av strekninger og fjerntogstrekninger med og uten konkurranse fra fly. Det er ikke beregnet generelle elastisiteter, men satt opp intervall som fremkommer av de ulike inndelingene. Det er derfor nødvendig å vurdere elastisiteten i forhold til hvilken effekt tiltaket har. | K114: 42920 | L114: Malene Nerland
B115: Ombordtidselastisitet | C115: [-0,26; -0,69] | D115: Elastisitet | F115: 2017 | H115: Oslo Economics (2017), s. 4 | I115: Sammenstilling av ombordtider med passasjervolumer og hvordan passasjerantallet har variert over perioden med hvordan ombordtidene på reiser på de samme strekningene har variert gir et mål på etterspørselens følsomhet for endringer i ombordtid. | J115: Elastisitetene som presenteres kan tolkes som effekter av passasjerenes tilpasninger på mellomlang horisont og det gjelder for antall turer (data fra 2012-2015). Elastisitetene er beregnet for ulike geografiske inndelinger av strekninger og fjerntogstrekninger med og uten konkurranse fra fly. Det er ikke beregnet generelle elastisiteter, men satt opp intervall som fremkommer av de ulike inndelingene. Det er derfor nødvendig å vurdere elastisiteten i forhold til hvilken effekt tiltaket har. | K115: 42920 | L115: Malene Nerland
B116: Ventetidselastisitet | C116: [-0,04; -0,50] | D116: Elastisitet | F116: 2017 | H116: Oslo Economics (2017), s. 4 | I116: Ventetiden er beregnet til halvparten av tiden mellom avgangene mellom det aktuelle stasjonsparet. Sammenstilling av ventetider med passasjervolumer og endringer i passasjerantallet med hvordan ventetiden på de samme strekningene har variert gjør det mulig å måle etterspørselens følsomhet for endringer i ventetid. | J116: Elastisitetene som presenteres kan tolkes som effekter av passasjerenes tilpasninger på mellomlang horisont og det gjelder for antall turer (data fra 2012-2015). Elastisitetene er beregnet for ulike geografiske inndelinger av strekninger og fjerntogstrekninger med og uten konkurranse fra fly. Det er ikke beregnet generelle elastisiteter, men satt opp intervall som fremkommer av de ulike inndelingene. Det er derfor nødvendig å vurdere elastisiteten i forhold til hvilken effekt tiltaket har. | K116: 42920 | L116: Malene Nerland
B117: GJT-elastisitet | C117: [-0,31; -1,21] | D117: Elastisitet | F117: 2017 | H117: Oslo Economics (2017), s. 4 | I117: Summen av ombordtid, ventetid og eventuell bytteventetid blir omtalt som generalisert reisetid (GJT). | J117: Elastisitetene som presenteres kan tolkes som effekter av passasjerenes tilpasninger på mellomlang horisont og det gjelder for antall turer (data fra 2012-2015). Elastisitetene er beregnet for ulike geografiske inndelinger av strekninger og fjerntogstrekninger med og uten konkurranse fra fly. Det er ikke beregnet generelle elastisiteter, men satt opp intervall som fremkommer av de ulike inndelingene. Det er derfor nødvendig å vurdere elastisiteten i forhold til hvilken effekt tiltaket har. | K117: 42920 | L117: Malene Nerland
B118: Infrastruktur
B119: Levetid for ulike komponenter
B120: Underbygg | C120: 100 | D120: år | F120: 2017 | H120: Bane NOR (2017) | I120: Underbygning innbefatter her også jernbanebruer, overgangsbruer, andre bærende konstruksjoner, tunneler, støttemurer osv. Teknisk regelverk sier at konstruksjoner skal regnes med en dimensjonerende brukstid på 100 år dersom ikke annet er angitt. Hentet tilbakemelding fra Asbjørn Rasdal i seksjon "Fagstøtte jernbaneteknikk og sikkerhet" i Jernbanedirektoratet. | J120: Med teknisk levetid menes den forventede levetiden et objekt har før de tekniske krav objektet er laget etter ikke lenger er oppfylte. Teknisk regelverk sier ingenting om eksakt levetid for underbygning men 100 års levetid for underbygning inkludert konstruksjoner høres fornuftig ut. | K120: 42892 | L120: Malene Nerland
B121: Overbygg | C121: 40 | D121: år | F121: 2017 | H121: Bane NOR (2017) | I121: I teknisk regelverk er det ikke angitt noen eksakt levetid for overbygning men 40 års levetid er nok riktig vurdering. Hentet tilbakemelding fra Asbjørn Rasdal i seksjon "Fagstøtte jernbaneteknikk og sikkerhet" i Jernbanedirektoratet. | J121: Med teknisk levetid menes den forventede levetiden et objekt har før de tekniske krav objektet er laget etter ikke lenger er oppfylte. | K121: 42892 | L121: Malene Nerland
B122: KL-anlegg | C122: 50 | D122: år | F122: 2017 | H122: Bane NOR (2017) | I122: Forklart under avsnitt 4. Kl-anlegg innbefatter også banestrømforsyning selv om hoveddelen av kostnadene er kl-systemet. I teknisk regelverk er for eksempel banestrømforsyningen stasjonsanlegg satt til 40 år, men kl-anlegg er satt til minimum 50 år, avhenger av materialvalg og dimensjonering. Anbefaler derfor 50 år. Hentet tilbakemelding fra Asbjørn Rasdal i seksjon "Fagstøtte jernbaneteknikk og sikkerhet" i Jernbanedirektoratet. | J122: Med teknisk levetid menes den forventede levetiden et objekt har før de tekniske krav objektet er laget etter ikke lenger er oppfylte. | K122: 42892 | L122: Malene Nerland
B123: Lavspenning | C123: 40 | D123: år | F123: 2017 | H123: Bane NOR (2017) | I123: I teknisk regelverk er det ikke angitt eksakt levetid for lavspenning, men 40 års levetid er nok en riktig vurdering. Denne forutsetningen het før elektroanlegg, men i samråd med Bane NOR er den endret til Lavspenning. Hentet tilbakemelding fra Asbjørn Rasdal i seksjon "Fagstøtte jernbaneteknikk og sikkerhet" i Jernbanedirektoratet. | J123: Med teknisk levetid menes den forventede levetiden et objekt har før de tekniske krav objektet er laget etter ikke lenger er oppfylte. | K123: 42892 | L123: Malene Nerland
B124: Signalanlegg | C124: 25 | D124: år | F124: 2017 | H124: Bane NOR (2017) | I124: I teknisk regelverk skal forriglingsutrustningen ha en levetid på minimum 25 år. Signalanlegg er mer enn bare forriglingsutrustning men 25 års levetid for signalanlegg høres greit ut. Hentet tilbakemelding fra Asbjørn Rasdal i seksjon "Fagstøtte jernbaneteknikk og sikkerhet" i Jernbanedirektoratet. | J124: Med teknisk levetid menes den forventede levetiden et objekt har før de tekniske krav objektet er laget etter ikke lenger er oppfylte. | K124: 42892 | L124: Malene Nerland
B125: Annen | C125: 5 | D125: år | F125: 2017 | I125: Kan være 5 år eller mer for å få riktig antall reinvesteringer. Er levetiden kortere må reinvesteringene justeres manuelt i 2.5. | K125: 45111 | L125: Mari Baklund Størseth
B126: Belegg på transportmiddel
B127: Bilbelegg
B128: Andel av bilreiser
B129: Under eller lik 50 km | C129: 0.94 | D129: Prosent | F129: 2021 | H129: RVU 2019 eget uttak | I129: Andel av daglige reiser som er under eller lik 50 km. | K129: 44377 | L129: Tormod Wergeland Haug
B130: Over 50 km | C130: 0.06 | D130: Prosent | F130: 2021 | H130: RVU 2019 eget uttak | I130: Andel av daglige reiser som er over 50 km. | K130: 44377 | L130: Tormod Wergeland Haug
B131: Reiser < 50 km
B132: Arbeidsreiser | C132: ='Standardsatser-Forutsetninger'!$C$128 -> 1.18 | D132: ='Standardsatser-Forutsetninger'!$D$128 -> Personer pr. bil | F132: 2021 | H132: RVU 2019 eget uttak | K132: 44377 | L132: Tormod Wergeland Haug
B133: Fritidsreiser | C133: ='Standardsatser-Forutsetninger'!$C$129 -> 1.94 | D133: ='Standardsatser-Forutsetninger'!$D$129 -> Personer pr. bil | F133: 2021 | H133: RVU 2019 eget uttak | K133: 44377 | L133: Tormod Wergeland Haug
B134: Forretningsreiser | C134: 1.3 | D134: ='Standardsatser-Forutsetninger'!$D$128 -> Personer pr. bil | F134: 2021 | H134: RVU 2019 eget uttak | K134: 44377 | L134: Tormod Wergeland Haug
B135: Reiser ≥ 50 km
B136: Arbeidsreiser | C136: 1.17 | D136: Personer per bil | F136: 2021 | H136: RVU 2019 eget uttak | J136: ="" ->  | K136: 44377 | L136: Tormod Wergeland Haug
B137: Fritidsreiser | C137: 2.31 | D137: Personer per bil | F137: 2021 | H137: RVU 2019 eget uttak | K137: 44377 | L137: Tormod Wergeland Haug
B138: Forretningsreiser | C138: 1.37 | D138: Personer per bil | F138: 2021 | H138: RVU 2019 eget uttak | J138: ="" ->  | K138: 44377 | L138: Tormod Wergeland Haug
B139: Totalt
B140: Gjennomsnitt | C140: =(C132*Bilreiser_under50km+C136*Bilreiser_over50km)*AndelArbeidsreiser+(C133*Bilreiser_under50km+C137*Bilreiser_over50km)*AndelFritidsreiser+(C134*Bilreiser_under50km+C138*Bilreiser_over50km)*AndelForretningsreiser -> 1.608352 | D140: Personer per bil | J140: Vektet gjennomsnitt av andelen som reiser over og under 50km, og hvor stor andel som er arbeidsreiser, fritidsreiser og forretningsreiser.
B141: Bussbelegg
B142: Gjennomsnitt | C142: 14 | D142: Personer per buss | F142: 2018 | H142: Jernbanedirektoratet (2020) | I142: Gjennomsnittlig bussbelegg | J142: Regnet ut basert på SSBs kollektivstatistikk | K142: 43938 | L142: Øystein Rembar
B143: Flybelegg
B144: Gjennomsnitt | C144: 56 | D144: Personer per fly | F144: 2019 | H144: Avinor_2019 | I144: Basert på Avinors trafikkstatistikk. Dette gjelder kun innenlandsflyvninger. | K144: 44511 | L144: Mai Brit Svendsen
B145: Tidskostnader for reisende
B146: Verdi av omstigning
B147: Forretningsreiser < 70 km | C147: 3 | D147: Minutter | F147: 2020 | H147: TØI (2020) | I147: Undersøkelser som i all hovedsak er basert på stated preferences (SP) med hypotetiske valg (Reisetid, ventetid, omstigning, pålitelighet og kø), men inneholder også en undersøkelse av endring i faktisk atferd (revealed preferences, RP). | J147: Anbefalte enhetsverdier for omstigningsulempe, relativt til reisetid om bord. Alle kollektive transportmidler. | K147: 44727 | L147: Mai Brit Svendsen
B148: Andre reiser < 70 km | C148: 12 | D148: Minutter | F148: 2020 | H148: TØI (2020) | I148: Undersøkelser som i all hovedsak er basert på stated preferences (SP) med hypotetiske valg (Reisetid, ventetid, omstigning, pålitelighet og kø), men inneholder også en undersøkelse av endring i faktisk atferd (revealed preferences, RP). | J148: Anbefalte enhetsverdier for omstigningsulempe, relativt til reisetid om bord. Alle kollektive transportmidler. | K148: 44727 | L148: Mai Brit Svendsen
B149: Forretningsreiser ≥ 70 km | C149: 5 | D149: Minutter | F149: 2020 | H149: TØI (2020) | I149: Undersøkelser som i all hovedsak er basert på stated preferences (SP) med hypotetiske valg (Reisetid, ventetid, omstigning, pålitelighet og kø), men inneholder også en undersøkelse av endring i faktisk atferd (revealed preferences, RP). | J149: Anbefalte enhetsverdier for omstigningsulempe, relativt til reisetid om bord. Alle kollektive transportmidler. | K149: 44727 | L149: Mai Brit Svendsen
B150: Forretningsreiser - Flyreiser ≥ 70 km | C150: 13 | D150: Minutter | F150: 2020 | H150: TØI (2020) | I150: Undersøkelser som i all hovedsak er basert på stated preferences (SP) med hypotetiske valg (Reisetid, ventetid, omstigning, pålitelighet og kø), men inneholder også en undersøkelse av endring i faktisk atferd (revealed preferences, RP). | J150: Anbefalte enhetsverdier for omstigningsulempe for fly, angitt som minutter reisetid om bord, etter reiseformål for alle distanser. | K150: 44727 | L150: Mai Brit Svendsen
B151: Andre reiser ≥ 70 km | C151: 23 | D151: Minutter | F151: 2020 | H151: TØI (2020) | I151: Undersøkelser som i all hovedsak er basert på stated preferences (SP) med hypotetiske valg (Reisetid, ventetid, omstigning, pålitelighet og kø), men inneholder også en undersøkelse av endring i faktisk atferd (revealed preferences, RP). | J151: Anbefalte enhetsverdier for omstigningsulempe, relativt til reisetid om bord. Alle kollektive transportmidler. | K151: 44727 | L151: Mai Brit Svendsen
B152: Andre reiser- Flyreiser ≥ 70 km | C152: 53 | D152: Minutter | F152: 2020 | H152: TØI (2020) | I152: Undersøkelser som i all hovedsak er basert på stated preferences (SP) med hypotetiske valg (Reisetid, ventetid, omstigning, pålitelighet og kø), men inneholder også en undersøkelse av endring i faktisk atferd (revealed preferences, RP). | J152: Anbefalte enhetsverdier for omstigningsulempe for fly, angitt som minutter reisetid om bord, etter reiseformål for alle distanser. | K152: 44727 | L152: Mai Brit Svendsen
B153: Tid mellom avganger, faktor per intervall
B154: Ventetid 0 - 15 min | C154: 1.07 | D154: ='Standardsatser-Forutsetninger'!$D$131 -> Vekt | F154: 2020 | H154: TØI (2020) | I154: Undersøkelser som i all hovedsak er basert på stated preferences (SP) med hypotetiske valg (Reisetid, ventetid, omstigning, pålitelighet og kø), men inneholder også en undersøkelse av endring i faktisk atferd (revealed preferences, RP). | J154: Anbefalte faktorer for tid mellom avganger, relativt til reisetid om bord. Alle distanser og kollektive transportmidler. Faktoren viser nytten av endringer i tid mellom avganger innenfor det aktuelle intervallet. Vektingsfaktoren skal ganges med tidsverdien om bord for å finne nytten av en endring i avgangsintervallet. | K154: 44732 | L154: Mai Brit Svendsen
B155: Ventetid 16-30 min | C155: 0.98 | D155: ='Standardsatser-Forutsetninger'!$D$131 -> Vekt | F155: 2020 | H155: TØI (2020) | I155: Undersøkelser som i all hovedsak er basert på stated preferences (SP) med hypotetiske valg (Reisetid, ventetid, omstigning, pålitelighet og kø), men inneholder også en undersøkelse av endring i faktisk atferd (revealed preferences, RP). | J155: Anbefalte faktorer for tid mellom avganger, relativt til reisetid om bord. Alle distanser og kollektive transportmidler. Faktoren viser nytten av endringer i tid mellom avganger innenfor det aktuelle intervallet. Vektingsfaktoren skal ganges med tidsverdien om bord for å finne nytten av en endring i avgangsintervallet. | K155: 44732 | L155: Mai Brit Svendsen
B156: Ventetid 31-60 min | C156: 0.63 | D156: Vekt | F156: 2020 | H156: TØI (2020) | I156: Undersøkelser som i all hovedsak er basert på stated preferences (SP) med hypotetiske valg (Reisetid, ventetid, omstigning, pålitelighet og kø), men inneholder også en undersøkelse av endring i faktisk atferd (revealed preferences, RP). | J156: Anbefalte faktorer for tid mellom avganger, relativt til reisetid om bord. Alle distanser og kollektive transportmidler. Faktoren viser nytten av endringer i tid mellom avganger innenfor det aktuelle intervallet. Vektingsfaktoren skal ganges med tidsverdien om bord for å finne nytten av en endring i avgangsintervallet. | K156: 44732 | L156: Mai Brit Svendsen
B157: Ventetid 61-120 min | C157: 0.47 | D157: Vekt | F157: 2020 | H157: TØI (2020) | I157: Undersøkelser som i all hovedsak er basert på stated preferences (SP) med hypotetiske valg (Reisetid, ventetid, omstigning, pålitelighet og kø), men inneholder også en undersøkelse av endring i faktisk atferd (revealed preferences, RP). | J157: Anbefalte faktorer for tid mellom avganger, relativt til reisetid om bord. Alle distanser og kollektive transportmidler. Faktoren viser nytten av endringer i tid mellom avganger innenfor det aktuelle intervallet. Vektingsfaktoren skal ganges med tidsverdien om bord for å finne nytten av en endring i avgangsintervallet. | K157: 44732 | L157: Mai Brit Svendsen
B158: Over 120 min | C158: 0.18 | D158: Vekt | F158: 2020 | H158: TØI (2020) | I158: Undersøkelser som i all hovedsak er basert på stated preferences (SP) med hypotetiske valg (Reisetid, ventetid, omstigning, pålitelighet og kø), men inneholder også en undersøkelse av endring i faktisk atferd (revealed preferences, RP). | J158: Anbefalte faktorer for tid mellom avganger, relativt til reisetid om bord. Alle distanser og kollektive transportmidler. Faktoren viser nytten av endringer i tid mellom avganger innenfor det aktuelle intervallet. Vektingsfaktoren skal ganges med tidsverdien om bord for å finne nytten av en endring i avgangsintervallet. | K158: 44732 | L158: Mai Brit Svendsen
B159: Tid mellom avganger, faktor for generalisert kostnad
B160: Ventetid 0 - 15 min | C160: 1.07 | D160: Vekt | F160: 2020 | H160: TØI (2020) | I160: Undersøkelser som i all hovedsak er basert på stated preferences (SP) med hypotetiske valg (Reisetid, ventetid, omstigning, pålitelighet og kø), men inneholder også en undersøkelse av endring i faktisk atferd (revealed preferences, RP). | J160: Anbefalte faktorer for tid mellom avganger, relativt til reisetid om bord. Alle distanser og kollektive transportmidler. Vektingsfaktoren er et vektet gjennomsnitt av vektingsfaktorene for alle intervaller til og med det aktuelle intervallet. | K160: 44732 | L160: Mai Brit Svendsen
B161: Ventetid 16-30 min | C161: 1.03 | D161: Vekt | F161: 2020 | H161: TØI (2020) | I161: Undersøkelser som i all hovedsak er basert på stated preferences (SP) med hypotetiske valg (Reisetid, ventetid, omstigning, pålitelighet og kø), men inneholder også en undersøkelse av endring i faktisk atferd (revealed preferences, RP). | J161: Anbefalte faktorer for tid mellom avganger, relativt til reisetid om bord. Alle distanser og kollektive transportmidler. Vektingsfaktoren er et vektet gjennomsnitt av vektingsfaktorene for alle intervaller til og med det aktuelle intervallet. | K161: 44732 | L161: Mai Brit Svendsen
B162: Ventetid 31-60 min | C162: 0.83 | D162: Vekt | F162: 2020 | H162: TØI (2020) | I162: Undersøkelser som i all hovedsak er basert på stated preferences (SP) med hypotetiske valg (Reisetid, ventetid, omstigning, pålitelighet og kø), men inneholder også en undersøkelse av endring i faktisk atferd (revealed preferences, RP). | J162: Anbefalte faktorer for tid mellom avganger, relativt til reisetid om bord. Alle distanser og kollektive transportmidler. Vektingsfaktoren er et vektet gjennomsnitt av vektingsfaktorene for alle intervaller til og med det aktuelle intervallet. | K162: 44732 | L162: Mai Brit Svendsen
B163: Ventetid 61-120 min | C163: 0.65 | D163: Vekt | F163: 2020 | H163: TØI (2020) | I163: Undersøkelser som i all hovedsak er basert på stated preferences (SP) med hypotetiske valg (Reisetid, ventetid, omstigning, pålitelighet og kø), men inneholder også en undersøkelse av endring i faktisk atferd (revealed preferences, RP). | J163: Anbefalte faktorer for tid mellom avganger, relativt til reisetid om bord. Alle distanser og kollektive transportmidler. Vektingsfaktoren er et vektet gjennomsnitt av vektingsfaktorene for alle intervaller til og med det aktuelle intervallet. | K163: 44732 | L163: Mai Brit Svendsen
B164: Over 120 min | C164: 0.41 | D164: Vekt | F164: 2020 | H164: TØI (2020) | I164: Undersøkelser som i all hovedsak er basert på stated preferences (SP) med hypotetiske valg (Reisetid, ventetid, omstigning, pålitelighet og kø), men inneholder også en undersøkelse av endring i faktisk atferd (revealed preferences, RP). | J164: Anbefalte faktorer for tid mellom avganger, relativt til reisetid om bord. Alle distanser og kollektive transportmidler. Vektingsfaktoren er et vektet gjennomsnitt av vektingsfaktorene for alle intervaller til og med det aktuelle intervallet. | K164: 44732 | L164: Mai Brit Svendsen
B165: Tilbringtid til og fra kollektive transportmidler
B166: Alle distanser og reiseformål | C166: 1.3 | D166: Vekt | F166: 2020 | H166: TØI (2020) | I166: Undersøkelser som i all hovedsak er basert på stated preferences (SP) med hypotetiske valg (Reisetid, ventetid, omstigning, pålitelighet og kø), men inneholder også en undersøkelse av endring i faktisk atferd (revealed preferences, RP). | J166: Anbefalt faktor for verdsetting av reisetid til og fra holdeplass/stasjon på kollektive reiser, relativt til reisetid om bord. Alle distanser og alle reiseformål. | K166: 44732 | L166: Mai Brit Svendsen
B167: Tilbringertid for flyreiser, alle reiseformål og distanser
B168: Bil | C168: 0.8 | D168: Vekt | F168: 2020 | H168: TØI (2020) | I168: Undersøkelser som i all hovedsak er basert på stated preferences (SP) med hypotetiske valg (Reisetid, ventetid, omstigning, pålitelighet og kø), men inneholder også en undersøkelse av endring i faktisk atferd (revealed preferences, RP). | J168: Anbefalte vektingsfaktorer for tilbringertid for flyreiser, relativt til reisetid om bord. Alle reiseformål og alle distanser. | K168: 44732 | L168: Mai Brit Svendsen
B169: Flytog | C169: 1 | D169: Vekt | F169: 2020 | H169: TØI (2020) | I169: Undersøkelser som i all hovedsak er basert på stated preferences (SP) med hypotetiske valg (Reisetid, ventetid, omstigning, pålitelighet og kø), men inneholder også en undersøkelse av endring i faktisk atferd (revealed preferences, RP). | J169: Anbefalte vektingsfaktorer for tilbringertid for flyreiser, relativt til reisetid om bord. Alle reiseformål og alle distanser. | K169: 44732 | L169: Mai Brit Svendsen
B170: Tog | C170: 0.8 | D170: Vekt | F170: 2020 | H170: TØI (2020) | I170: Undersøkelser som i all hovedsak er basert på stated preferences (SP) med hypotetiske valg (Reisetid, ventetid, omstigning, pålitelighet og kø), men inneholder også en undersøkelse av endring i faktisk atferd (revealed preferences, RP). | J170: Anbefalte vektingsfaktorer for tilbringertid for flyreiser, relativt til reisetid om bord. Alle reiseformål og alle distanser. | K170: 44732 | L170: Mai Brit Svendsen
B171: Flybuss | C171: 1 | D171: Vekt | F171: 2020 | H171: TØI (2020) | I171: Undersøkelser som i all hovedsak er basert på stated preferences (SP) med hypotetiske valg (Reisetid, ventetid, omstigning, pålitelighet og kø), men inneholder også en undersøkelse av endring i faktisk atferd (revealed preferences, RP). | J171: Anbefalte vektingsfaktorer for tilbringertid for flyreiser, relativt til reisetid om bord. Alle reiseformål og alle distanser. | K171: 44732 | L171: Mai Brit Svendsen
B172: Rutebuss | C172: 0.9 | D172: Vekt | F172: 2020 | H172: TØI (2020) | I172: Undersøkelser som i all hovedsak er basert på stated preferences (SP) med hypotetiske valg (Reisetid, ventetid, omstigning, pålitelighet og kø), men inneholder også en undersøkelse av endring i faktisk atferd (revealed preferences, RP). | J172: Anbefalte vektingsfaktorer for tilbringertid for flyreiser, relativt til reisetid om bord. Alle reiseformål og alle distanser. | K172: 44732 | L172: Mai Brit Svendsen
B173: Taxi | C173: 0.9 | D173: Vekt | F173: 2020 | H173: TØI (2020) | I173: Undersøkelser som i all hovedsak er basert på stated preferences (SP) med hypotetiske valg (Reisetid, ventetid, omstigning, pålitelighet og kø), men inneholder også en undersøkelse av endring i faktisk atferd (revealed preferences, RP). | J173: Anbefalte vektingsfaktorer for tilbringertid for flyreiser, relativt til reisetid om bord. Alle reiseformål og alle distanser. | K173: 44732 | L173: Mai Brit Svendsen
B174: Trafikkvolumer
B175: Fordeling på overført og nyskapt trafikk - Persontog
B176: Overført fra bil | C176: 0.65 | D176: Prosentandel | F176: 2014 | H176: RVU 2013/2014. (Side 40) | I176: Denne satsen vil være veldig varierende avhengig av hvilket tiltak det er snakk om, og hvor dette tiltaket eventuelt skal utføres. For eksempel vil det på steder hvor ekspressbusser opererer, være større konkurranse mot jernbane. Dermed vil denne satsen være varierende i ulike markeder. Disse standardforutsetningene bør derfor - hvis mulig- erstattes av prosjektspesifikke forutsetninger. | J176: Dokumentasjon av SAGA | K176: 42954 | L176: Malene Nerland
